Body Name,Body,Service Area Categorisation,Service Division Categorisation,Responsible Unit,Expenses Type,Detailed Expenses Type,Payment Date,Transaction Number,Payment Amount,Supplier Type,Supplier Name,Supplier Id
Portsmouth City Council,PCC,Costs below Net Cost of Services,Trading,Regeneration,Premises-Related Expenditure,Rates,28-Jul-23,6730286,"2,876.00",OTHER LOCAL AUTHORITY,LEEDS CITY COUNCIL,300000020461628
Portsmouth City Council,PCC,Housing Revenue Account,"Rents, Rates, Taxes and Other Charges","Housing, Neighbourhood and Building Services",Premises-Related Expenditure,Rates,25-Jul-23,6729238,135,OTHER LOCAL AUTHORITY,HAVANT BOROUGH COUNCIL,300000020457057
Portsmouth City Council,PCC,Housing Revenue Account,"Rents, Rates, Taxes and Other Charges","Housing, Neighbourhood and Building Services",Premises-Related Expenditure,Rates,25-Jul-23,6729238,135,OTHER LOCAL AUTHORITY,HAVANT BOROUGH COUNCIL,300000020457057
Portsmouth City Council,PCC,Housing Revenue Account,"Rents, Rates, Taxes and Other Charges","Housing, Neighbourhood and Building Services",Premises-Related Expenditure,Rates,25-Jul-23,6729238,135,OTHER LOCAL AUTHORITY,HAVANT BOROUGH COUNCIL,300000020457057
Portsmouth City Council,PCC,Housing Revenue Account,"Rents, Rates, Taxes and Other Charges","Housing, Neighbourhood and Building Services",Premises-Related Expenditure,Rates,25-Jul-23,6729238,135,OTHER LOCAL AUTHORITY,HAVANT BOROUGH COUNCIL,300000020457057
Portsmouth City Council,PCC,Housing Revenue Account,"Rents, Rates, Taxes and Other Charges","Housing, Neighbourhood and Building Services",Premises-Related Expenditure,Rates,25-Jul-23,6729238,256,OTHER LOCAL AUTHORITY,HAVANT BOROUGH COUNCIL,300000020457057
Portsmouth City Council,PCC,Housing Revenue Account,"Rents, Rates, Taxes and Other Charges","Housing, Neighbourhood and Building Services",Premises-Related Expenditure,Rates,25-Jul-23,6729237,157,OTHER LOCAL AUTHORITY,HAVANT BOROUGH COUNCIL,300000020457057
Portsmouth City Council,PCC,Housing Revenue Account,"Rents, Rates, Taxes and Other Charges","Housing, Neighbourhood and Building Services",Premises-Related Expenditure,Rates,25-Jul-23,6729238,135,OTHER LOCAL AUTHORITY,HAVANT BOROUGH COUNCIL,300000020457057
Portsmouth City Council,PCC,Housing Revenue Account,"Rents, Rates, Taxes and Other Charges","Housing, Neighbourhood and Building Services",Premises-Related Expenditure,Rates,25-Jul-23,6729238,135,OTHER LOCAL AUTHORITY,HAVANT BOROUGH COUNCIL,300000020457057
Portsmouth City Council,PCC,Housing Revenue Account,"Rents, Rates, Taxes and Other Charges","Housing, Neighbourhood and Building Services",Premises-Related Expenditure,Rates,25-Jul-23,6729237,135,OTHER LOCAL AUTHORITY,HAVANT BOROUGH COUNCIL,300000020457057
Portsmouth City Council,PCC,Housing Revenue Account,"Rents, Rates, Taxes and Other Charges","Housing, Neighbourhood and Building Services",Premises-Related Expenditure,Rates,25-Jul-23,6729238,135,OTHER LOCAL AUTHORITY,HAVANT BOROUGH COUNCIL,300000020457057
Portsmouth City Council,PCC,Housing Revenue Account,"Rents, Rates, Taxes and Other Charges","Housing, Neighbourhood and Building Services",Premises-Related Expenditure,Rates,25-Jul-23,6729237,135,OTHER LOCAL AUTHORITY,HAVANT BOROUGH COUNCIL,300000020457057
Portsmouth City Council,PCC,Housing Revenue Account,"Rents, Rates, Taxes and Other Charges","Housing, Neighbourhood and Building Services",Premises-Related Expenditure,Rates,25-Jul-23,6729237,135,OTHER LOCAL AUTHORITY,HAVANT BOROUGH COUNCIL,300000020457057
Portsmouth City Council,PCC,Housing Revenue Account,"Rents, Rates, Taxes and Other Charges","Housing, Neighbourhood and Building Services",Premises-Related Expenditure,Rates,25-Jul-23,6729237,135,OTHER LOCAL AUTHORITY,HAVANT BOROUGH COUNCIL,300000020457057
Portsmouth City Council,PCC,Housing Revenue Account,"Rents, Rates, Taxes and Other Charges","Housing, Neighbourhood and Building Services",Premises-Related Expenditure,Rates,25-Jul-23,6729237,135,OTHER LOCAL AUTHORITY,HAVANT BOROUGH COUNCIL,300000020457057
Portsmouth City Council,PCC,Housing Revenue Account,"Rents, Rates, Taxes and Other Charges","Housing, Neighbourhood and Building Services",Premises-Related Expenditure,Rates,25-Jul-23,6729237,269,OTHER LOCAL AUTHORITY,HAVANT BOROUGH COUNCIL,300000020457057
Portsmouth City Council,PCC,Housing Revenue Account,"Rents, Rates, Taxes and Other Charges","Housing, Neighbourhood and Building Services",Premises-Related Expenditure,Rates,25-Jul-23,6729237,135,OTHER LOCAL AUTHORITY,HAVANT BOROUGH COUNCIL,300000020457057
Portsmouth City Council,PCC,Housing Revenue Account,"Rents, Rates, Taxes and Other Charges","Housing, Neighbourhood and Building Services",Premises-Related Expenditure,Rates,25-Jul-23,6729237,135,OTHER LOCAL AUTHORITY,HAVANT BOROUGH COUNCIL,300000020457057
Portsmouth City Council,PCC,Housing Revenue Account,"Rents, Rates, Taxes and Other Charges","Housing, Neighbourhood and Building Services",Premises-Related Expenditure,Rates,25-Jul-23,6729237,135,OTHER LOCAL AUTHORITY,HAVANT BOROUGH COUNCIL,300000020457057
Portsmouth City Council,PCC,Housing Revenue Account,"Rents, Rates, Taxes and Other Charges","Housing, Neighbourhood and Building Services",Premises-Related Expenditure,Rates,25-Jul-23,6729238,269,OTHER LOCAL AUTHORITY,HAVANT BOROUGH COUNCIL,300000020457057
Portsmouth City Council,PCC,Housing Revenue Account,"Rents, Rates, Taxes and Other Charges","Housing, Neighbourhood and Building Services",Premises-Related Expenditure,Rates,25-Jul-23,6729238,135,OTHER LOCAL AUTHORITY,HAVANT BOROUGH COUNCIL,300000020457057
Portsmouth City Council,PCC,Housing Revenue Account,"Rents, Rates, Taxes and Other Charges","Housing, Neighbourhood and Building Services",Premises-Related Expenditure,Rates,25-Jul-23,6729238,135,OTHER LOCAL AUTHORITY,HAVANT BOROUGH COUNCIL,300000020457057
Portsmouth City Council,PCC,Housing Services,Homelessness,"Housing, Neighbourhood and Building Services",Premises-Related Expenditure,Rents,25-Jul-23,6729319,"-6,180.00",SUPPLIER,K H PROPERTY INVESTMENT LIMITED,300000020467836
Portsmouth City Council,PCC,Housing Services,Homelessness,"Housing, Neighbourhood and Building Services",Premises-Related Expenditure,Rents,25-Jul-23,6729319,"6,180.00",SUPPLIER,K H PROPERTY INVESTMENT LIMITED,300000020467836
Portsmouth City Council,PCC,Housing Services,Homelessness,"Housing, Neighbourhood and Building Services",Premises-Related Expenditure,Rents,25-Jul-23,6729319,"6,180.00",SUPPLIER,K H PROPERTY INVESTMENT LIMITED,300000020467836
Portsmouth City Council,PCC,Housing Revenue Account,Supervision and Management,"Housing, Neighbourhood and Building Services",Premises-Related Expenditure,Rates,25-Jul-23,6729238,"1,297.00",OTHER LOCAL AUTHORITY,HAVANT BOROUGH COUNCIL,300000020457057
Portsmouth City Council,PCC,Housing Revenue Account,Special Services,"Housing, Neighbourhood and Building Services",Premises-Related Expenditure,Rates,25-Jul-23,6729238,267,OTHER LOCAL AUTHORITY,HAVANT BOROUGH COUNCIL,300000020457057
Portsmouth City Council,PCC,Housing Revenue Account,Special Services,"Housing, Neighbourhood and Building Services",Premises-Related Expenditure,Rates,25-Jul-23,6729238,394,OTHER LOCAL AUTHORITY,HAVANT BOROUGH COUNCIL,300000020457057
Portsmouth City Council,PCC,Housing Revenue Account,Special Services,"Housing, Neighbourhood and Building Services",Premises-Related Expenditure,Rates,25-Jul-23,6729238,53,OTHER LOCAL AUTHORITY,HAVANT BOROUGH COUNCIL,300000020457057
Portsmouth City Council,PCC,Housing Revenue Account,Supervision and Management,"Housing, Neighbourhood and Building Services",Premises-Related Expenditure,Rates,25-Jul-23,6729238,"3,507.00",OTHER LOCAL AUTHORITY,HAVANT BOROUGH COUNCIL,300000020457057
Portsmouth City Council,PCC,Housing Revenue Account,Special Services,"Housing, Neighbourhood and Building Services",Premises-Related Expenditure,Rates,25-Jul-23,6729238,51,OTHER LOCAL AUTHORITY,HAVANT BOROUGH COUNCIL,300000020457057
Portsmouth City Council,PCC,Housing Revenue Account,Special Services,"Housing, Neighbourhood and Building Services",Premises-Related Expenditure,Rates,25-Jul-23,6729238,51,OTHER LOCAL AUTHORITY,HAVANT BOROUGH COUNCIL,300000020457057
Portsmouth City Council,PCC,Housing Revenue Account,Special Services,"Housing, Neighbourhood and Building Services",Premises-Related Expenditure,Rates,25-Jul-23,6729238,54,OTHER LOCAL AUTHORITY,HAVANT BOROUGH COUNCIL,300000020457057
Portsmouth City Council,PCC,Housing Revenue Account,Special Services,"Housing, Neighbourhood and Building Services",Premises-Related Expenditure,Rates,25-Jul-23,6729238,51,OTHER LOCAL AUTHORITY,HAVANT BOROUGH COUNCIL,300000020457057
Portsmouth City Council,PCC,Children's and Education Services,Management and Support Services,Children's Services and Education,Third Party Payments,Other establishments,05-Jul-23,6725845,"4,665.00",SUPPLIER,PREPAID FINANCIAL SERVICES,300000020477745
Portsmouth City Council,PCC,Housing Revenue Account,"Rents, Rates, Taxes and Other Charges","Housing, Neighbourhood and Building Services",Premises-Related Expenditure,Rates,25-Jul-23,6729238,133,OTHER LOCAL AUTHORITY,HAVANT BOROUGH COUNCIL,300000020457057
Portsmouth City Council,PCC,Children's and Education Services,Special Schools,Children's Services and Education,Third Party Payments,Other establishments,25-Jul-23,6729338,"128,704.80",SUPPLIER,THE DELTA EDUCATION TRUST,300000020481637
Portsmouth City Council,PCC,Children's and Education Services,Management and Support Services,Children's Services and Education,Third Party Payments,Other establishments,25-Jul-23,6729338,"20,204.80",SUPPLIER,THE DELTA EDUCATION TRUST,300000020481637
Portsmouth City Council,PCC,Children's and Education Services,Management and Support Services,Children's Services and Education,Third Party Payments,Other establishments,25-Jul-23,6729338,"4,800.00",SUPPLIER,THE DELTA EDUCATION TRUST,300000020481637
Portsmouth City Council,PCC,Children's and Education Services,Management and Support Services,Children's Services and Education,Third Party Payments,Other establishments,25-Jul-23,6729338,"52,800.00",SUPPLIER,THE DELTA EDUCATION TRUST,300000020481637
Portsmouth City Council,PCC,Children's and Education Services,Special Schools,Children's Services and Education,Third Party Payments,Other establishments,25-Jul-23,6729338,"1,795.20",SUPPLIER,THE DELTA EDUCATION TRUST,300000020481637
Portsmouth City Council,PCC,Children's and Education Services,Special Schools,Children's Services and Education,Third Party Payments,Other establishments,25-Jul-23,6729338,"7,217.60",SUPPLIER,THE DELTA EDUCATION TRUST,300000020481637
Portsmouth City Council,PCC,Children's and Education Services,Special Schools,Children's Services and Education,Third Party Payments,Other establishments,25-Jul-23,6729338,"16,319.84",SUPPLIER,THE DELTA EDUCATION TRUST,300000020481637
Portsmouth City Council,PCC,Children's and Education Services,Special Schools,Children's Services and Education,Third Party Payments,Other establishments,25-Jul-23,6729352,"123,346.00",SUPPLIER,SOLENT ACADEMIES TRUST,300000020477417
Portsmouth City Council,PCC,Children's and Education Services,Special Schools,Children's Services and Education,Third Party Payments,Other establishments,25-Jul-23,6729352,"8,218.72",SUPPLIER,SOLENT ACADEMIES TRUST,300000020477417
Portsmouth City Council,PCC,Children's and Education Services,Special Schools,Children's Services and Education,Third Party Payments,Other establishments,26-Jul-23,6729393,-1,SUPPLIER,SOLENT ACADEMIES TRUST,300000020477417
Portsmouth City Council,PCC,Children's and Education Services,Special Schools,Children's Services and Education,Third Party Payments,Other establishments,26-Jul-23,6729393,0.24,SUPPLIER,SOLENT ACADEMIES TRUST,300000020477417
Portsmouth City Council,PCC,Children's and Education Services,Special Schools,Children's Services and Education,Third Party Payments,Other establishments,26-Jul-23,6729393,"246,489.00",SUPPLIER,SOLENT ACADEMIES TRUST,300000020477417
Portsmouth City Council,PCC,Children's and Education Services,Special Schools,Children's Services and Education,Third Party Payments,Other establishments,26-Jul-23,6729393,"1,230.00",SUPPLIER,SOLENT ACADEMIES TRUST,300000020477417
Portsmouth City Council,PCC,Children's and Education Services,Special Schools,Children's Services and Education,Third Party Payments,Other establishments,26-Jul-23,6729393,666.64,SUPPLIER,SOLENT ACADEMIES TRUST,300000020477417
Portsmouth City Council,PCC,Children's and Education Services,Special Schools,Children's Services and Education,Third Party Payments,Other establishments,26-Jul-23,6729393,"12,848.72",SUPPLIER,SOLENT ACADEMIES TRUST,300000020477417
Portsmouth City Council,PCC,Children's and Education Services,Special Schools,Children's Services and Education,Third Party Payments,Other establishments,25-Jul-23,6729337,"247,247.76",SUPPLIER,SOLENT ACADEMIES TRUST,300000020477417
Portsmouth City Council,PCC,Children's and Education Services,Special Schools,Children's Services and Education,Third Party Payments,Other establishments,25-Jul-23,6729337,"18,809.84",SUPPLIER,SOLENT ACADEMIES TRUST,300000020477417
Portsmouth City Council,PCC,Children's and Education Services,Special Schools,Children's Services and Education,Third Party Payments,Other establishments,25-Jul-23,6729337,"10,800.00",SUPPLIER,SOLENT ACADEMIES TRUST,300000020477417
Portsmouth City Council,PCC,Children's and Education Services,Special Schools,Children's Services and Education,Third Party Payments,Other establishments,25-Jul-23,6729337,"12,828.40",SUPPLIER,SOLENT ACADEMIES TRUST,300000020477417
Portsmouth City Council,PCC,Children's and Education Services,Special Schools,Children's Services and Education,Third Party Payments,Other establishments,25-Jul-23,6729337,978,SUPPLIER,SOLENT ACADEMIES TRUST,300000020477417
Portsmouth City Council,PCC,Children's and Education Services,Special Schools,Children's Services and Education,Third Party Payments,Other establishments,25-Jul-23,6729366,"51,360.00",SUPPLIER,THE DELTA EDUCATION TRUST,300000020481637
Portsmouth City Council,PCC,Children's and Education Services,Special Schools,Children's Services and Education,Third Party Payments,Other establishments,25-Jul-23,6729366,"3,034.40",SUPPLIER,THE DELTA EDUCATION TRUST,300000020481637
Portsmouth City Council,PCC,Costs below Net Cost of Services,Trading,Regeneration,Premises-Related Expenditure,Rates,31-Jul-23,6730396,"10,119.00",OTHER LOCAL AUTHORITY,WARRINGTON BOROUGH COUNCIL,300000449627398
Portsmouth City Council,PCC,Housing Revenue Account,"Rents, Rates, Taxes and Other Charges","Housing, Neighbourhood and Building Services",Premises-Related Expenditure,Rates,25-Jul-23,6729238,135,OTHER LOCAL AUTHORITY,HAVANT BOROUGH COUNCIL,300000020457057
Portsmouth City Council,PCC,Children's and Education Services,Management and Support Services,Children's Services and Education,Third Party Payments,Other establishments,28-Jul-23,6730153,"2,000.00",SUPPLIER,THE SALTERNS ACADEMY TRUST,300000020477978
Portsmouth City Council,PCC,Children's and Education Services,Management and Support Services,Children's Services and Education,Third Party Payments,Other establishments,28-Jul-23,6730281,"4,500.00",SUPPLIER,THE THINKING SCHOOLS TRUST,300000020481073
Portsmouth City Council,PCC,Children's and Education Services,Management and Support Services,Children's Services and Education,Third Party Payments,Other establishments,05-Jul-23,6725876,"-5,600.00",SUPPLIER,THE THINKING SCHOOLS TRUST,300000020481073
Portsmouth City Council,PCC,Children's and Education Services,Management and Support Services,Children's Services and Education,Third Party Payments,Other establishments,05-Jul-23,6725876,"10,100.00",SUPPLIER,THE THINKING SCHOOLS TRUST,300000020481073
Portsmouth City Council,PCC,Children's and Education Services,Management and Support Services,Children's Services and Education,Third Party Payments,Other establishments,28-Jul-23,6730215,833.34,TRUST,Academy Trust - University of Portsmouth,300000316357634
Portsmouth City Council,PCC,Housing Revenue Account,"Rents, Rates, Taxes and Other Charges","Housing, Neighbourhood and Building Services",Premises-Related Expenditure,Rates,25-Jul-23,6729238,135,OTHER LOCAL AUTHORITY,HAVANT BOROUGH COUNCIL,300000020457057
Portsmouth City Council,PCC,Housing Revenue Account,"Rents, Rates, Taxes and Other Charges","Housing, Neighbourhood and Building Services",Premises-Related Expenditure,Rates,25-Jul-23,6729238,126,OTHER LOCAL AUTHORITY,HAVANT BOROUGH COUNCIL,300000020457057
Portsmouth City Council,PCC,Housing Revenue Account,"Rents, Rates, Taxes and Other Charges","Housing, Neighbourhood and Building Services",Premises-Related Expenditure,Rates,25-Jul-23,6729238,124,OTHER LOCAL AUTHORITY,HAVANT BOROUGH COUNCIL,300000020457057
Portsmouth City Council,PCC,Housing Revenue Account,"Rents, Rates, Taxes and Other Charges","Housing, Neighbourhood and Building Services",Premises-Related Expenditure,Rates,25-Jul-23,6729238,138,OTHER LOCAL AUTHORITY,HAVANT BOROUGH COUNCIL,300000020457057
Portsmouth City Council,PCC,Children's and Education Services,Safeguarding Children and Young Peoples Services,Children's Services and Education,Third Party Payments,Other establishments,05-Jul-23,6726147,-415.17,SUPPLIER,LILIAN DAVIS GROUP LTD,300000020467263
Portsmouth City Council,PCC,Children's and Education Services,Safeguarding Children and Young Peoples Services,Children's Services and Education,Third Party Payments,Other establishments,05-Jul-23,6726147,-115.58,SUPPLIER,LILIAN DAVIS GROUP LTD,300000020467263
Portsmouth City Council,PCC,Housing Revenue Account,"Rents, Rates, Taxes and Other Charges","Housing, Neighbourhood and Building Services",Premises-Related Expenditure,Rates,25-Jul-23,6729238,146,OTHER LOCAL AUTHORITY,HAVANT BOROUGH COUNCIL,300000020457057
Portsmouth City Council,PCC,Housing Revenue Account,"Rents, Rates, Taxes and Other Charges","Housing, Neighbourhood and Building Services",Premises-Related Expenditure,Rates,25-Jul-23,6729238,324,OTHER LOCAL AUTHORITY,HAVANT BOROUGH COUNCIL,300000020457057
Portsmouth City Council,PCC,Housing Revenue Account,"Rents, Rates, Taxes and Other Charges","Housing, Neighbourhood and Building Services",Premises-Related Expenditure,Rates,25-Jul-23,6729238,127,OTHER LOCAL AUTHORITY,HAVANT BOROUGH COUNCIL,300000020457057
Portsmouth City Council,PCC,Adult Social Care,Social Care Activities,Adult Care,Third Party Payments,Other establishments,19-Jul-23,6728045,"82,807.84",SUPPLIER,A24 GROUP LIMITED T/A AMBITION 24 HOURS,300000020481251
Portsmouth City Council,PCC,Adult Social Care,Physical Support Adults (18 - 64),Adult Care,Third Party Payments,Joint authorities,12-Jul-23,6727145,"4,152.40",SUPPLIER,ABICARE SERVICES LTD,300000020470310
Portsmouth City Council,PCC,Adult Social Care,Learning Disability Support Adults (18 - 64),Adult Care,Third Party Payments,Other establishments,25-Jul-23,6729373,"-15,082.08",SUPPLIER,ACHIEVE TOGETHER LIMITED,300000020469986
Portsmouth City Council,PCC,Adult Social Care,Learning Disability Support Adults (18 - 64),Adult Care,Third Party Payments,Other establishments,25-Jul-23,6729373,"-15,082.08",SUPPLIER,ACHIEVE TOGETHER LIMITED,300000020469986
Portsmouth City Council,PCC,Adult Social Care,Learning Disability Support Adults (18 - 64),Adult Care,Third Party Payments,Other establishments,25-Jul-23,6729373,"-14,595.56",SUPPLIER,ACHIEVE TOGETHER LIMITED,300000020469986
Portsmouth City Council,PCC,Adult Social Care,Learning Disability Support Adults (18 - 64),Adult Care,Third Party Payments,Other establishments,25-Jul-23,6729373,"-13,622.52",SUPPLIER,ACHIEVE TOGETHER LIMITED,300000020469986
Portsmouth City Council,PCC,Adult Social Care,Learning Disability Support Adults (18 - 64),Adult Care,Third Party Payments,Other establishments,25-Jul-23,6729373,"-1,459.56",SUPPLIER,ACHIEVE TOGETHER LIMITED,300000020469986
Portsmouth City Council,PCC,Adult Social Care,Learning Disabilty Support Older People (65 - 74),Adult Care,Third Party Payments,Joint authorities,25-Jul-23,6729373,462.86,SUPPLIER,ACHIEVE TOGETHER LIMITED,300000020469986
Portsmouth City Council,PCC,Adult Social Care,Learning Disability Support Adults (18 - 64),Adult Care,Third Party Payments,Other establishments,25-Jul-23,6729373,747.51,SUPPLIER,ACHIEVE TOGETHER LIMITED,300000020469986
Portsmouth City Council,PCC,Adult Social Care,Learning Disability Support Adults (18 - 64),Adult Care,Third Party Payments,Other establishments,25-Jul-23,6729373,747.51,SUPPLIER,ACHIEVE TOGETHER LIMITED,300000020469986
Portsmouth City Council,PCC,Adult Social Care,Learning Disability Support Adults (18 - 64),Adult Care,Third Party Payments,Other establishments,25-Jul-23,6729373,747.51,SUPPLIER,ACHIEVE TOGETHER LIMITED,300000020469986
Portsmouth City Council,PCC,Adult Social Care,Learning Disability Support Adults (18 - 64),Adult Care,Third Party Payments,Other establishments,25-Jul-23,6729373,747.51,SUPPLIER,ACHIEVE TOGETHER LIMITED,300000020469986
Portsmouth City Council,PCC,Adult Social Care,Learning Disability Support Adults (18 - 64),Adult Care,Third Party Payments,Other establishments,25-Jul-23,6729373,747.51,SUPPLIER,ACHIEVE TOGETHER LIMITED,300000020469986
Portsmouth City Council,PCC,Adult Social Care,Learning Disability Support Adults (18 - 64),Adult Care,Third Party Payments,Other establishments,25-Jul-23,6729373,747.51,SUPPLIER,ACHIEVE TOGETHER LIMITED,300000020469986
Portsmouth City Council,PCC,Adult Social Care,Learning Disability Support Adults (18 - 64),Adult Care,Third Party Payments,Other establishments,25-Jul-23,6729373,747.51,SUPPLIER,ACHIEVE TOGETHER LIMITED,300000020469986
Portsmouth City Council,PCC,Adult Social Care,Learning Disability Support Adults (18 - 64),Adult Care,Third Party Payments,Other establishments,25-Jul-23,6729373,747.51,SUPPLIER,ACHIEVE TOGETHER LIMITED,300000020469986
Portsmouth City Council,PCC,Adult Social Care,Learning Disability Support Adults (18 - 64),Adult Care,Third Party Payments,Other establishments,25-Jul-23,6729373,747.51,SUPPLIER,ACHIEVE TOGETHER LIMITED,300000020469986
Portsmouth City Council,PCC,Adult Social Care,Learning Disability Support Adults (18 - 64),Adult Care,Third Party Payments,Other establishments,25-Jul-23,6729373,747.51,SUPPLIER,ACHIEVE TOGETHER LIMITED,300000020469986
Portsmouth City Council,PCC,Adult Social Care,Learning Disabilty Support Older People (65 - 74),Adult Care,Third Party Payments,Joint authorities,25-Jul-23,6729373,747.51,SUPPLIER,ACHIEVE TOGETHER LIMITED,300000020469986
Portsmouth City Council,PCC,Adult Social Care,Learning Disability Support Adults (18 - 64),Adult Care,Third Party Payments,Other establishments,25-Jul-23,6729373,749.83,SUPPLIER,ACHIEVE TOGETHER LIMITED,300000020469986
Portsmouth City Council,PCC,Adult Social Care,Learning Disability Support Adults (18 - 64),Adult Care,Third Party Payments,Other establishments,25-Jul-23,6729373,"1,246.17",SUPPLIER,ACHIEVE TOGETHER LIMITED,300000020469986
Portsmouth City Council,PCC,Adult Social Care,Learning Disability Support Adults (18 - 64),Adult Care,Third Party Payments,Other establishments,25-Jul-23,6729373,"1,246.17",SUPPLIER,ACHIEVE TOGETHER LIMITED,300000020469986
Portsmouth City Council,PCC,Adult Social Care,Learning Disability Support Adults (18 - 64),Adult Care,Third Party Payments,Other establishments,25-Jul-23,6729373,"1,246.17",SUPPLIER,ACHIEVE TOGETHER LIMITED,300000020469986
Portsmouth City Council,PCC,Adult Social Care,Learning Disability Support Adults (18 - 64),Adult Care,Third Party Payments,Other establishments,25-Jul-23,6729373,"1,246.17",SUPPLIER,ACHIEVE TOGETHER LIMITED,300000020469986
Portsmouth City Council,PCC,Adult Social Care,Learning Disability Support Adults (18 - 64),Adult Care,Third Party Payments,Other establishments,25-Jul-23,6729373,"1,246.17",SUPPLIER,ACHIEVE TOGETHER LIMITED,300000020469986
Portsmouth City Council,PCC,Adult Social Care,Learning Disability Support Adults (18 - 64),Adult Care,Third Party Payments,Other establishments,25-Jul-23,6729373,"1,246.17",SUPPLIER,ACHIEVE TOGETHER LIMITED,300000020469986
Portsmouth City Council,PCC,Adult Social Care,Learning Disability Support Adults (18 - 64),Adult Care,Third Party Payments,Other establishments,25-Jul-23,6729373,"1,246.17",SUPPLIER,ACHIEVE TOGETHER LIMITED,300000020469986
Portsmouth City Council,PCC,Adult Social Care,Learning Disability Support Adults (18 - 64),Adult Care,Third Party Payments,Other establishments,25-Jul-23,6729373,"1,246.17",SUPPLIER,ACHIEVE TOGETHER LIMITED,300000020469986
Portsmouth City Council,PCC,Adult Social Care,Learning Disability Support Adults (18 - 64),Adult Care,Third Party Payments,Other establishments,25-Jul-23,6729373,"1,246.17",SUPPLIER,ACHIEVE TOGETHER LIMITED,300000020469986
Portsmouth City Council,PCC,Adult Social Care,Learning Disability Support Adults (18 - 64),Adult Care,Third Party Payments,Other establishments,25-Jul-23,6729373,"1,246.17",SUPPLIER,ACHIEVE TOGETHER LIMITED,300000020469986
Portsmouth City Council,PCC,Adult Social Care,Learning Disability Support Adults (18 - 64),Adult Care,Third Party Payments,Other establishments,25-Jul-23,6729373,"1,246.17",SUPPLIER,ACHIEVE TOGETHER LIMITED,300000020469986
Portsmouth City Council,PCC,Adult Social Care,Learning Disabilty Support Older People (65 - 74),Adult Care,Third Party Payments,Joint authorities,25-Jul-23,6729373,"1,246.17",SUPPLIER,ACHIEVE TOGETHER LIMITED,300000020469986
Portsmouth City Council,PCC,Children's and Education Services,Management and Support Services,Children's Services and Education,Supplies and Services,Grants and subscriptions,04-Jul-23,6725625,"15,840.00",SUPPLIER,ACTIV8 MINDS HOLDINGS,300000020477960
Portsmouth City Council,PCC,Children's and Education Services,Management and Support Services,Children's Services and Education,Supplies and Services,Grants and subscriptions,04-Jul-23,6725625,"13,200.00",SUPPLIER,ACTIV8 MINDS HOLDINGS,300000020477960
Portsmouth City Council,PCC,Children's and Education Services,Management and Support Services,Children's Services and Education,Supplies and Services,Grants and subscriptions,04-Jul-23,6725625,"15,840.00",SUPPLIER,ACTIV8 MINDS HOLDINGS,300000020477960
Portsmouth City Council,PCC,Children's and Education Services,Management and Support Services,Children's Services and Education,Supplies and Services,Grants and subscriptions,04-Jul-23,6725625,384,SUPPLIER,ACTIV8 MINDS HOLDINGS,300000020477960
Portsmouth City Council,PCC,Children's and Education Services,Management and Support Services,Children's Services and Education,Supplies and Services,Grants and subscriptions,04-Jul-23,6725627,864,SUPPLIER,ULT TRADING COMPANY LTD,300000020476218
Portsmouth City Council,PCC,Children's and Education Services,Management and Support Services,Children's Services and Education,Supplies and Services,Grants and subscriptions,04-Jul-23,6725627,324,SUPPLIER,ULT TRADING COMPANY LTD,300000020476218
Portsmouth City Council,PCC,Children's and Education Services,Management and Support Services,Children's Services and Education,Supplies and Services,Grants and subscriptions,04-Jul-23,6725742,844.8,SUPPLIER,BH LIVE,300000020482279
Portsmouth City Council,PCC,Children's and Education Services,Management and Support Services,Children's Services and Education,Supplies and Services,Grants and subscriptions,04-Jul-23,6725742,837.2,SUPPLIER,BH LIVE,300000020482279
Portsmouth City Council,PCC,Children's and Education Services,Management and Support Services,Children's Services and Education,Supplies and Services,Grants and subscriptions,04-Jul-23,6725742,"6,451.20",SUPPLIER,BH LIVE,300000020482279
Portsmouth City Council,PCC,Children's and Education Services,Management and Support Services,Children's Services and Education,Supplies and Services,Grants and subscriptions,04-Jul-23,6725685,"2,200.00",UK SUPPLIER,CHAIN NET APPAREL,300000289779993
Portsmouth City Council,PCC,Adult Social Care,Learning Disability Support Adults (18 - 64),Adult Care,Third Party Payments,Other establishments,25-Jul-23,6729373,"2,160.00",SUPPLIER,ACHIEVE TOGETHER LIMITED,300000020469986
Portsmouth City Council,PCC,Adult Social Care,Learning Disability Support Adults (18 - 64),Adult Care,Third Party Payments,Other establishments,25-Jul-23,6729373,"2,545.71",SUPPLIER,ACHIEVE TOGETHER LIMITED,300000020469986
Portsmouth City Council,PCC,Adult Social Care,Learning Disability Support Adults (18 - 64),Adult Care,Third Party Payments,Other establishments,25-Jul-23,6729373,"2,700.00",SUPPLIER,ACHIEVE TOGETHER LIMITED,300000020469986
Portsmouth City Council,PCC,Adult Social Care,Learning Disability Support Adults (18 - 64),Adult Care,Third Party Payments,Other establishments,25-Jul-23,6729373,"2,777.14",SUPPLIER,ACHIEVE TOGETHER LIMITED,300000020469986
Portsmouth City Council,PCC,Adult Social Care,Learning Disability Support Adults (18 - 64),Adult Care,Third Party Payments,Other establishments,25-Jul-23,6729373,"3,008.57",SUPPLIER,ACHIEVE TOGETHER LIMITED,300000020469986
Portsmouth City Council,PCC,Adult Social Care,Learning Disability Support Adults (18 - 64),Adult Care,Third Party Payments,Other establishments,25-Jul-23,6729373,"3,394.29",SUPPLIER,ACHIEVE TOGETHER LIMITED,300000020469986
Portsmouth City Council,PCC,Children's and Education Services,Other Education and Community Budget,Children's Services and Education,Premises-Related Expenditure,Energy costs,11-Jul-23,6726778,-8.68,LIMITED COMPANY,GAZPROM MARKETING AND TRADING LTD,300000250807105
Portsmouth City Council,PCC,Adult Social Care,Learning Disability Support Adults (18 - 64),Adult Care,Third Party Payments,Other establishments,25-Jul-23,6729373,"3,432.86",SUPPLIER,ACHIEVE TOGETHER LIMITED,300000020469986
Portsmouth City Council,PCC,Housing Revenue Account,Special Services,"Housing, Neighbourhood and Building Services",Premises-Related Expenditure,Energy costs,11-Jul-23,6726778,"6,097.40",LIMITED COMPANY,GAZPROM MARKETING AND TRADING LTD,300000250807105
Portsmouth City Council,PCC,Housing Revenue Account,Special Services,"Housing, Neighbourhood and Building Services",Premises-Related Expenditure,Energy costs,11-Jul-23,6726778,"-1,073.54",LIMITED COMPANY,GAZPROM MARKETING AND TRADING LTD,300000250807105
Portsmouth City Council,PCC,Adult Social Care,Learning Disability Support Adults (18 - 64),Adult Care,Third Party Payments,Other establishments,25-Jul-23,6729373,"4,204.29",SUPPLIER,ACHIEVE TOGETHER LIMITED,300000020469986
Portsmouth City Council,PCC,Housing Revenue Account,Special Services,"Housing, Neighbourhood and Building Services",Premises-Related Expenditure,Energy costs,11-Jul-23,6726778,-998.11,LIMITED COMPANY,GAZPROM MARKETING AND TRADING LTD,300000250807105
Portsmouth City Council,PCC,Adult Social Care,Learning Disability Support Adults (18 - 64),Adult Care,Third Party Payments,Other establishments,25-Jul-23,6729373,"4,975.71",SUPPLIER,ACHIEVE TOGETHER LIMITED,300000020469986
Portsmouth City Council,PCC,Housing Revenue Account,Special Services,"Housing, Neighbourhood and Building Services",Premises-Related Expenditure,Energy costs,11-Jul-23,6726778,"-1,207.99",LIMITED COMPANY,GAZPROM MARKETING AND TRADING LTD,300000250807105
Portsmouth City Council,PCC,Adult Social Care,Learning Disability Support Adults (18 - 64),Adult Care,Third Party Payments,Other establishments,25-Jul-23,6729373,"5,168.57",SUPPLIER,ACHIEVE TOGETHER LIMITED,300000020469986
Portsmouth City Council,PCC,Adult Social Care,Learning Disability Support Adults (18 - 64),Adult Care,Third Party Payments,Other establishments,12-Jul-23,6727082,"-14,101.59",SUPPLIER,ACHIEVE TOGETHER LIMITED,300000020469986
Portsmouth City Council,PCC,Adult Social Care,Learning Disability Support Adults (18 - 64),Adult Care,Third Party Payments,Other establishments,12-Jul-23,6727082,"-13,646.70",SUPPLIER,ACHIEVE TOGETHER LIMITED,300000020469986
Portsmouth City Council,PCC,Housing Revenue Account,Special Services,"Housing, Neighbourhood and Building Services",Premises-Related Expenditure,Energy costs,11-Jul-23,6726778,"-1,116.86",LIMITED COMPANY,GAZPROM MARKETING AND TRADING LTD,300000250807105
Portsmouth City Council,PCC,Housing Revenue Account,Special Services,"Housing, Neighbourhood and Building Services",Premises-Related Expenditure,Energy costs,11-Jul-23,6726778,-304.89,LIMITED COMPANY,GAZPROM MARKETING AND TRADING LTD,300000250807105
Portsmouth City Council,PCC,Housing Revenue Account,Special Services,"Housing, Neighbourhood and Building Services",Premises-Related Expenditure,Energy costs,11-Jul-23,6726778,"-4,836.53",LIMITED COMPANY,GAZPROM MARKETING AND TRADING LTD,300000250807105
Portsmouth City Council,PCC,Housing Services,Private Sector Housing Renewal,"Housing, Neighbourhood and Building Services",Income,Other grants reimbursements and contributions,05-Jul-23,6725921,-350,LIMITED COMPANY,LIFTECH SYSTEMS (SE) LIMITED,300000020461913
Portsmouth City Council,PCC,Other,Suspense and Capital Schemes,Capital - Housing General Fund,Capital Charges,REFCUS,05-Jul-23,6725921,60,LIMITED COMPANY,LIFTECH SYSTEMS (SE) LIMITED,300000020461913
Portsmouth City Council,PCC,Other,Suspense and Capital Schemes,Capital - Housing General Fund,Capital Charges,REFCUS,05-Jul-23,6725921,420,LIMITED COMPANY,LIFTECH SYSTEMS (SE) LIMITED,300000020461913
Portsmouth City Council,PCC,Adult Social Care,Learning Disability Support Adults (18 - 64),Adult Care,Third Party Payments,Other establishments,12-Jul-23,6727082,"-13,646.70",SUPPLIER,ACHIEVE TOGETHER LIMITED,300000020469986
Portsmouth City Council,PCC,Adult Social Care,Learning Disability Support Adults (18 - 64),Adult Care,Third Party Payments,Other establishments,12-Jul-23,6727082,"7,772.63",SUPPLIER,ACHIEVE TOGETHER LIMITED,300000020469986
Portsmouth City Council,PCC,Adult Social Care,Learning Disability Support Adults (18 - 64),Adult Care,Third Party Payments,Other establishments,12-Jul-23,6727082,"7,791.54",SUPPLIER,ACHIEVE TOGETHER LIMITED,300000020469986
Portsmouth City Council,PCC,Adult Social Care,Learning Disabilty Support Older People (65 - 74),Adult Care,Third Party Payments,Joint authorities,12-Jul-23,6727082,"9,025.34",SUPPLIER,ACHIEVE TOGETHER LIMITED,300000020469986
Portsmouth City Council,PCC,Adult Social Care,Learning Disability Support Adults (18 - 64),Adult Care,Third Party Payments,Other establishments,12-Jul-23,6727082,"9,043.63",SUPPLIER,ACHIEVE TOGETHER LIMITED,300000020469986
Portsmouth City Council,PCC,Adult Social Care,Learning Disability Support Adults (18 - 64),Adult Care,Third Party Payments,Other establishments,12-Jul-23,6727082,"9,433.30",SUPPLIER,ACHIEVE TOGETHER LIMITED,300000020469986
Portsmouth City Council,PCC,Adult Social Care,Learning Disability Support Adults (18 - 64),Adult Care,Third Party Payments,Other establishments,12-Jul-23,6727082,"10,297.58",SUPPLIER,ACHIEVE TOGETHER LIMITED,300000020469986
Portsmouth City Council,PCC,Adult Social Care,Learning Disabilty Support Older People (65 - 74),Adult Care,Third Party Payments,Joint authorities,12-Jul-23,6727082,"13,646.70",SUPPLIER,ACHIEVE TOGETHER LIMITED,300000020469986
Portsmouth City Council,PCC,Adult Social Care,Learning Disabilty Support Older People (65 - 74),Adult Care,Third Party Payments,Joint authorities,12-Jul-23,6727082,"13,646.70",SUPPLIER,ACHIEVE TOGETHER LIMITED,300000020469986
Portsmouth City Council,PCC,Children's and Education Services,Management and Support Services,Children's Services and Education,Supplies and Services,Grants and subscriptions,04-Jul-23,6725618,"7,800.00",SUPPLIER,ANDREW SIMPSON SAILING FOUNDATION ,300000020476627
Portsmouth City Council,PCC,Children's and Education Services,Management and Support Services,Children's Services and Education,Supplies and Services,Grants and subscriptions,04-Jul-23,335359,"2,400.00",UK SUPPLIER,BASKETBALL 4 BUCKLAND,300000435916986
Portsmouth City Council,PCC,Children's and Education Services,Children Looked After,Children's Services and Education,Third Party Payments,Other establishments,04-Jul-23,6725636,423.72,SUPPLIER,RAINBOW FOSTERING,300000020482345
Portsmouth City Council,PCC,Children's and Education Services,Children Looked After,Children's Services and Education,Third Party Payments,Other establishments,04-Jul-23,6725636,635.58,SUPPLIER,RAINBOW FOSTERING,300000020482345
Portsmouth City Council,PCC,Children's and Education Services,Children Looked After,Children's Services and Education,Third Party Payments,Other establishments,04-Jul-23,6725636,741.51,SUPPLIER,RAINBOW FOSTERING,300000020482345
Portsmouth City Council,PCC,Children's and Education Services,Children Looked After,Children's Services and Education,Third Party Payments,Other establishments,04-Jul-23,6725636,741.51,SUPPLIER,RAINBOW FOSTERING,300000020482345
Portsmouth City Council,PCC,Children's and Education Services,Children Looked After,Children's Services and Education,Third Party Payments,Other establishments,04-Jul-23,6725636,741.51,SUPPLIER,RAINBOW FOSTERING,300000020482345
Portsmouth City Council,PCC,Children's and Education Services,Children Looked After,Children's Services and Education,Third Party Payments,Other establishments,04-Jul-23,6725636,-0.02,SUPPLIER,RAINBOW FOSTERING,300000020482345
Portsmouth City Council,PCC,Children's and Education Services,Children Looked After,Children's Services and Education,Third Party Payments,Other establishments,04-Jul-23,6725636,502.74,SUPPLIER,RAINBOW FOSTERING,300000020482345
Portsmouth City Council,PCC,Children's and Education Services,Children Looked After,Children's Services and Education,Third Party Payments,Other establishments,04-Jul-23,6725636,754.11,SUPPLIER,RAINBOW FOSTERING,300000020482345
Portsmouth City Council,PCC,Children's and Education Services,Children Looked After,Children's Services and Education,Third Party Payments,Other establishments,04-Jul-23,6725636,879.79,SUPPLIER,RAINBOW FOSTERING,300000020482345
Portsmouth City Council,PCC,Children's and Education Services,Children Looked After,Children's Services and Education,Third Party Payments,Other establishments,04-Jul-23,6725636,879.79,SUPPLIER,RAINBOW FOSTERING,300000020482345
Portsmouth City Council,PCC,Children's and Education Services,Children Looked After,Children's Services and Education,Third Party Payments,Other establishments,04-Jul-23,6725636,879.79,SUPPLIER,RAINBOW FOSTERING,300000020482345
Portsmouth City Council,PCC,Children's and Education Services,Children Looked After,Children's Services and Education,Third Party Payments,Other establishments,04-Jul-23,6725636,-0.02,SUPPLIER,RAINBOW FOSTERING,300000020482345
Portsmouth City Council,PCC,Children's and Education Services,Children Looked After,Children's Services and Education,Third Party Payments,Other establishments,04-Jul-23,6725636,502.74,SUPPLIER,RAINBOW FOSTERING,300000020482345
Portsmouth City Council,PCC,Children's and Education Services,Children Looked After,Children's Services and Education,Third Party Payments,Other establishments,04-Jul-23,6725636,754.11,SUPPLIER,RAINBOW FOSTERING,300000020482345
Portsmouth City Council,PCC,Children's and Education Services,Children Looked After,Children's Services and Education,Third Party Payments,Other establishments,04-Jul-23,6725636,879.79,SUPPLIER,RAINBOW FOSTERING,300000020482345
Portsmouth City Council,PCC,Children's and Education Services,Children Looked After,Children's Services and Education,Third Party Payments,Other establishments,04-Jul-23,6725636,879.79,SUPPLIER,RAINBOW FOSTERING,300000020482345
Portsmouth City Council,PCC,Children's and Education Services,Children Looked After,Children's Services and Education,Third Party Payments,Other establishments,04-Jul-23,6725636,879.79,SUPPLIER,RAINBOW FOSTERING,300000020482345
Portsmouth City Council,PCC,Children's and Education Services,Children Looked After,Children's Services and Education,Third Party Payments,Other establishments,04-Jul-23,6725636,-0.02,SUPPLIER,RAINBOW FOSTERING,300000020482345
Portsmouth City Council,PCC,Children's and Education Services,Children Looked After,Children's Services and Education,Third Party Payments,Other establishments,04-Jul-23,6725636,502.74,SUPPLIER,RAINBOW FOSTERING,300000020482345
Portsmouth City Council,PCC,Children's and Education Services,Children Looked After,Children's Services and Education,Third Party Payments,Other establishments,04-Jul-23,6725636,754.11,SUPPLIER,RAINBOW FOSTERING,300000020482345
Portsmouth City Council,PCC,Children's and Education Services,Children Looked After,Children's Services and Education,Third Party Payments,Other establishments,04-Jul-23,6725636,879.79,SUPPLIER,RAINBOW FOSTERING,300000020482345
Portsmouth City Council,PCC,Children's and Education Services,Children Looked After,Children's Services and Education,Third Party Payments,Other establishments,04-Jul-23,6725636,879.79,SUPPLIER,RAINBOW FOSTERING,300000020482345
Portsmouth City Council,PCC,Children's and Education Services,Children Looked After,Children's Services and Education,Third Party Payments,Other establishments,04-Jul-23,6725636,879.79,SUPPLIER,RAINBOW FOSTERING,300000020482345
Portsmouth City Council,PCC,Other,Suspense and Capital Schemes,"Housing, Neighbourhood and Building Services",Supplies and Services,Services,04-Jul-23,6725672,"11,076.58",LIMITED COMPANY,S & J BUILDING SERVICES (UK) LTD,300000118164690
Portsmouth City Council,PCC,Housing Revenue Account,"Rents, Rates, Taxes and Other Charges","Housing, Neighbourhood and Building Services",Premises-Related Expenditure,Rates,25-Jul-23,6729238,143,OTHER LOCAL AUTHORITY,HAVANT BOROUGH COUNCIL,300000020457057
Portsmouth City Council,PCC,Children's and Education Services,Safeguarding Children and Young Peoples Services,Children's Services and Education,Third Party Payments,Other establishments,05-Jul-23,6726147,-872.6,SUPPLIER,LILIAN DAVIS GROUP LTD,300000020467263
Portsmouth City Council,PCC,Children's and Education Services,Safeguarding Children and Young Peoples Services,Children's Services and Education,Third Party Payments,Other establishments,05-Jul-23,6726147,-10,SUPPLIER,LILIAN DAVIS GROUP LTD,300000020467263
Portsmouth City Council,PCC,Children's and Education Services,Safeguarding Children and Young Peoples Services,Children's Services and Education,Third Party Payments,Other establishments,05-Jul-23,6726147,-10,SUPPLIER,LILIAN DAVIS GROUP LTD,300000020467263
Portsmouth City Council,PCC,Children's and Education Services,Safeguarding Children and Young Peoples Services,Children's Services and Education,Third Party Payments,Other establishments,05-Jul-23,6726147,-10,SUPPLIER,LILIAN DAVIS GROUP LTD,300000020467263
Portsmouth City Council,PCC,Children's and Education Services,Safeguarding Children and Young Peoples Services,Children's Services and Education,Third Party Payments,Other establishments,05-Jul-23,6726147,-8.57,SUPPLIER,LILIAN DAVIS GROUP LTD,300000020467263
Portsmouth City Council,PCC,Children's and Education Services,Safeguarding Children and Young Peoples Services,Children's Services and Education,Third Party Payments,Other establishments,05-Jul-23,6726147,-4.29,SUPPLIER,LILIAN DAVIS GROUP LTD,300000020467263
Portsmouth City Council,PCC,Children's and Education Services,Safeguarding Children and Young Peoples Services,Children's Services and Education,Third Party Payments,Other establishments,05-Jul-23,6726147,0.01,SUPPLIER,LILIAN DAVIS GROUP LTD,300000020467263
Portsmouth City Council,PCC,Children's and Education Services,Safeguarding Children and Young Peoples Services,Children's Services and Education,Third Party Payments,Other establishments,05-Jul-23,6726147,32.14,SUPPLIER,LILIAN DAVIS GROUP LTD,300000020467263
Portsmouth City Council,PCC,Children's and Education Services,Safeguarding Children and Young Peoples Services,Children's Services and Education,Third Party Payments,Other establishments,05-Jul-23,6726147,64.29,SUPPLIER,LILIAN DAVIS GROUP LTD,300000020467263
Portsmouth City Council,PCC,Children's and Education Services,Safeguarding Children and Young Peoples Services,Children's Services and Education,Third Party Payments,Other establishments,05-Jul-23,6726147,75,SUPPLIER,LILIAN DAVIS GROUP LTD,300000020467263
Portsmouth City Council,PCC,Children's and Education Services,Safeguarding Children and Young Peoples Services,Children's Services and Education,Third Party Payments,Other establishments,05-Jul-23,6726147,75,SUPPLIER,LILIAN DAVIS GROUP LTD,300000020467263
Portsmouth City Council,PCC,Children's and Education Services,Safeguarding Children and Young Peoples Services,Children's Services and Education,Third Party Payments,Other establishments,05-Jul-23,6726147,75,SUPPLIER,LILIAN DAVIS GROUP LTD,300000020467263
Portsmouth City Council,PCC,Children's and Education Services,Safeguarding Children and Young Peoples Services,Children's Services and Education,Third Party Payments,Other establishments,05-Jul-23,6726147,188.57,SUPPLIER,LILIAN DAVIS GROUP LTD,300000020467263
Portsmouth City Council,PCC,Children's and Education Services,Safeguarding Children and Young Peoples Services,Children's Services and Education,Third Party Payments,Other establishments,05-Jul-23,6726147,377.14,SUPPLIER,LILIAN DAVIS GROUP LTD,300000020467263
Portsmouth City Council,PCC,Children's and Education Services,Safeguarding Children and Young Peoples Services,Children's Services and Education,Third Party Payments,Other establishments,05-Jul-23,6726147,440,SUPPLIER,LILIAN DAVIS GROUP LTD,300000020467263
Portsmouth City Council,PCC,Children's and Education Services,Safeguarding Children and Young Peoples Services,Children's Services and Education,Third Party Payments,Other establishments,05-Jul-23,6726147,440,SUPPLIER,LILIAN DAVIS GROUP LTD,300000020467263
Portsmouth City Council,PCC,Children's and Education Services,Safeguarding Children and Young Peoples Services,Children's Services and Education,Third Party Payments,Other establishments,05-Jul-23,6726147,440,SUPPLIER,LILIAN DAVIS GROUP LTD,300000020467263
Portsmouth City Council,PCC,Children's and Education Services,Safeguarding Children and Young Peoples Services,Children's Services and Education,Third Party Payments,Other establishments,05-Jul-23,6726147,-872.6,SUPPLIER,LILIAN DAVIS GROUP LTD,300000020467263
Portsmouth City Council,PCC,Children's and Education Services,Safeguarding Children and Young Peoples Services,Children's Services and Education,Third Party Payments,Other establishments,05-Jul-23,6726147,-10,SUPPLIER,LILIAN DAVIS GROUP LTD,300000020467263
Portsmouth City Council,PCC,Children's and Education Services,Safeguarding Children and Young Peoples Services,Children's Services and Education,Third Party Payments,Other establishments,05-Jul-23,6726147,-10,SUPPLIER,LILIAN DAVIS GROUP LTD,300000020467263
Portsmouth City Council,PCC,Children's and Education Services,Safeguarding Children and Young Peoples Services,Children's Services and Education,Third Party Payments,Other establishments,05-Jul-23,6726147,-10,SUPPLIER,LILIAN DAVIS GROUP LTD,300000020467263
Portsmouth City Council,PCC,Children's and Education Services,Safeguarding Children and Young Peoples Services,Children's Services and Education,Third Party Payments,Other establishments,05-Jul-23,6726147,-8.57,SUPPLIER,LILIAN DAVIS GROUP LTD,300000020467263
Portsmouth City Council,PCC,Children's and Education Services,Safeguarding Children and Young Peoples Services,Children's Services and Education,Third Party Payments,Other establishments,05-Jul-23,6726147,-4.29,SUPPLIER,LILIAN DAVIS GROUP LTD,300000020467263
Portsmouth City Council,PCC,Children's and Education Services,Safeguarding Children and Young Peoples Services,Children's Services and Education,Third Party Payments,Other establishments,05-Jul-23,6726147,53.57,SUPPLIER,LILIAN DAVIS GROUP LTD,300000020467263
Portsmouth City Council,PCC,Children's and Education Services,Safeguarding Children and Young Peoples Services,Children's Services and Education,Third Party Payments,Other establishments,05-Jul-23,6726147,107.14,SUPPLIER,LILIAN DAVIS GROUP LTD,300000020467263
Portsmouth City Council,PCC,Children's and Education Services,Safeguarding Children and Young Peoples Services,Children's Services and Education,Third Party Payments,Other establishments,05-Jul-23,6726147,125,SUPPLIER,LILIAN DAVIS GROUP LTD,300000020467263
Portsmouth City Council,PCC,Children's and Education Services,Safeguarding Children and Young Peoples Services,Children's Services and Education,Third Party Payments,Other establishments,05-Jul-23,6726147,125,SUPPLIER,LILIAN DAVIS GROUP LTD,300000020467263
Portsmouth City Council,PCC,Children's and Education Services,Safeguarding Children and Young Peoples Services,Children's Services and Education,Third Party Payments,Other establishments,05-Jul-23,6726147,125,SUPPLIER,LILIAN DAVIS GROUP LTD,300000020467263
Portsmouth City Council,PCC,Children's and Education Services,Safeguarding Children and Young Peoples Services,Children's Services and Education,Third Party Payments,Other establishments,05-Jul-23,6726147,166.29,SUPPLIER,LILIAN DAVIS GROUP LTD,300000020467263
Portsmouth City Council,PCC,Children's and Education Services,Safeguarding Children and Young Peoples Services,Children's Services and Education,Third Party Payments,Other establishments,05-Jul-23,6726147,332.57,SUPPLIER,LILIAN DAVIS GROUP LTD,300000020467263
Portsmouth City Council,PCC,Children's and Education Services,Safeguarding Children and Young Peoples Services,Children's Services and Education,Third Party Payments,Other establishments,05-Jul-23,6726147,388,SUPPLIER,LILIAN DAVIS GROUP LTD,300000020467263
Portsmouth City Council,PCC,Children's and Education Services,Safeguarding Children and Young Peoples Services,Children's Services and Education,Third Party Payments,Other establishments,05-Jul-23,6726147,388,SUPPLIER,LILIAN DAVIS GROUP LTD,300000020467263
Portsmouth City Council,PCC,Children's and Education Services,Safeguarding Children and Young Peoples Services,Children's Services and Education,Third Party Payments,Other establishments,05-Jul-23,6726147,388,SUPPLIER,LILIAN DAVIS GROUP LTD,300000020467263
Portsmouth City Council,PCC,Children's and Education Services,Safeguarding Children and Young Peoples Services,Children's Services and Education,Third Party Payments,Other establishments,05-Jul-23,6726147,-941,SUPPLIER,LILIAN DAVIS GROUP LTD,300000020467263
Portsmouth City Council,PCC,Children's and Education Services,Safeguarding Children and Young Peoples Services,Children's Services and Education,Third Party Payments,Other establishments,05-Jul-23,6726147,-10,SUPPLIER,LILIAN DAVIS GROUP LTD,300000020467263
Portsmouth City Council,PCC,Children's and Education Services,Safeguarding Children and Young Peoples Services,Children's Services and Education,Third Party Payments,Other establishments,05-Jul-23,6726147,-10,SUPPLIER,LILIAN DAVIS GROUP LTD,300000020467263
Portsmouth City Council,PCC,Children's and Education Services,Safeguarding Children and Young Peoples Services,Children's Services and Education,Third Party Payments,Other establishments,05-Jul-23,6726147,-10,SUPPLIER,LILIAN DAVIS GROUP LTD,300000020467263
Portsmouth City Council,PCC,Children's and Education Services,Safeguarding Children and Young Peoples Services,Children's Services and Education,Third Party Payments,Other establishments,05-Jul-23,6726147,-8.57,SUPPLIER,LILIAN DAVIS GROUP LTD,300000020467263
Portsmouth City Council,PCC,Children's and Education Services,Safeguarding Children and Young Peoples Services,Children's Services and Education,Third Party Payments,Other establishments,05-Jul-23,6726147,-4.29,SUPPLIER,LILIAN DAVIS GROUP LTD,300000020467263
Portsmouth City Council,PCC,Children's and Education Services,Safeguarding Children and Young Peoples Services,Children's Services and Education,Third Party Payments,Other establishments,05-Jul-23,6726147,0.01,SUPPLIER,LILIAN DAVIS GROUP LTD,300000020467263
Portsmouth City Council,PCC,Children's and Education Services,Safeguarding Children and Young Peoples Services,Children's Services and Education,Third Party Payments,Other establishments,05-Jul-23,6726147,53.57,SUPPLIER,LILIAN DAVIS GROUP LTD,300000020467263
Portsmouth City Council,PCC,Children's and Education Services,Safeguarding Children and Young Peoples Services,Children's Services and Education,Third Party Payments,Other establishments,05-Jul-23,6726147,107.14,SUPPLIER,LILIAN DAVIS GROUP LTD,300000020467263
Portsmouth City Council,PCC,Children's and Education Services,Safeguarding Children and Young Peoples Services,Children's Services and Education,Third Party Payments,Other establishments,05-Jul-23,6726147,125,SUPPLIER,LILIAN DAVIS GROUP LTD,300000020467263
Portsmouth City Council,PCC,Children's and Education Services,Safeguarding Children and Young Peoples Services,Children's Services and Education,Third Party Payments,Other establishments,05-Jul-23,6726147,125,SUPPLIER,LILIAN DAVIS GROUP LTD,300000020467263
Portsmouth City Council,PCC,Children's and Education Services,Safeguarding Children and Young Peoples Services,Children's Services and Education,Third Party Payments,Other establishments,05-Jul-23,6726147,125,SUPPLIER,LILIAN DAVIS GROUP LTD,300000020467263
Portsmouth City Council,PCC,Children's and Education Services,Safeguarding Children and Young Peoples Services,Children's Services and Education,Third Party Payments,Other establishments,05-Jul-23,6726147,165,SUPPLIER,LILIAN DAVIS GROUP LTD,300000020467263
Portsmouth City Council,PCC,Children's and Education Services,Safeguarding Children and Young Peoples Services,Children's Services and Education,Third Party Payments,Other establishments,05-Jul-23,6726147,330,SUPPLIER,LILIAN DAVIS GROUP LTD,300000020467263
Portsmouth City Council,PCC,Children's and Education Services,Safeguarding Children and Young Peoples Services,Children's Services and Education,Third Party Payments,Other establishments,05-Jul-23,6726147,385,SUPPLIER,LILIAN DAVIS GROUP LTD,300000020467263
Portsmouth City Council,PCC,Children's and Education Services,Safeguarding Children and Young Peoples Services,Children's Services and Education,Third Party Payments,Other establishments,05-Jul-23,6726147,385,SUPPLIER,LILIAN DAVIS GROUP LTD,300000020467263
Portsmouth City Council,PCC,Children's and Education Services,Safeguarding Children and Young Peoples Services,Children's Services and Education,Third Party Payments,Other establishments,05-Jul-23,6726147,385,SUPPLIER,LILIAN DAVIS GROUP LTD,300000020467263
Portsmouth City Council,PCC,Children's and Education Services,Children Looked After,Children's Services and Education,Third Party Payments,Other establishments,10-Jul-23,6726729,"1,560.00",SUPPLIER,CHANCES GIVE CHOICES,300000020476136
Portsmouth City Council,PCC,Housing Revenue Account,Special Services,"Housing, Neighbourhood and Building Services",Premises-Related Expenditure,Energy costs,13-Jul-23,6727571,54.03,LIMITED COMPANY,GAZPROM MARKETING AND TRADING LTD,300000250807105
Portsmouth City Council,PCC,Housing Revenue Account,Special Services,"Housing, Neighbourhood and Building Services",Premises-Related Expenditure,Energy costs,13-Jul-23,6727571,13.69,LIMITED COMPANY,GAZPROM MARKETING AND TRADING LTD,300000250807105
Portsmouth City Council,PCC,Costs below Net Cost of Services,Trading,Regeneration,Premises-Related Expenditure,Energy costs,11-Jul-23,6726778,"22,951.93",LIMITED COMPANY,GAZPROM MARKETING AND TRADING LTD,300000250807105
Portsmouth City Council,PCC,Housing Revenue Account,Special Services,"Housing, Neighbourhood and Building Services",Premises-Related Expenditure,Energy costs,13-Jul-23,6727571,684.27,LIMITED COMPANY,GAZPROM MARKETING AND TRADING LTD,300000250807105
Portsmouth City Council,PCC,Children's and Education Services,Other Education and Community Budget,Regeneration,Premises-Related Expenditure,Energy costs,13-Jul-23,6727571,146.43,LIMITED COMPANY,GAZPROM MARKETING AND TRADING LTD,300000250807105
Portsmouth City Council,PCC,Housing Revenue Account,Special Services,"Housing, Neighbourhood and Building Services",Premises-Related Expenditure,Energy costs,13-Jul-23,6727571,124.23,LIMITED COMPANY,GAZPROM MARKETING AND TRADING LTD,300000250807105
Portsmouth City Council,PCC,Housing Services,Homelessness,"Housing, Neighbourhood and Building Services",Premises-Related Expenditure,Energy costs,13-Jul-23,6727571,50.7,LIMITED COMPANY,GAZPROM MARKETING AND TRADING LTD,300000250807105
Portsmouth City Council,PCC,Housing Revenue Account,Special Services,"Housing, Neighbourhood and Building Services",Premises-Related Expenditure,Energy costs,13-Jul-23,6727571,15.75,LIMITED COMPANY,GAZPROM MARKETING AND TRADING LTD,300000250807105
Portsmouth City Council,PCC,Adult Social Care,Learning Disabilty Support Older People (65 - 74),Adult Care,Third Party Payments,Joint authorities,12-Jul-23,6727082,"14,101.59",SUPPLIER,ACHIEVE TOGETHER LIMITED,300000020469986
Portsmouth City Council,PCC,Housing Revenue Account,Special Services,"Housing, Neighbourhood and Building Services",Premises-Related Expenditure,Energy costs,13-Jul-23,6727571,100.14,LIMITED COMPANY,GAZPROM MARKETING AND TRADING LTD,300000250807105
Portsmouth City Council,PCC,Children's and Education Services,Primary Schools,Children's Services and Education,Premises-Related Expenditure,Energy costs,13-Jul-23,6727571,129.61,LIMITED COMPANY,GAZPROM MARKETING AND TRADING LTD,300000250807105
Portsmouth City Council,PCC,Other,Suspense and Capital Schemes,"Housing, Neighbourhood and Building Services",Premises-Related Expenditure,Energy costs,13-Jul-23,6727571,28.54,LIMITED COMPANY,GAZPROM MARKETING AND TRADING LTD,300000250807105
Portsmouth City Council,PCC,Adult Social Care,Learning Disabilty Support Older People (65 - 74),Adult Care,Third Party Payments,Joint authorities,12-Jul-23,6727082,"14,101.59",SUPPLIER,ACHIEVE TOGETHER LIMITED,300000020469986
Portsmouth City Council,PCC,Children's and Education Services,Children Looked After,Children's Services and Education,Premises-Related Expenditure,Energy costs,13-Jul-23,6727571,144.38,LIMITED COMPANY,GAZPROM MARKETING AND TRADING LTD,300000250807105
Portsmouth City Council,PCC,Housing Revenue Account,Special Services,"Housing, Neighbourhood and Building Services",Premises-Related Expenditure,Energy costs,13-Jul-23,6727571,201.22,LIMITED COMPANY,GAZPROM MARKETING AND TRADING LTD,300000250807105
Portsmouth City Council,PCC,Environmental and Regulatory Services,"Cemetery, Cremation and Mortuary Services","Culture, Leisure & Regulatory Services",Premises-Related Expenditure,Energy costs,13-Jul-23,6727571,141.77,LIMITED COMPANY,GAZPROM MARKETING AND TRADING LTD,300000250807105
Portsmouth City Council,PCC,Cultural and Related Services,Library Service,"Culture, Leisure & Regulatory Services",Premises-Related Expenditure,Energy costs,13-Jul-23,6727571,88.82,LIMITED COMPANY,GAZPROM MARKETING AND TRADING LTD,300000250807105
Portsmouth City Council,PCC,Children's and Education Services,Children Looked After,Children's Services and Education,Premises-Related Expenditure,Energy costs,13-Jul-23,6727571,170.72,LIMITED COMPANY,GAZPROM MARKETING AND TRADING LTD,300000250807105
Portsmouth City Council,PCC,Costs below Net Cost of Services,Trading,Regeneration,Premises-Related Expenditure,Energy costs,13-Jul-23,6727571,6.32,LIMITED COMPANY,GAZPROM MARKETING AND TRADING LTD,300000250807105
Portsmouth City Council,PCC,Cultural and Related Services,Library Service,"Culture, Leisure & Regulatory Services",Premises-Related Expenditure,Energy costs,13-Jul-23,6727571,40.18,LIMITED COMPANY,GAZPROM MARKETING AND TRADING LTD,300000250807105
Portsmouth City Council,PCC,Housing Revenue Account,Special Services,"Housing, Neighbourhood and Building Services",Premises-Related Expenditure,Energy costs,13-Jul-23,6727571,295.19,LIMITED COMPANY,GAZPROM MARKETING AND TRADING LTD,300000250807105
Portsmouth City Council,PCC,Housing Revenue Account,Special Services,"Housing, Neighbourhood and Building Services",Premises-Related Expenditure,Energy costs,13-Jul-23,6727571,195.47,LIMITED COMPANY,GAZPROM MARKETING AND TRADING LTD,300000250807105
Portsmouth City Council,PCC,Housing Revenue Account,Special Services,"Housing, Neighbourhood and Building Services",Premises-Related Expenditure,Energy costs,13-Jul-23,6727571,142.1,LIMITED COMPANY,GAZPROM MARKETING AND TRADING LTD,300000250807105
Portsmouth City Council,PCC,Cultural and Related Services,Recreation and Sport,"Culture, Leisure & Regulatory Services",Premises-Related Expenditure,Energy costs,13-Jul-23,6727571,117.96,LIMITED COMPANY,GAZPROM MARKETING AND TRADING LTD,300000250807105
Portsmouth City Council,PCC,Housing Revenue Account,Special Services,"Housing, Neighbourhood and Building Services",Premises-Related Expenditure,Energy costs,13-Jul-23,6727571,92.04,LIMITED COMPANY,GAZPROM MARKETING AND TRADING LTD,300000250807105
Portsmouth City Council,PCC,Housing Revenue Account,Supervision and Management,"Housing, Neighbourhood and Building Services",Premises-Related Expenditure,Energy costs,13-Jul-23,6727571,142.94,LIMITED COMPANY,GAZPROM MARKETING AND TRADING LTD,300000250807105
Portsmouth City Council,PCC,Housing Revenue Account,Special Services,"Housing, Neighbourhood and Building Services",Premises-Related Expenditure,Energy costs,13-Jul-23,6727571,31.89,LIMITED COMPANY,GAZPROM MARKETING AND TRADING LTD,300000250807105
Portsmouth City Council,PCC,Children's and Education Services,Primary Schools,Children's Services and Education,Premises-Related Expenditure,Energy costs,13-Jul-23,6727571,62.77,LIMITED COMPANY,GAZPROM MARKETING AND TRADING LTD,300000250807105
Portsmouth City Council,PCC,Housing Revenue Account,Special Services,"Housing, Neighbourhood and Building Services",Premises-Related Expenditure,Energy costs,13-Jul-23,6727571,87.91,LIMITED COMPANY,GAZPROM MARKETING AND TRADING LTD,300000250807105
Portsmouth City Council,PCC,Children's and Education Services,Primary Schools,Children's Services and Education,Premises-Related Expenditure,Energy costs,13-Jul-23,6727571,446.75,LIMITED COMPANY,GAZPROM MARKETING AND TRADING LTD,300000250807105
Portsmouth City Council,PCC,Children's and Education Services,Primary Schools,Children's Services and Education,Premises-Related Expenditure,Energy costs,13-Jul-23,6727571,30.06,LIMITED COMPANY,GAZPROM MARKETING AND TRADING LTD,300000250807105
Portsmouth City Council,PCC,Housing Revenue Account,Special Services,"Housing, Neighbourhood and Building Services",Premises-Related Expenditure,Energy costs,13-Jul-23,6727571,23.93,LIMITED COMPANY,GAZPROM MARKETING AND TRADING LTD,300000250807105
Portsmouth City Council,PCC,Housing Revenue Account,Special Services,"Housing, Neighbourhood and Building Services",Premises-Related Expenditure,Energy costs,13-Jul-23,6727571,95.74,LIMITED COMPANY,GAZPROM MARKETING AND TRADING LTD,300000250807105
Portsmouth City Council,PCC,Housing Revenue Account,Special Services,"Housing, Neighbourhood and Building Services",Premises-Related Expenditure,Energy costs,13-Jul-23,6727571,77.85,LIMITED COMPANY,GAZPROM MARKETING AND TRADING LTD,300000250807105
Portsmouth City Council,PCC,Housing Revenue Account,Special Services,"Housing, Neighbourhood and Building Services",Premises-Related Expenditure,Energy costs,13-Jul-23,6727571,84.52,LIMITED COMPANY,GAZPROM MARKETING AND TRADING LTD,300000250807105
Portsmouth City Council,PCC,Housing Revenue Account,Special Services,"Housing, Neighbourhood and Building Services",Premises-Related Expenditure,Energy costs,13-Jul-23,6727571,90.75,LIMITED COMPANY,GAZPROM MARKETING AND TRADING LTD,300000250807105
Portsmouth City Council,PCC,Housing Revenue Account,Special Services,"Housing, Neighbourhood and Building Services",Premises-Related Expenditure,Energy costs,13-Jul-23,6727571,141.94,LIMITED COMPANY,GAZPROM MARKETING AND TRADING LTD,300000250807105
Portsmouth City Council,PCC,Housing Revenue Account,Special Services,"Housing, Neighbourhood and Building Services",Premises-Related Expenditure,Energy costs,13-Jul-23,6727571,289.91,LIMITED COMPANY,GAZPROM MARKETING AND TRADING LTD,300000250807105
Portsmouth City Council,PCC,Housing Revenue Account,Special Services,"Housing, Neighbourhood and Building Services",Premises-Related Expenditure,Energy costs,13-Jul-23,6727571,219.62,LIMITED COMPANY,GAZPROM MARKETING AND TRADING LTD,300000250807105
Portsmouth City Council,PCC,Housing Services,Homelessness,"Housing, Neighbourhood and Building Services",Premises-Related Expenditure,Energy costs,13-Jul-23,6727571,69.99,LIMITED COMPANY,GAZPROM MARKETING AND TRADING LTD,300000250807105
Portsmouth City Council,PCC,Housing Services,Homelessness,"Housing, Neighbourhood and Building Services",Premises-Related Expenditure,Energy costs,13-Jul-23,6727571,120.11,LIMITED COMPANY,GAZPROM MARKETING AND TRADING LTD,300000250807105
Portsmouth City Council,PCC,Children's and Education Services,Primary Schools,Children's Services and Education,Premises-Related Expenditure,Energy costs,13-Jul-23,6727571,52.69,LIMITED COMPANY,GAZPROM MARKETING AND TRADING LTD,300000250807105
Portsmouth City Council,PCC,Children's and Education Services,Primary Schools,Children's Services and Education,Premises-Related Expenditure,Energy costs,13-Jul-23,6727571,290.57,LIMITED COMPANY,GAZPROM MARKETING AND TRADING LTD,300000250807105
Portsmouth City Council,PCC,Children's and Education Services,Primary Schools,Children's Services and Education,Premises-Related Expenditure,Energy costs,13-Jul-23,6727571,31.68,LIMITED COMPANY,GAZPROM MARKETING AND TRADING LTD,300000250807105
Portsmouth City Council,PCC,Children's and Education Services,Other Children and Family Services,Children's Services and Education,Premises-Related Expenditure,Energy costs,13-Jul-23,6727571,173.43,LIMITED COMPANY,GAZPROM MARKETING AND TRADING LTD,300000250807105
Portsmouth City Council,PCC,Housing Revenue Account,Special Services,"Housing, Neighbourhood and Building Services",Premises-Related Expenditure,Energy costs,13-Jul-23,6727571,197.67,LIMITED COMPANY,GAZPROM MARKETING AND TRADING LTD,300000250807105
Portsmouth City Council,PCC,Housing Services,Homelessness,"Housing, Neighbourhood and Building Services",Premises-Related Expenditure,Energy costs,13-Jul-23,6727571,94.68,LIMITED COMPANY,GAZPROM MARKETING AND TRADING LTD,300000250807105
Portsmouth City Council,PCC,Housing Services,Homelessness,"Housing, Neighbourhood and Building Services",Premises-Related Expenditure,Energy costs,13-Jul-23,6727571,101.37,LIMITED COMPANY,GAZPROM MARKETING AND TRADING LTD,300000250807105
Portsmouth City Council,PCC,Housing Revenue Account,Special Services,"Housing, Neighbourhood and Building Services",Premises-Related Expenditure,Energy costs,13-Jul-23,6727571,230.16,LIMITED COMPANY,GAZPROM MARKETING AND TRADING LTD,300000250807105
Portsmouth City Council,PCC,Housing Revenue Account,Special Services,"Housing, Neighbourhood and Building Services",Premises-Related Expenditure,Energy costs,13-Jul-23,6727571,301.9,LIMITED COMPANY,GAZPROM MARKETING AND TRADING LTD,300000250807105
Portsmouth City Council,PCC,Housing Revenue Account,Special Services,"Housing, Neighbourhood and Building Services",Premises-Related Expenditure,Energy costs,13-Jul-23,6727571,36.8,LIMITED COMPANY,GAZPROM MARKETING AND TRADING LTD,300000250807105
Portsmouth City Council,PCC,Housing Revenue Account,Special Services,"Housing, Neighbourhood and Building Services",Premises-Related Expenditure,Energy costs,13-Jul-23,6727571,150.81,LIMITED COMPANY,GAZPROM MARKETING AND TRADING LTD,300000250807105
Portsmouth City Council,PCC,Housing Revenue Account,Special Services,"Housing, Neighbourhood and Building Services",Premises-Related Expenditure,Energy costs,13-Jul-23,6727571,149.56,LIMITED COMPANY,GAZPROM MARKETING AND TRADING LTD,300000250807105
Portsmouth City Council,PCC,Highways and Transport Services,"Airports, Harbours and Toll Facilities",Portsmouth International Port,Premises-Related Expenditure,Energy costs,13-Jul-23,6727571,132.86,LIMITED COMPANY,GAZPROM MARKETING AND TRADING LTD,300000250807105
Portsmouth City Council,PCC,Other,Suspense and Capital Schemes,Portsmouth International Port,Premises-Related Expenditure,Energy costs,13-Jul-23,6727571,234.59,LIMITED COMPANY,GAZPROM MARKETING AND TRADING LTD,300000250807105
Portsmouth City Council,PCC,Housing Revenue Account,Special Services,"Housing, Neighbourhood and Building Services",Premises-Related Expenditure,Energy costs,13-Jul-23,6727571,41.13,LIMITED COMPANY,GAZPROM MARKETING AND TRADING LTD,300000250807105
Portsmouth City Council,PCC,Housing Revenue Account,Special Services,"Housing, Neighbourhood and Building Services",Premises-Related Expenditure,Energy costs,13-Jul-23,6727571,92.97,LIMITED COMPANY,GAZPROM MARKETING AND TRADING LTD,300000250807105
Portsmouth City Council,PCC,Children's and Education Services,Primary Schools,Children's Services and Education,Premises-Related Expenditure,Energy costs,13-Jul-23,6727571,221.43,LIMITED COMPANY,GAZPROM MARKETING AND TRADING LTD,300000250807105
Portsmouth City Council,PCC,Children's and Education Services,Primary Schools,Children's Services and Education,Premises-Related Expenditure,Energy costs,13-Jul-23,6727571,93.77,LIMITED COMPANY,GAZPROM MARKETING AND TRADING LTD,300000250807105
Portsmouth City Council,PCC,Children's and Education Services,Primary Schools,Children's Services and Education,Premises-Related Expenditure,Energy costs,13-Jul-23,6727571,442.25,LIMITED COMPANY,GAZPROM MARKETING AND TRADING LTD,300000250807105
Portsmouth City Council,PCC,Children's and Education Services,Primary Schools,Children's Services and Education,Premises-Related Expenditure,Energy costs,13-Jul-23,6727571,597.65,LIMITED COMPANY,GAZPROM MARKETING AND TRADING LTD,300000250807105
Portsmouth City Council,PCC,Cultural and Related Services,Library Service,"Culture, Leisure & Regulatory Services",Premises-Related Expenditure,Energy costs,13-Jul-23,6727571,146.16,LIMITED COMPANY,GAZPROM MARKETING AND TRADING LTD,300000250807105
Portsmouth City Council,PCC,Children's and Education Services,Family Support Services,Children's Services and Education,Premises-Related Expenditure,Energy costs,13-Jul-23,6727571,377.3,LIMITED COMPANY,GAZPROM MARKETING AND TRADING LTD,300000250807105
Portsmouth City Council,PCC,Housing Revenue Account,Special Services,"Housing, Neighbourhood and Building Services",Premises-Related Expenditure,Energy costs,13-Jul-23,6727571,262.34,LIMITED COMPANY,GAZPROM MARKETING AND TRADING LTD,300000250807105
Portsmouth City Council,PCC,Housing Revenue Account,Special Services,"Housing, Neighbourhood and Building Services",Premises-Related Expenditure,Energy costs,13-Jul-23,6727571,204.26,LIMITED COMPANY,GAZPROM MARKETING AND TRADING LTD,300000250807105
Portsmouth City Council,PCC,Adult Social Care,Learning Disability Support Adults (18 - 64),Adult Care,Third Party Payments,Other establishments,12-Jul-23,6727082,"15,082.12",SUPPLIER,ACHIEVE TOGETHER LIMITED,300000020469986
Portsmouth City Council,PCC,Central Services,"Registration of Births, Deaths and Marriages","Culture, Leisure & Regulatory Services",Premises-Related Expenditure,Energy costs,13-Jul-23,6727571,130.04,LIMITED COMPANY,GAZPROM MARKETING AND TRADING LTD,300000250807105
Portsmouth City Council,PCC,Children's and Education Services,Primary Schools,Children's Services and Education,Premises-Related Expenditure,Energy costs,13-Jul-23,6727571,533.11,LIMITED COMPANY,GAZPROM MARKETING AND TRADING LTD,300000250807105
Portsmouth City Council,PCC,Other,Suspense and Capital Schemes,"Housing, Neighbourhood and Building Services",Premises-Related Expenditure,Energy costs,13-Jul-23,6727571,"1,474.62",LIMITED COMPANY,GAZPROM MARKETING AND TRADING LTD,300000250807105
Portsmouth City Council,PCC,Other,Suspense and Capital Schemes,Capital - Housing General Fund,Capital Charges,Capital Expenditure (WIP),13-Jul-23,6727571,17.48,LIMITED COMPANY,GAZPROM MARKETING AND TRADING LTD,300000250807105
Portsmouth City Council,PCC,Housing Revenue Account,Special Services,"Housing, Neighbourhood and Building Services",Premises-Related Expenditure,Energy costs,13-Jul-23,6727571,97.81,LIMITED COMPANY,GAZPROM MARKETING AND TRADING LTD,300000250807105
Portsmouth City Council,PCC,Children's and Education Services,Primary Schools,Children's Services and Education,Premises-Related Expenditure,Energy costs,13-Jul-23,6727571,178.45,LIMITED COMPANY,GAZPROM MARKETING AND TRADING LTD,300000250807105
Portsmouth City Council,PCC,Costs below Net Cost of Services,Trading,Regeneration,Premises-Related Expenditure,Energy costs,13-Jul-23,6727571,99.65,LIMITED COMPANY,GAZPROM MARKETING AND TRADING LTD,300000250807105
Portsmouth City Council,PCC,Housing Revenue Account,Special Services,"Housing, Neighbourhood and Building Services",Premises-Related Expenditure,Energy costs,13-Jul-23,6727571,128.51,LIMITED COMPANY,GAZPROM MARKETING AND TRADING LTD,300000250807105
Portsmouth City Council,PCC,Children's and Education Services,Family Support Services,Children's Services and Education,Premises-Related Expenditure,Energy costs,13-Jul-23,6727571,372.85,LIMITED COMPANY,GAZPROM MARKETING AND TRADING LTD,300000250807105
Portsmouth City Council,PCC,Children's and Education Services,Primary Schools,Children's Services and Education,Premises-Related Expenditure,Energy costs,13-Jul-23,6727571,"1,229.65",LIMITED COMPANY,GAZPROM MARKETING AND TRADING LTD,300000250807105
Portsmouth City Council,PCC,Children's and Education Services,Primary Schools,Children's Services and Education,Premises-Related Expenditure,Energy costs,13-Jul-23,6727571,21.91,LIMITED COMPANY,GAZPROM MARKETING AND TRADING LTD,300000250807105
Portsmouth City Council,PCC,Children's and Education Services,Primary Schools,Children's Services and Education,Premises-Related Expenditure,Energy costs,13-Jul-23,6727571,241.02,LIMITED COMPANY,GAZPROM MARKETING AND TRADING LTD,300000250807105
Portsmouth City Council,PCC,Children's and Education Services,Primary Schools,Children's Services and Education,Premises-Related Expenditure,Energy costs,13-Jul-23,6727571,215.5,LIMITED COMPANY,GAZPROM MARKETING AND TRADING LTD,300000250807105
Portsmouth City Council,PCC,Children's and Education Services,Primary Schools,Children's Services and Education,Premises-Related Expenditure,Energy costs,13-Jul-23,6727571,34.07,LIMITED COMPANY,GAZPROM MARKETING AND TRADING LTD,300000250807105
Portsmouth City Council,PCC,Planning Services,Business support,Regeneration,Premises-Related Expenditure,Energy costs,13-Jul-23,6727571,432.94,LIMITED COMPANY,GAZPROM MARKETING AND TRADING LTD,300000250807105
Portsmouth City Council,PCC,Children's and Education Services,Children Looked After,Children's Services and Education,Premises-Related Expenditure,Energy costs,13-Jul-23,6727571,451.25,LIMITED COMPANY,GAZPROM MARKETING AND TRADING LTD,300000250807105
Portsmouth City Council,PCC,Housing Revenue Account,Supervision and Management,"Housing, Neighbourhood and Building Services",Premises-Related Expenditure,Energy costs,13-Jul-23,6727571,108.62,LIMITED COMPANY,GAZPROM MARKETING AND TRADING LTD,300000250807105
Portsmouth City Council,PCC,Cultural and Related Services,Library Service,"Culture, Leisure & Regulatory Services",Premises-Related Expenditure,Energy costs,13-Jul-23,6727571,"2,748.93",LIMITED COMPANY,GAZPROM MARKETING AND TRADING LTD,300000250807105
Portsmouth City Council,PCC,Housing Revenue Account,Special Services,"Housing, Neighbourhood and Building Services",Premises-Related Expenditure,Energy costs,13-Jul-23,6727571,75.4,LIMITED COMPANY,GAZPROM MARKETING AND TRADING LTD,300000250807105
Portsmouth City Council,PCC,Housing Revenue Account,Special Services,"Housing, Neighbourhood and Building Services",Premises-Related Expenditure,Energy costs,13-Jul-23,6727571,89.12,LIMITED COMPANY,GAZPROM MARKETING AND TRADING LTD,300000250807105
Portsmouth City Council,PCC,Housing Revenue Account,Special Services,"Housing, Neighbourhood and Building Services",Premises-Related Expenditure,Energy costs,13-Jul-23,6727571,49.57,LIMITED COMPANY,GAZPROM MARKETING AND TRADING LTD,300000250807105
Portsmouth City Council,PCC,Housing Revenue Account,Special Services,"Housing, Neighbourhood and Building Services",Premises-Related Expenditure,CRC Allowances,13-Jul-23,6727571,11.54,LIMITED COMPANY,GAZPROM MARKETING AND TRADING LTD,300000250807105
Portsmouth City Council,PCC,Housing Revenue Account,Special Services,"Housing, Neighbourhood and Building Services",Premises-Related Expenditure,CRC Allowances,13-Jul-23,6727571,129.25,LIMITED COMPANY,GAZPROM MARKETING AND TRADING LTD,300000250807105
Portsmouth City Council,PCC,Housing Revenue Account,Special Services,"Housing, Neighbourhood and Building Services",Premises-Related Expenditure,Energy costs,13-Jul-23,6727571,27.02,LIMITED COMPANY,GAZPROM MARKETING AND TRADING LTD,300000250807105
Portsmouth City Council,PCC,Housing Revenue Account,Special Services,"Housing, Neighbourhood and Building Services",Premises-Related Expenditure,CRC Allowances,13-Jul-23,6727571,44.72,LIMITED COMPANY,GAZPROM MARKETING AND TRADING LTD,300000250807105
Portsmouth City Council,PCC,Housing Revenue Account,Special Services,"Housing, Neighbourhood and Building Services",Premises-Related Expenditure,Energy costs,11-Jul-23,6726778,"21,867.02",LIMITED COMPANY,GAZPROM MARKETING AND TRADING LTD,300000250807105
Portsmouth City Council,PCC,Housing Revenue Account,Special Services,"Housing, Neighbourhood and Building Services",Premises-Related Expenditure,Energy costs,13-Jul-23,6727571,20.1,LIMITED COMPANY,GAZPROM MARKETING AND TRADING LTD,300000250807105
Portsmouth City Council,PCC,Housing Revenue Account,Special Services,"Housing, Neighbourhood and Building Services",Premises-Related Expenditure,Energy costs,13-Jul-23,6727571,15.75,LIMITED COMPANY,GAZPROM MARKETING AND TRADING LTD,300000250807105
Portsmouth City Council,PCC,Support Service / Transparency Costs Unallocated,AMS,Corporate Services,Premises-Related Expenditure,Energy costs,13-Jul-23,6727571,"10,843.08",LIMITED COMPANY,GAZPROM MARKETING AND TRADING LTD,300000250807105
Portsmouth City Council,PCC,Housing Revenue Account,Special Services,"Housing, Neighbourhood and Building Services",Premises-Related Expenditure,Energy costs,13-Jul-23,6727571,944.75,LIMITED COMPANY,GAZPROM MARKETING AND TRADING LTD,300000250807105
Portsmouth City Council,PCC,Cultural and Related Services,Recreation and Sport,"Culture, Leisure & Regulatory Services",Premises-Related Expenditure,Energy costs,13-Jul-23,6727571,"18,592.11",LIMITED COMPANY,GAZPROM MARKETING AND TRADING LTD,300000250807105
Portsmouth City Council,PCC,Housing Revenue Account,Special Services,"Housing, Neighbourhood and Building Services",Premises-Related Expenditure,Energy costs,13-Jul-23,6727571,"1,050.67",LIMITED COMPANY,GAZPROM MARKETING AND TRADING LTD,300000250807105
Portsmouth City Council,PCC,Planning Services,Business support,Regeneration,Premises-Related Expenditure,Energy costs,13-Jul-23,6727571,222.61,LIMITED COMPANY,GAZPROM MARKETING AND TRADING LTD,300000250807105
Portsmouth City Council,PCC,Housing Revenue Account,Special Services,"Housing, Neighbourhood and Building Services",Premises-Related Expenditure,Energy costs,13-Jul-23,6727571,523.45,LIMITED COMPANY,GAZPROM MARKETING AND TRADING LTD,300000250807105
Portsmouth City Council,PCC,Children's and Education Services,Primary Schools,Children's Services and Education,Premises-Related Expenditure,Energy costs,13-Jul-23,6727571,144.1,LIMITED COMPANY,GAZPROM MARKETING AND TRADING LTD,300000250807105
Portsmouth City Council,PCC,Housing Revenue Account,Special Services,"Housing, Neighbourhood and Building Services",Premises-Related Expenditure,Energy costs,13-Jul-23,6727571,48.66,LIMITED COMPANY,GAZPROM MARKETING AND TRADING LTD,300000250807105
Portsmouth City Council,PCC,Children's and Education Services,Primary Schools,Children's Services and Education,Premises-Related Expenditure,Energy costs,13-Jul-23,6727571,329.83,LIMITED COMPANY,GAZPROM MARKETING AND TRADING LTD,300000250807105
Portsmouth City Council,PCC,Children's and Education Services,Secondary Schools,Children's Services and Education,Premises-Related Expenditure,Energy costs,13-Jul-23,6727571,693.96,LIMITED COMPANY,GAZPROM MARKETING AND TRADING LTD,300000250807105
Portsmouth City Council,PCC,Housing Revenue Account,Special Services,"Housing, Neighbourhood and Building Services",Premises-Related Expenditure,Energy costs,13-Jul-23,6727571,"1,554.35",LIMITED COMPANY,GAZPROM MARKETING AND TRADING LTD,300000250807105
Portsmouth City Council,PCC,Cultural and Related Services,Culture and Heritage,"Culture, Leisure & Regulatory Services",Premises-Related Expenditure,Energy costs,13-Jul-23,6727571,539.34,LIMITED COMPANY,GAZPROM MARKETING AND TRADING LTD,300000250807105
Portsmouth City Council,PCC,Housing Revenue Account,Special Services,"Housing, Neighbourhood and Building Services",Premises-Related Expenditure,Energy costs,13-Jul-23,6727571,145.23,LIMITED COMPANY,GAZPROM MARKETING AND TRADING LTD,300000250807105
Portsmouth City Council,PCC,Cultural and Related Services,Culture and Heritage,"Culture, Leisure & Regulatory Services",Premises-Related Expenditure,Energy costs,13-Jul-23,6727571,111.96,LIMITED COMPANY,GAZPROM MARKETING AND TRADING LTD,300000250807105
Portsmouth City Council,PCC,Housing Revenue Account,Special Services,"Housing, Neighbourhood and Building Services",Premises-Related Expenditure,Energy costs,13-Jul-23,6727571,273.48,LIMITED COMPANY,GAZPROM MARKETING AND TRADING LTD,300000250807105
Portsmouth City Council,PCC,Housing Revenue Account,Special Services,"Housing, Neighbourhood and Building Services",Premises-Related Expenditure,Energy costs,13-Jul-23,6727571,216.95,LIMITED COMPANY,GAZPROM MARKETING AND TRADING LTD,300000250807105
Portsmouth City Council,PCC,Housing Revenue Account,Supervision and Management,"Housing, Neighbourhood and Building Services",Premises-Related Expenditure,Energy costs,13-Jul-23,6727571,149.74,LIMITED COMPANY,GAZPROM MARKETING AND TRADING LTD,300000250807105
Portsmouth City Council,PCC,Highways and Transport Services,"Airports, Harbours and Toll Facilities",Portsmouth International Port,Premises-Related Expenditure,Energy costs,13-Jul-23,6727571,43.02,LIMITED COMPANY,GAZPROM MARKETING AND TRADING LTD,300000250807105
Portsmouth City Council,PCC,Cultural and Related Services,Open Spaces,"Culture, Leisure & Regulatory Services",Premises-Related Expenditure,Energy costs,13-Jul-23,6727571,255.33,LIMITED COMPANY,GAZPROM MARKETING AND TRADING LTD,300000250807105
Portsmouth City Council,PCC,Children's and Education Services,Children Looked After,Children's Services and Education,Premises-Related Expenditure,Energy costs,13-Jul-23,6727571,275.99,LIMITED COMPANY,GAZPROM MARKETING AND TRADING LTD,300000250807105
Portsmouth City Council,PCC,Housing Revenue Account,Supervision and Management,"Housing, Neighbourhood and Building Services",Premises-Related Expenditure,Energy costs,13-Jul-23,6727571,52.91,LIMITED COMPANY,GAZPROM MARKETING AND TRADING LTD,300000250807105
Portsmouth City Council,PCC,Adult Social Care,Learning Disabilty Support Older People (65 - 74),Adult Care,Third Party Payments,Joint authorities,25-Jul-23,6729373,478.29,SUPPLIER,ACHIEVE TOGETHER LIMITED,300000020469986
Portsmouth City Council,PCC,Adult Social Care,Learning Disability Support Adults (18 - 64),Adult Care,Third Party Payments,Other establishments,25-Jul-23,6729373,772.43,SUPPLIER,ACHIEVE TOGETHER LIMITED,300000020469986
Portsmouth City Council,PCC,Adult Social Care,Learning Disability Support Adults (18 - 64),Adult Care,Third Party Payments,Other establishments,25-Jul-23,6729373,772.43,SUPPLIER,ACHIEVE TOGETHER LIMITED,300000020469986
Portsmouth City Council,PCC,Housing Revenue Account,Supervision and Management,"Housing, Neighbourhood and Building Services",Premises-Related Expenditure,Energy costs,13-Jul-23,6727571,468.87,LIMITED COMPANY,GAZPROM MARKETING AND TRADING LTD,300000250807105
Portsmouth City Council,PCC,Housing Revenue Account,Special Services,"Housing, Neighbourhood and Building Services",Premises-Related Expenditure,Energy costs,13-Jul-23,6727571,452.93,LIMITED COMPANY,GAZPROM MARKETING AND TRADING LTD,300000250807105
Portsmouth City Council,PCC,Housing Revenue Account,Special Services,"Housing, Neighbourhood and Building Services",Premises-Related Expenditure,Energy costs,13-Jul-23,6727571,15.75,LIMITED COMPANY,GAZPROM MARKETING AND TRADING LTD,300000250807105
Portsmouth City Council,PCC,Adult Social Care,Learning Disability Support Adults (18 - 64),Adult Care,Third Party Payments,Other establishments,25-Jul-23,6729373,772.43,SUPPLIER,ACHIEVE TOGETHER LIMITED,300000020469986
Portsmouth City Council,PCC,Other,Suspense and Capital Schemes,Portsmouth International Port,Premises-Related Expenditure,Energy costs,13-Jul-23,6727571,686.36,LIMITED COMPANY,GAZPROM MARKETING AND TRADING LTD,300000250807105
Portsmouth City Council,PCC,Children's and Education Services,Primary Schools,Children's Services and Education,Premises-Related Expenditure,Energy costs,13-Jul-23,6727571,80.14,LIMITED COMPANY,GAZPROM MARKETING AND TRADING LTD,300000250807105
Portsmouth City Council,PCC,Housing Revenue Account,Special Services,"Housing, Neighbourhood and Building Services",Premises-Related Expenditure,Energy costs,13-Jul-23,6727571,"1,127.26",LIMITED COMPANY,GAZPROM MARKETING AND TRADING LTD,300000250807105
Portsmouth City Council,PCC,Housing Revenue Account,Special Services,"Housing, Neighbourhood and Building Services",Premises-Related Expenditure,Energy costs,13-Jul-23,6727571,"1,482.84",LIMITED COMPANY,GAZPROM MARKETING AND TRADING LTD,300000250807105
Portsmouth City Council,PCC,Housing Revenue Account,Special Services,"Housing, Neighbourhood and Building Services",Premises-Related Expenditure,Energy costs,13-Jul-23,6727571,271.74,LIMITED COMPANY,GAZPROM MARKETING AND TRADING LTD,300000250807105
Portsmouth City Council,PCC,Children's and Education Services,Primary Schools,Children's Services and Education,Premises-Related Expenditure,Energy costs,13-Jul-23,6727571,306.09,LIMITED COMPANY,GAZPROM MARKETING AND TRADING LTD,300000250807105
Portsmouth City Council,PCC,Housing Revenue Account,Special Services,"Housing, Neighbourhood and Building Services",Premises-Related Expenditure,Energy costs,13-Jul-23,6727571,17.01,LIMITED COMPANY,GAZPROM MARKETING AND TRADING LTD,300000250807105
Portsmouth City Council,PCC,Housing Revenue Account,Special Services,"Housing, Neighbourhood and Building Services",Premises-Related Expenditure,Energy costs,13-Jul-23,6727571,17.13,LIMITED COMPANY,GAZPROM MARKETING AND TRADING LTD,300000250807105
Portsmouth City Council,PCC,Children's and Education Services,Primary Schools,Children's Services and Education,Premises-Related Expenditure,Energy costs,13-Jul-23,6727571,741.65,LIMITED COMPANY,GAZPROM MARKETING AND TRADING LTD,300000250807105
Portsmouth City Council,PCC,Environmental and Regulatory Services,"Cemetery, Cremation and Mortuary Services","Culture, Leisure & Regulatory Services",Premises-Related Expenditure,Energy costs,13-Jul-23,6727571,173.32,LIMITED COMPANY,GAZPROM MARKETING AND TRADING LTD,300000250807105
Portsmouth City Council,PCC,Housing Revenue Account,Special Services,"Housing, Neighbourhood and Building Services",Premises-Related Expenditure,Energy costs,13-Jul-23,6727571,500.21,LIMITED COMPANY,GAZPROM MARKETING AND TRADING LTD,300000250807105
Portsmouth City Council,PCC,Housing Revenue Account,Special Services,"Housing, Neighbourhood and Building Services",Premises-Related Expenditure,Energy costs,13-Jul-23,6727571,573.93,LIMITED COMPANY,GAZPROM MARKETING AND TRADING LTD,300000250807105
Portsmouth City Council,PCC,Housing Revenue Account,Special Services,"Housing, Neighbourhood and Building Services",Premises-Related Expenditure,Energy costs,13-Jul-23,6727571,37.66,LIMITED COMPANY,GAZPROM MARKETING AND TRADING LTD,300000250807105
Portsmouth City Council,PCC,Housing Revenue Account,Special Services,"Housing, Neighbourhood and Building Services",Premises-Related Expenditure,Energy costs,13-Jul-23,6727571,22.25,LIMITED COMPANY,GAZPROM MARKETING AND TRADING LTD,300000250807105
Portsmouth City Council,PCC,Housing Revenue Account,Special Services,"Housing, Neighbourhood and Building Services",Premises-Related Expenditure,Energy costs,13-Jul-23,6727571,16.1,LIMITED COMPANY,GAZPROM MARKETING AND TRADING LTD,300000250807105
Portsmouth City Council,PCC,Housing Revenue Account,Special Services,"Housing, Neighbourhood and Building Services",Premises-Related Expenditure,Energy costs,13-Jul-23,6727571,122.16,LIMITED COMPANY,GAZPROM MARKETING AND TRADING LTD,300000250807105
Portsmouth City Council,PCC,Housing Revenue Account,Special Services,"Housing, Neighbourhood and Building Services",Premises-Related Expenditure,Energy costs,13-Jul-23,6727571,54.76,LIMITED COMPANY,GAZPROM MARKETING AND TRADING LTD,300000250807105
Portsmouth City Council,PCC,Housing Revenue Account,Special Services,"Housing, Neighbourhood and Building Services",Premises-Related Expenditure,Energy costs,13-Jul-23,6727571,67.59,LIMITED COMPANY,GAZPROM MARKETING AND TRADING LTD,300000250807105
Portsmouth City Council,PCC,Housing Revenue Account,Special Services,"Housing, Neighbourhood and Building Services",Premises-Related Expenditure,Energy costs,13-Jul-23,6727571,760.06,LIMITED COMPANY,GAZPROM MARKETING AND TRADING LTD,300000250807105
Portsmouth City Council,PCC,Housing Revenue Account,Supervision and Management,"Housing, Neighbourhood and Building Services",Premises-Related Expenditure,Energy costs,13-Jul-23,6727571,"1,887.79",LIMITED COMPANY,GAZPROM MARKETING AND TRADING LTD,300000250807105
Portsmouth City Council,PCC,Adult Social Care,Learning Disability Support Adults (18 - 64),Adult Care,Third Party Payments,Other establishments,25-Jul-23,6729373,772.43,SUPPLIER,ACHIEVE TOGETHER LIMITED,300000020469986
Portsmouth City Council,PCC,Housing Revenue Account,Special Services,"Housing, Neighbourhood and Building Services",Premises-Related Expenditure,Energy costs,13-Jul-23,6727571,"1,634.27",LIMITED COMPANY,GAZPROM MARKETING AND TRADING LTD,300000250807105
Portsmouth City Council,PCC,Housing Revenue Account,Special Services,"Housing, Neighbourhood and Building Services",Premises-Related Expenditure,Energy costs,13-Jul-23,6727571,39.39,LIMITED COMPANY,GAZPROM MARKETING AND TRADING LTD,300000250807105
Portsmouth City Council,PCC,Housing Revenue Account,Special Services,"Housing, Neighbourhood and Building Services",Premises-Related Expenditure,Energy costs,13-Jul-23,6727571,27.55,LIMITED COMPANY,GAZPROM MARKETING AND TRADING LTD,300000250807105
Portsmouth City Council,PCC,Housing Revenue Account,Special Services,"Housing, Neighbourhood and Building Services",Premises-Related Expenditure,Energy costs,13-Jul-23,6727571,64.68,LIMITED COMPANY,GAZPROM MARKETING AND TRADING LTD,300000250807105
Portsmouth City Council,PCC,Adult Social Care,Learning Disability Support Adults (18 - 64),Adult Care,Third Party Payments,Other establishments,25-Jul-23,6729373,772.43,SUPPLIER,ACHIEVE TOGETHER LIMITED,300000020469986
Portsmouth City Council,PCC,Housing Revenue Account,Supervision and Management,"Housing, Neighbourhood and Building Services",Premises-Related Expenditure,Energy costs,13-Jul-23,6727571,345.38,LIMITED COMPANY,GAZPROM MARKETING AND TRADING LTD,300000250807105
Portsmouth City Council,PCC,Housing Revenue Account,Supervision and Management,"Housing, Neighbourhood and Building Services",Premises-Related Expenditure,Energy costs,13-Jul-23,6727571,331.55,LIMITED COMPANY,GAZPROM MARKETING AND TRADING LTD,300000250807105
Portsmouth City Council,PCC,Housing Revenue Account,Special Services,"Housing, Neighbourhood and Building Services",Premises-Related Expenditure,Energy costs,13-Jul-23,6727571,58.29,LIMITED COMPANY,GAZPROM MARKETING AND TRADING LTD,300000250807105
Portsmouth City Council,PCC,Housing Revenue Account,Special Services,"Housing, Neighbourhood and Building Services",Premises-Related Expenditure,Energy costs,13-Jul-23,6727571,6.32,LIMITED COMPANY,GAZPROM MARKETING AND TRADING LTD,300000250807105
Portsmouth City Council,PCC,Housing Revenue Account,Special Services,"Housing, Neighbourhood and Building Services",Premises-Related Expenditure,Energy costs,13-Jul-23,6727571,100.59,LIMITED COMPANY,GAZPROM MARKETING AND TRADING LTD,300000250807105
Portsmouth City Council,PCC,Housing Revenue Account,Special Services,"Housing, Neighbourhood and Building Services",Premises-Related Expenditure,Energy costs,13-Jul-23,6727571,121.77,LIMITED COMPANY,GAZPROM MARKETING AND TRADING LTD,300000250807105
Portsmouth City Council,PCC,Housing Revenue Account,"Rents, Rates, Taxes and Other Charges","Housing, Neighbourhood and Building Services",Premises-Related Expenditure,Energy costs,13-Jul-23,6727571,15.91,LIMITED COMPANY,GAZPROM MARKETING AND TRADING LTD,300000250807105
Portsmouth City Council,PCC,Children's and Education Services,Children Looked After,Children's Services and Education,Premises-Related Expenditure,Energy costs,13-Jul-23,6727571,360.44,LIMITED COMPANY,GAZPROM MARKETING AND TRADING LTD,300000250807105
Portsmouth City Council,PCC,Housing Revenue Account,Special Services,"Housing, Neighbourhood and Building Services",Premises-Related Expenditure,Energy costs,13-Jul-23,6727571,207.11,LIMITED COMPANY,GAZPROM MARKETING AND TRADING LTD,300000250807105
Portsmouth City Council,PCC,Costs below Net Cost of Services,Trading,Regeneration,Premises-Related Expenditure,Energy costs,13-Jul-23,6727571,226.95,LIMITED COMPANY,GAZPROM MARKETING AND TRADING LTD,300000250807105
Portsmouth City Council,PCC,Other,Suspense and Capital Schemes,"Housing, Neighbourhood and Building Services",Premises-Related Expenditure,Energy costs,13-Jul-23,6727571,27.32,LIMITED COMPANY,GAZPROM MARKETING AND TRADING LTD,300000250807105
Portsmouth City Council,PCC,Children's and Education Services,Primary Schools,Children's Services and Education,Premises-Related Expenditure,Water Services,14-Jul-23,6727745,368.16,LIMITED COMPANY,WAVE LTD,300000457049455
Portsmouth City Council,PCC,Environmental and Regulatory Services,Regulatory Services,"Housing, Neighbourhood and Building Services",Premises-Related Expenditure,Water Services,14-Jul-23,6727745,383.28,LIMITED COMPANY,WAVE LTD,300000457049455
Portsmouth City Council,PCC,Environmental and Regulatory Services,Regulatory Services,"Housing, Neighbourhood and Building Services",Premises-Related Expenditure,Water Services,14-Jul-23,6727745,20.95,LIMITED COMPANY,WAVE LTD,300000457049455
Portsmouth City Council,PCC,Housing Revenue Account,"Rents, Rates, Taxes and Other Charges","Housing, Neighbourhood and Building Services",Premises-Related Expenditure,Water Services,14-Jul-23,6727745,34.49,LIMITED COMPANY,WAVE LTD,300000457049455
Portsmouth City Council,PCC,Children's and Education Services,Primary Schools,Children's Services and Education,Premises-Related Expenditure,Water Services,14-Jul-23,6727745,145.97,LIMITED COMPANY,WAVE LTD,300000457049455
Portsmouth City Council,PCC,Children's and Education Services,Primary Schools,Children's Services and Education,Premises-Related Expenditure,Water Services,14-Jul-23,6727745,173.07,LIMITED COMPANY,WAVE LTD,300000457049455
Portsmouth City Council,PCC,Environmental and Regulatory Services,Regulatory Services,"Housing, Neighbourhood and Building Services",Premises-Related Expenditure,Water Services,14-Jul-23,6727745,81,LIMITED COMPANY,WAVE LTD,300000457049455
Portsmouth City Council,PCC,Environmental and Regulatory Services,Regulatory Services,"Housing, Neighbourhood and Building Services",Premises-Related Expenditure,Water Services,14-Jul-23,6727745,"1,271.91",LIMITED COMPANY,WAVE LTD,300000457049455
Portsmouth City Council,PCC,Cultural and Related Services,Open Spaces,"Culture, Leisure & Regulatory Services",Premises-Related Expenditure,Water Services,14-Jul-23,6727745,2,LIMITED COMPANY,WAVE LTD,300000457049455
Portsmouth City Council,PCC,Cultural and Related Services,Open Spaces,"Culture, Leisure & Regulatory Services",Premises-Related Expenditure,Water Services,14-Jul-23,6727745,41.14,LIMITED COMPANY,WAVE LTD,300000457049455
Portsmouth City Council,PCC,Cultural and Related Services,Open Spaces,"Culture, Leisure & Regulatory Services",Premises-Related Expenditure,Water Services,14-Jul-23,6727745,366,LIMITED COMPANY,WAVE LTD,300000457049455
Portsmouth City Council,PCC,Cultural and Related Services,Open Spaces,"Culture, Leisure & Regulatory Services",Premises-Related Expenditure,Water Services,14-Jul-23,6727745,"1,430.90",LIMITED COMPANY,WAVE LTD,300000457049455
Portsmouth City Council,PCC,Cultural and Related Services,Open Spaces,"Culture, Leisure & Regulatory Services",Premises-Related Expenditure,Water Services,14-Jul-23,6727745,334.64,LIMITED COMPANY,WAVE LTD,300000457049455
Portsmouth City Council,PCC,Cultural and Related Services,Open Spaces,"Culture, Leisure & Regulatory Services",Premises-Related Expenditure,Water Services,14-Jul-23,6727745,27.25,LIMITED COMPANY,WAVE LTD,300000457049455
Portsmouth City Council,PCC,Cultural and Related Services,Open Spaces,"Culture, Leisure & Regulatory Services",Premises-Related Expenditure,Water Services,14-Jul-23,6727745,22.45,LIMITED COMPANY,WAVE LTD,300000457049455
Portsmouth City Council,PCC,Cultural and Related Services,Culture and Heritage,"Culture, Leisure & Regulatory Services",Premises-Related Expenditure,Water Services,14-Jul-23,6727745,29.96,LIMITED COMPANY,WAVE LTD,300000457049455
Portsmouth City Council,PCC,Children's and Education Services,Primary Schools,Children's Services and Education,Premises-Related Expenditure,Water Services,14-Jul-23,6727745,342.21,LIMITED COMPANY,WAVE LTD,300000457049455
Portsmouth City Council,PCC,Environmental and Regulatory Services,"Cemetery, Cremation and Mortuary Services","Culture, Leisure & Regulatory Services",Premises-Related Expenditure,Water Services,14-Jul-23,6727745,91.39,LIMITED COMPANY,WAVE LTD,300000457049455
Portsmouth City Council,PCC,Housing Revenue Account,Special Services,"Housing, Neighbourhood and Building Services",Premises-Related Expenditure,Water Services,14-Jul-23,6727745,2.86,LIMITED COMPANY,WAVE LTD,300000457049455
Portsmouth City Council,PCC,Housing Revenue Account,Special Services,"Housing, Neighbourhood and Building Services",Premises-Related Expenditure,Water Services,14-Jul-23,6727745,104.41,LIMITED COMPANY,WAVE LTD,300000457049455
Portsmouth City Council,PCC,Children's and Education Services,Family Support Services,Children's Services and Education,Premises-Related Expenditure,Water Services,14-Jul-23,6727745,230.04,LIMITED COMPANY,WAVE LTD,300000457049455
Portsmouth City Council,PCC,Housing Revenue Account,Special Services,"Housing, Neighbourhood and Building Services",Premises-Related Expenditure,Water Services,14-Jul-23,6727745,260.06,LIMITED COMPANY,WAVE LTD,300000457049455
Portsmouth City Council,PCC,Housing Revenue Account,Special Services,"Housing, Neighbourhood and Building Services",Premises-Related Expenditure,Water Services,14-Jul-23,6727745,-42.11,LIMITED COMPANY,WAVE LTD,300000457049455
Portsmouth City Council,PCC,Housing Revenue Account,Supervision and Management,"Housing, Neighbourhood and Building Services",Premises-Related Expenditure,Water Services,14-Jul-23,6727745,2.86,LIMITED COMPANY,WAVE LTD,300000457049455
Portsmouth City Council,PCC,Housing Revenue Account,Special Services,"Housing, Neighbourhood and Building Services",Premises-Related Expenditure,Water Services,14-Jul-23,6727745,236.04,LIMITED COMPANY,WAVE LTD,300000457049455
Portsmouth City Council,PCC,Housing Revenue Account,Supervision and Management,"Housing, Neighbourhood and Building Services",Premises-Related Expenditure,Water Services,14-Jul-23,6727745,2.86,LIMITED COMPANY,WAVE LTD,300000457049455
Portsmouth City Council,PCC,Housing Revenue Account,Supervision and Management,"Housing, Neighbourhood and Building Services",Premises-Related Expenditure,Water Services,14-Jul-23,6727745,34.49,LIMITED COMPANY,WAVE LTD,300000457049455
Portsmouth City Council,PCC,Highways and Transport Services,Parking Services,Regeneration,Premises-Related Expenditure,Water Services,14-Jul-23,6727745,70.98,LIMITED COMPANY,WAVE LTD,300000457049455
Portsmouth City Council,PCC,Cultural and Related Services,Open Spaces,"Culture, Leisure & Regulatory Services",Premises-Related Expenditure,Water Services,14-Jul-23,6727745,2.86,LIMITED COMPANY,WAVE LTD,300000457049455
Portsmouth City Council,PCC,Cultural and Related Services,Library Service,"Culture, Leisure & Regulatory Services",Premises-Related Expenditure,Water Services,14-Jul-23,6727745,80.03,LIMITED COMPANY,WAVE LTD,300000457049455
Portsmouth City Council,PCC,Cultural and Related Services,Open Spaces,"Culture, Leisure & Regulatory Services",Premises-Related Expenditure,Water Services,14-Jul-23,6727745,-99.49,LIMITED COMPANY,WAVE LTD,300000457049455
Portsmouth City Council,PCC,Cultural and Related Services,Open Spaces,"Culture, Leisure & Regulatory Services",Premises-Related Expenditure,Water Services,14-Jul-23,6727745,25.92,LIMITED COMPANY,WAVE LTD,300000457049455
Portsmouth City Council,PCC,Environmental and Regulatory Services,Regulatory Services,"Housing, Neighbourhood and Building Services",Premises-Related Expenditure,Water Services,14-Jul-23,6727745,636.86,LIMITED COMPANY,WAVE LTD,300000457049455
Portsmouth City Council,PCC,Cultural and Related Services,Open Spaces,"Culture, Leisure & Regulatory Services",Premises-Related Expenditure,Water Services,14-Jul-23,6727745,371.75,LIMITED COMPANY,WAVE LTD,300000457049455
Portsmouth City Council,PCC,Cultural and Related Services,Open Spaces,"Culture, Leisure & Regulatory Services",Premises-Related Expenditure,Water Services,14-Jul-23,6727745,7.95,LIMITED COMPANY,WAVE LTD,300000457049455
Portsmouth City Council,PCC,Cultural and Related Services,Open Spaces,"Culture, Leisure & Regulatory Services",Premises-Related Expenditure,Water Services,14-Jul-23,6727745,910.38,LIMITED COMPANY,WAVE LTD,300000457049455
Portsmouth City Council,PCC,Costs below Net Cost of Services,Trading,Regeneration,Premises-Related Expenditure,Water Services,14-Jul-23,6727745,66.42,LIMITED COMPANY,WAVE LTD,300000457049455
Portsmouth City Council,PCC,Other,Suspense and Capital Schemes,Regeneration,Premises-Related Expenditure,Water Services,14-Jul-23,6727745,911.61,LIMITED COMPANY,WAVE LTD,300000457049455
Portsmouth City Council,PCC,Children's and Education Services,Primary Schools,Children's Services and Education,Premises-Related Expenditure,Water Services,14-Jul-23,6727745,446.29,LIMITED COMPANY,WAVE LTD,300000457049455
Portsmouth City Council,PCC,Environmental and Regulatory Services,Regulatory Services,"Housing, Neighbourhood and Building Services",Premises-Related Expenditure,Water Services,14-Jul-23,6727745,293.09,LIMITED COMPANY,WAVE LTD,300000457049455
Portsmouth City Council,PCC,Cultural and Related Services,Library Service,"Culture, Leisure & Regulatory Services",Premises-Related Expenditure,Water Services,14-Jul-23,6727745,126.48,LIMITED COMPANY,WAVE LTD,300000457049455
Portsmouth City Council,PCC,Housing Revenue Account,"Rents, Rates, Taxes and Other Charges","Housing, Neighbourhood and Building Services",Premises-Related Expenditure,Water Services,14-Jul-23,6727745,34.49,LIMITED COMPANY,WAVE LTD,300000457049455
Portsmouth City Council,PCC,Housing Revenue Account,"Rents, Rates, Taxes and Other Charges","Housing, Neighbourhood and Building Services",Premises-Related Expenditure,Water Services,14-Jul-23,6727745,34.49,LIMITED COMPANY,WAVE LTD,300000457049455
Portsmouth City Council,PCC,Housing Revenue Account,Special Services,"Housing, Neighbourhood and Building Services",Premises-Related Expenditure,Water Services,14-Jul-23,6727745,17.94,LIMITED COMPANY,WAVE LTD,300000457049455
Portsmouth City Council,PCC,Costs below Net Cost of Services,Trading,Regeneration,Premises-Related Expenditure,Water Services,14-Jul-23,6727745,26.95,LIMITED COMPANY,WAVE LTD,300000457049455
Portsmouth City Council,PCC,Housing Revenue Account,Special Services,"Housing, Neighbourhood and Building Services",Premises-Related Expenditure,Water Services,14-Jul-23,6727745,10.03,LIMITED COMPANY,WAVE LTD,300000457049455
Portsmouth City Council,PCC,Highways and Transport Services,Parking Services,Regeneration,Premises-Related Expenditure,Water Services,14-Jul-23,6727745,4.97,LIMITED COMPANY,WAVE LTD,300000457049455
Portsmouth City Council,PCC,Housing Revenue Account,Special Services,"Housing, Neighbourhood and Building Services",Premises-Related Expenditure,Water Services,14-Jul-23,6727745,14.48,LIMITED COMPANY,WAVE LTD,300000457049455
Portsmouth City Council,PCC,Housing Revenue Account,Special Services,"Housing, Neighbourhood and Building Services",Premises-Related Expenditure,Water Services,14-Jul-23,6727745,91.61,LIMITED COMPANY,WAVE LTD,300000457049455
Portsmouth City Council,PCC,Housing Revenue Account,Special Services,"Housing, Neighbourhood and Building Services",Premises-Related Expenditure,Water Services,14-Jul-23,6727745,63.41,LIMITED COMPANY,WAVE LTD,300000457049455
Portsmouth City Council,PCC,Housing Revenue Account,Non-dwelling Rents (Gross),"Housing, Neighbourhood and Building Services",Premises-Related Expenditure,Water Services,14-Jul-23,6727745,10.03,LIMITED COMPANY,WAVE LTD,300000457049455
Portsmouth City Council,PCC,Housing Revenue Account,Special Services,"Housing, Neighbourhood and Building Services",Premises-Related Expenditure,Water Services,14-Jul-23,6727745,30.34,LIMITED COMPANY,WAVE LTD,300000457049455
Portsmouth City Council,PCC,Housing Revenue Account,Special Services,"Housing, Neighbourhood and Building Services",Premises-Related Expenditure,Water Services,14-Jul-23,6727745,10.03,LIMITED COMPANY,WAVE LTD,300000457049455
Portsmouth City Council,PCC,Housing Revenue Account,Special Services,"Housing, Neighbourhood and Building Services",Premises-Related Expenditure,Water Services,14-Jul-23,6727745,37.59,LIMITED COMPANY,WAVE LTD,300000457049455
Portsmouth City Council,PCC,Housing Revenue Account,Special Services,"Housing, Neighbourhood and Building Services",Premises-Related Expenditure,Water Services,14-Jul-23,6727745,17.54,LIMITED COMPANY,WAVE LTD,300000457049455
Portsmouth City Council,PCC,Housing Revenue Account,Special Services,"Housing, Neighbourhood and Building Services",Premises-Related Expenditure,Water Services,14-Jul-23,6727745,98.97,LIMITED COMPANY,WAVE LTD,300000457049455
Portsmouth City Council,PCC,Housing Revenue Account,Special Services,"Housing, Neighbourhood and Building Services",Premises-Related Expenditure,Water Services,14-Jul-23,6727745,16.3,LIMITED COMPANY,WAVE LTD,300000457049455
Portsmouth City Council,PCC,Housing Revenue Account,Special Services,"Housing, Neighbourhood and Building Services",Premises-Related Expenditure,Water Services,14-Jul-23,6727745,10.03,LIMITED COMPANY,WAVE LTD,300000457049455
Portsmouth City Council,PCC,Housing Revenue Account,Special Services,"Housing, Neighbourhood and Building Services",Premises-Related Expenditure,Water Services,14-Jul-23,6727745,11.08,LIMITED COMPANY,WAVE LTD,300000457049455
Portsmouth City Council,PCC,Housing Revenue Account,Special Services,"Housing, Neighbourhood and Building Services",Premises-Related Expenditure,Water Services,14-Jul-23,6727745,50.27,LIMITED COMPANY,WAVE LTD,300000457049455
Portsmouth City Council,PCC,Housing Revenue Account,Special Services,"Housing, Neighbourhood and Building Services",Premises-Related Expenditure,Water Services,14-Jul-23,6727745,10.86,LIMITED COMPANY,WAVE LTD,300000457049455
Portsmouth City Council,PCC,Housing Revenue Account,Special Services,"Housing, Neighbourhood and Building Services",Premises-Related Expenditure,Water Services,14-Jul-23,6727745,10.03,LIMITED COMPANY,WAVE LTD,300000457049455
Portsmouth City Council,PCC,Highways and Transport Services,Public Transport,Regeneration,Premises-Related Expenditure,Water Services,14-Jul-23,6727745,190.48,LIMITED COMPANY,WAVE LTD,300000457049455
Portsmouth City Council,PCC,Housing Revenue Account,Special Services,"Housing, Neighbourhood and Building Services",Premises-Related Expenditure,Water Services,14-Jul-23,6727745,37.59,LIMITED COMPANY,WAVE LTD,300000457049455
Portsmouth City Council,PCC,Housing Revenue Account,Special Services,"Housing, Neighbourhood and Building Services",Premises-Related Expenditure,Water Services,14-Jul-23,6727745,18.56,LIMITED COMPANY,WAVE LTD,300000457049455
Portsmouth City Council,PCC,Housing Revenue Account,Special Services,"Housing, Neighbourhood and Building Services",Premises-Related Expenditure,Water Services,14-Jul-23,6727745,10.03,LIMITED COMPANY,WAVE LTD,300000457049455
Portsmouth City Council,PCC,Housing Revenue Account,Non-dwelling Rents (Gross),"Housing, Neighbourhood and Building Services",Premises-Related Expenditure,Water Services,14-Jul-23,6727745,14.71,LIMITED COMPANY,WAVE LTD,300000457049455
Portsmouth City Council,PCC,Housing Revenue Account,Special Services,"Housing, Neighbourhood and Building Services",Premises-Related Expenditure,Water Services,14-Jul-23,6727745,4.97,LIMITED COMPANY,WAVE LTD,300000457049455
Portsmouth City Council,PCC,Housing Revenue Account,Special Services,"Housing, Neighbourhood and Building Services",Premises-Related Expenditure,Water Services,14-Jul-23,6727745,10.03,LIMITED COMPANY,WAVE LTD,300000457049455
Portsmouth City Council,PCC,Housing Revenue Account,Non-dwelling Rents (Gross),"Housing, Neighbourhood and Building Services",Premises-Related Expenditure,Water Services,14-Jul-23,6727745,23.09,LIMITED COMPANY,WAVE LTD,300000457049455
Portsmouth City Council,PCC,Highways and Transport Services,Parking Services,Regeneration,Premises-Related Expenditure,Water Services,14-Jul-23,6727745,21.96,LIMITED COMPANY,WAVE LTD,300000457049455
Portsmouth City Council,PCC,Costs below Net Cost of Services,Trading,Regeneration,Premises-Related Expenditure,Water Services,14-Jul-23,6727745,4.97,LIMITED COMPANY,WAVE LTD,300000457049455
Portsmouth City Council,PCC,Cultural and Related Services,Open Spaces,"Culture, Leisure & Regulatory Services",Premises-Related Expenditure,Water Services,14-Jul-23,6727745,33.29,LIMITED COMPANY,WAVE LTD,300000457049455
Portsmouth City Council,PCC,Highways and Transport Services,Parking Services,Regeneration,Premises-Related Expenditure,Water Services,14-Jul-23,6727745,4.97,LIMITED COMPANY,WAVE LTD,300000457049455
Portsmouth City Council,PCC,Highways and Transport Services,Parking Services,Regeneration,Premises-Related Expenditure,Water Services,14-Jul-23,6727745,4.97,LIMITED COMPANY,WAVE LTD,300000457049455
Portsmouth City Council,PCC,Cultural and Related Services,Open Spaces,"Culture, Leisure & Regulatory Services",Premises-Related Expenditure,Water Services,14-Jul-23,6727745,62.73,LIMITED COMPANY,WAVE LTD,300000457049455
Portsmouth City Council,PCC,Housing Revenue Account,Special Services,"Housing, Neighbourhood and Building Services",Premises-Related Expenditure,Water Services,14-Jul-23,6727745,8.04,LIMITED COMPANY,WAVE LTD,300000457049455
Portsmouth City Council,PCC,Housing Revenue Account,Supervision and Management,"Housing, Neighbourhood and Building Services",Premises-Related Expenditure,Water Services,14-Jul-23,6727745,72.44,LIMITED COMPANY,WAVE LTD,300000457049455
Portsmouth City Council,PCC,Housing Revenue Account,Supervision and Management,"Housing, Neighbourhood and Building Services",Premises-Related Expenditure,Water Services,14-Jul-23,6727745,240.12,LIMITED COMPANY,WAVE LTD,300000457049455
Portsmouth City Council,PCC,Costs below Net Cost of Services,Trading,Regeneration,Premises-Related Expenditure,Water Services,14-Jul-23,6727745,218.03,LIMITED COMPANY,WAVE LTD,300000457049455
Portsmouth City Council,PCC,Housing Revenue Account,Special Services,"Housing, Neighbourhood and Building Services",Premises-Related Expenditure,Water Services,14-Jul-23,6727745,6.88,LIMITED COMPANY,WAVE LTD,300000457049455
Portsmouth City Council,PCC,Cultural and Related Services,Library Service,"Culture, Leisure & Regulatory Services",Premises-Related Expenditure,Water Services,14-Jul-23,6727745,20.95,LIMITED COMPANY,WAVE LTD,300000457049455
Portsmouth City Council,PCC,Adult Social Care,Learning Disability Support Adults (18 - 64),Adult Care,Third Party Payments,Other establishments,25-Jul-23,6729373,772.43,SUPPLIER,ACHIEVE TOGETHER LIMITED,300000020469986
Portsmouth City Council,PCC,Housing Revenue Account,"Rents, Rates, Taxes and Other Charges","Housing, Neighbourhood and Building Services",Premises-Related Expenditure,Water Services,14-Jul-23,6727745,86.86,LIMITED COMPANY,WAVE LTD,300000457049455
Portsmouth City Council,PCC,Housing Revenue Account,Special Services,"Housing, Neighbourhood and Building Services",Premises-Related Expenditure,Water Services,14-Jul-23,6727745,21.93,LIMITED COMPANY,WAVE LTD,300000457049455
Portsmouth City Council,PCC,Children's and Education Services,Other Education and Community Budget,Regeneration,Premises-Related Expenditure,Water Services,14-Jul-23,6727745,47.96,LIMITED COMPANY,WAVE LTD,300000457049455
Portsmouth City Council,PCC,Housing Revenue Account,Special Services,"Housing, Neighbourhood and Building Services",Premises-Related Expenditure,Water Services,14-Jul-23,6727745,155.17,LIMITED COMPANY,WAVE LTD,300000457049455
Portsmouth City Council,PCC,Housing Revenue Account,Special Services,"Housing, Neighbourhood and Building Services",Premises-Related Expenditure,Water Services,14-Jul-23,6727745,126.48,LIMITED COMPANY,WAVE LTD,300000457049455
Portsmouth City Council,PCC,Housing Revenue Account,Special Services,"Housing, Neighbourhood and Building Services",Premises-Related Expenditure,Water Services,14-Jul-23,6727745,682.91,LIMITED COMPANY,WAVE LTD,300000457049455
Portsmouth City Council,PCC,Planning Services,Business support,Regeneration,Premises-Related Expenditure,Water Services,14-Jul-23,6727745,271.07,LIMITED COMPANY,WAVE LTD,300000457049455
Portsmouth City Council,PCC,Adult Social Care,Learning Disability Support Adults (18 - 64),Adult Care,Third Party Payments,Other establishments,25-Jul-23,6729373,772.43,SUPPLIER,ACHIEVE TOGETHER LIMITED,300000020469986
Portsmouth City Council,PCC,Cultural and Related Services,Open Spaces,"Culture, Leisure & Regulatory Services",Premises-Related Expenditure,Water Services,14-Jul-23,6727745,"1,452.12",LIMITED COMPANY,WAVE LTD,300000457049455
Portsmouth City Council,PCC,Housing Revenue Account,Non-dwelling Rents (Gross),"Housing, Neighbourhood and Building Services",Premises-Related Expenditure,Water Services,14-Jul-23,6727745,16.07,LIMITED COMPANY,WAVE LTD,300000457049455
Portsmouth City Council,PCC,Housing Revenue Account,Special Services,"Housing, Neighbourhood and Building Services",Premises-Related Expenditure,Water Services,14-Jul-23,6727745,-166.43,LIMITED COMPANY,WAVE LTD,300000457049455
Portsmouth City Council,PCC,Costs below Net Cost of Services,Trading,Regeneration,Premises-Related Expenditure,Water Services,14-Jul-23,6727745,"4,273.93",LIMITED COMPANY,WAVE LTD,300000457049455
Portsmouth City Council,PCC,Cultural and Related Services,Allocation of Management & Admin,"Culture, Leisure & Regulatory Services",Premises-Related Expenditure,Water Services,14-Jul-23,6727745,7.46,LIMITED COMPANY,WAVE LTD,300000457049455
Portsmouth City Council,PCC,Costs below Net Cost of Services,Trading,Regeneration,Premises-Related Expenditure,Water Services,14-Jul-23,6727745,2,LIMITED COMPANY,WAVE LTD,300000457049455
Portsmouth City Council,PCC,Cultural and Related Services,Culture and Heritage,"Culture, Leisure & Regulatory Services",Premises-Related Expenditure,Water Services,14-Jul-23,6727745,-34.97,LIMITED COMPANY,WAVE LTD,300000457049455
Portsmouth City Council,PCC,Cultural and Related Services,Open Spaces,"Culture, Leisure & Regulatory Services",Premises-Related Expenditure,Water Services,14-Jul-23,6727745,417.02,LIMITED COMPANY,WAVE LTD,300000457049455
Portsmouth City Council,PCC,Support Service / Transparency Costs Unallocated,AMS,Corporate Services,Premises-Related Expenditure,Water Services,14-Jul-23,6727745,"2,523.09",LIMITED COMPANY,WAVE LTD,300000457049455
Portsmouth City Council,PCC,Cultural and Related Services,Open Spaces,"Culture, Leisure & Regulatory Services",Premises-Related Expenditure,Water Services,14-Jul-23,6727745,70.02,LIMITED COMPANY,WAVE LTD,300000457049455
Portsmouth City Council,PCC,Adult Social Care,Learning Disability Support Adults (18 - 64),Adult Care,Third Party Payments,Other establishments,25-Jul-23,6729373,772.43,SUPPLIER,ACHIEVE TOGETHER LIMITED,300000020469986
Portsmouth City Council,PCC,Environmental and Regulatory Services,"Cemetery, Cremation and Mortuary Services","Culture, Leisure & Regulatory Services",Premises-Related Expenditure,Water Services,14-Jul-23,6727745,75.44,LIMITED COMPANY,WAVE LTD,300000457049455
Portsmouth City Council,PCC,Children's and Education Services,Primary Schools,Children's Services and Education,Premises-Related Expenditure,Water Services,14-Jul-23,6727745,8.93,LIMITED COMPANY,WAVE LTD,300000457049455
Portsmouth City Council,PCC,Highways and Transport Services,Public Transport,Regeneration,Premises-Related Expenditure,Water Services,14-Jul-23,6727745,108.35,LIMITED COMPANY,WAVE LTD,300000457049455
Portsmouth City Council,PCC,Housing Revenue Account,Special Services,"Housing, Neighbourhood and Building Services",Premises-Related Expenditure,Water Services,14-Jul-23,6727745,49.9,LIMITED COMPANY,WAVE LTD,300000457049455
Portsmouth City Council,PCC,Housing Revenue Account,Special Services,"Housing, Neighbourhood and Building Services",Premises-Related Expenditure,Water Services,14-Jul-23,6727745,49.9,LIMITED COMPANY,WAVE LTD,300000457049455
Portsmouth City Council,PCC,Housing Revenue Account,Special Services,"Housing, Neighbourhood and Building Services",Premises-Related Expenditure,Water Services,14-Jul-23,6727745,48.14,LIMITED COMPANY,WAVE LTD,300000457049455
Portsmouth City Council,PCC,Housing Revenue Account,"Rents, Rates, Taxes and Other Charges","Housing, Neighbourhood and Building Services",Premises-Related Expenditure,Water Services,14-Jul-23,6727745,86.86,LIMITED COMPANY,WAVE LTD,300000457049455
Portsmouth City Council,PCC,Housing Revenue Account,Supervision and Management,"Housing, Neighbourhood and Building Services",Premises-Related Expenditure,Water Services,14-Jul-23,6727745,317.46,LIMITED COMPANY,WAVE LTD,300000457049455
Portsmouth City Council,PCC,Highways and Transport Services,Parking Services,Regeneration,Premises-Related Expenditure,Water Services,14-Jul-23,6727745,66.56,LIMITED COMPANY,WAVE LTD,300000457049455
Portsmouth City Council,PCC,Housing Revenue Account,Special Services,"Housing, Neighbourhood and Building Services",Premises-Related Expenditure,Water Services,14-Jul-23,6727745,89.29,LIMITED COMPANY,WAVE LTD,300000457049455
Portsmouth City Council,PCC,Housing Revenue Account,Special Services,"Housing, Neighbourhood and Building Services",Premises-Related Expenditure,Water Services,14-Jul-23,6727745,6.38,LIMITED COMPANY,WAVE LTD,300000457049455
Portsmouth City Council,PCC,Housing Revenue Account,"Rents, Rates, Taxes and Other Charges","Housing, Neighbourhood and Building Services",Premises-Related Expenditure,Water Services,14-Jul-23,6727745,9.89,LIMITED COMPANY,WAVE LTD,300000457049455
Portsmouth City Council,PCC,Housing Revenue Account,"Rents, Rates, Taxes and Other Charges","Housing, Neighbourhood and Building Services",Premises-Related Expenditure,Water Services,14-Jul-23,6727745,3.88,LIMITED COMPANY,WAVE LTD,300000457049455
Portsmouth City Council,PCC,Housing Revenue Account,"Rents, Rates, Taxes and Other Charges","Housing, Neighbourhood and Building Services",Premises-Related Expenditure,Water Services,14-Jul-23,6727745,-8.13,LIMITED COMPANY,WAVE LTD,300000457049455
Portsmouth City Council,PCC,Cultural and Related Services,Open Spaces,"Culture, Leisure & Regulatory Services",Premises-Related Expenditure,Water Services,14-Jul-23,6727745,7.02,LIMITED COMPANY,WAVE LTD,300000457049455
Portsmouth City Council,PCC,Housing Revenue Account,Special Services,"Housing, Neighbourhood and Building Services",Premises-Related Expenditure,Water Services,14-Jul-23,6727745,59.39,LIMITED COMPANY,WAVE LTD,300000457049455
Portsmouth City Council,PCC,Housing Revenue Account,Special Services,"Housing, Neighbourhood and Building Services",Premises-Related Expenditure,Water Services,14-Jul-23,6727745,44.95,LIMITED COMPANY,WAVE LTD,300000457049455
Portsmouth City Council,PCC,Housing Revenue Account,Special Services,"Housing, Neighbourhood and Building Services",Premises-Related Expenditure,Water Services,14-Jul-23,6727745,34.49,LIMITED COMPANY,WAVE LTD,300000457049455
Portsmouth City Council,PCC,Housing Revenue Account,Special Services,"Housing, Neighbourhood and Building Services",Premises-Related Expenditure,Water Services,14-Jul-23,6727745,2,LIMITED COMPANY,WAVE LTD,300000457049455
Portsmouth City Council,PCC,Cultural and Related Services,Open Spaces,"Culture, Leisure & Regulatory Services",Premises-Related Expenditure,Water Services,14-Jul-23,6727745,"2,530.73",LIMITED COMPANY,WAVE LTD,300000457049455
Portsmouth City Council,PCC,Cultural and Related Services,Open Spaces,"Culture, Leisure & Regulatory Services",Premises-Related Expenditure,Water Services,14-Jul-23,6727745,116.03,LIMITED COMPANY,WAVE LTD,300000457049455
Portsmouth City Council,PCC,Cultural and Related Services,Open Spaces,"Culture, Leisure & Regulatory Services",Premises-Related Expenditure,Water Services,14-Jul-23,6727745,3.69,LIMITED COMPANY,WAVE LTD,300000457049455
Portsmouth City Council,PCC,Housing Revenue Account,Special Services,"Housing, Neighbourhood and Building Services",Premises-Related Expenditure,Water Services,14-Jul-23,6727745,27.4,LIMITED COMPANY,WAVE LTD,300000457049455
Portsmouth City Council,PCC,Housing Revenue Account,Supervision and Management,"Housing, Neighbourhood and Building Services",Premises-Related Expenditure,Water Services,14-Jul-23,6727745,48.14,LIMITED COMPANY,WAVE LTD,300000457049455
Portsmouth City Council,PCC,Cultural and Related Services,Open Spaces,"Culture, Leisure & Regulatory Services",Premises-Related Expenditure,Water Services,14-Jul-23,6727745,21.17,LIMITED COMPANY,WAVE LTD,300000457049455
Portsmouth City Council,PCC,Cultural and Related Services,Open Spaces,"Culture, Leisure & Regulatory Services",Premises-Related Expenditure,Water Services,14-Jul-23,6727745,8.69,LIMITED COMPANY,WAVE LTD,300000457049455
Portsmouth City Council,PCC,Cultural and Related Services,Open Spaces,"Culture, Leisure & Regulatory Services",Premises-Related Expenditure,Water Services,14-Jul-23,6727745,45.3,LIMITED COMPANY,WAVE LTD,300000457049455
Portsmouth City Council,PCC,Cultural and Related Services,Open Spaces,"Culture, Leisure & Regulatory Services",Premises-Related Expenditure,Water Services,14-Jul-23,6727745,9.52,LIMITED COMPANY,WAVE LTD,300000457049455
Portsmouth City Council,PCC,Cultural and Related Services,Open Spaces,"Culture, Leisure & Regulatory Services",Premises-Related Expenditure,Water Services,14-Jul-23,6727745,2.86,LIMITED COMPANY,WAVE LTD,300000457049455
Portsmouth City Council,PCC,Cultural and Related Services,Open Spaces,"Culture, Leisure & Regulatory Services",Premises-Related Expenditure,Water Services,14-Jul-23,6727745,2.86,LIMITED COMPANY,WAVE LTD,300000457049455
Portsmouth City Council,PCC,Housing Revenue Account,Supervision and Management,"Housing, Neighbourhood and Building Services",Premises-Related Expenditure,Water Services,14-Jul-23,6727745,158.04,LIMITED COMPANY,WAVE LTD,300000457049455
Portsmouth City Council,PCC,Highways and Transport Services,"Airports, Harbours and Toll Facilities",Portsmouth International Port,Premises-Related Expenditure,Water Services,14-Jul-23,6727745,"5,598.10",LIMITED COMPANY,WAVE LTD,300000457049455
Portsmouth City Council,PCC,Cultural and Related Services,Recreation and Sport,"Culture, Leisure & Regulatory Services",Premises-Related Expenditure,Water Services,14-Jul-23,6727745,49.9,LIMITED COMPANY,WAVE LTD,300000457049455
Portsmouth City Council,PCC,Cultural and Related Services,Open Spaces,"Culture, Leisure & Regulatory Services",Premises-Related Expenditure,Water Services,14-Jul-23,6727745,2,LIMITED COMPANY,WAVE LTD,300000457049455
Portsmouth City Council,PCC,Cultural and Related Services,Open Spaces,"Culture, Leisure & Regulatory Services",Premises-Related Expenditure,Water Services,14-Jul-23,6727745,6.19,LIMITED COMPANY,WAVE LTD,300000457049455
Portsmouth City Council,PCC,Cultural and Related Services,Open Spaces,"Culture, Leisure & Regulatory Services",Premises-Related Expenditure,Water Services,14-Jul-23,6727745,17,LIMITED COMPANY,WAVE LTD,300000457049455
Portsmouth City Council,PCC,Cultural and Related Services,Open Spaces,"Culture, Leisure & Regulatory Services",Premises-Related Expenditure,Water Services,14-Jul-23,6727745,16.21,LIMITED COMPANY,WAVE LTD,300000457049455
Portsmouth City Council,PCC,Cultural and Related Services,Open Spaces,"Culture, Leisure & Regulatory Services",Premises-Related Expenditure,Water Services,14-Jul-23,6727745,2.86,LIMITED COMPANY,WAVE LTD,300000457049455
Portsmouth City Council,PCC,Cultural and Related Services,Open Spaces,"Culture, Leisure & Regulatory Services",Premises-Related Expenditure,Water Services,14-Jul-23,6727745,-1.3,LIMITED COMPANY,WAVE LTD,300000457049455
Portsmouth City Council,PCC,Children's and Education Services,Children Looked After,Children's Services and Education,Premises-Related Expenditure,Water Services,14-Jul-23,6727745,521.29,LIMITED COMPANY,WAVE LTD,300000457049455
Portsmouth City Council,PCC,Costs below Net Cost of Services,Trading,"Housing, Neighbourhood and Building Services",Premises-Related Expenditure,Water Services,14-Jul-23,6727745,"2,565.41",LIMITED COMPANY,WAVE LTD,300000457049455
Portsmouth City Council,PCC,Cultural and Related Services,Open Spaces,"Culture, Leisure & Regulatory Services",Premises-Related Expenditure,Water Services,14-Jul-23,6727745,96.93,LIMITED COMPANY,WAVE LTD,300000457049455
Portsmouth City Council,PCC,Housing Revenue Account,Special Services,"Housing, Neighbourhood and Building Services",Premises-Related Expenditure,Water Services,14-Jul-23,6727745,112.95,LIMITED COMPANY,WAVE LTD,300000457049455
Portsmouth City Council,PCC,Cultural and Related Services,Open Spaces,"Culture, Leisure & Regulatory Services",Premises-Related Expenditure,Water Services,14-Jul-23,6727745,2.86,LIMITED COMPANY,WAVE LTD,300000457049455
Portsmouth City Council,PCC,Environmental and Regulatory Services,Regulatory Services,"Housing, Neighbourhood and Building Services",Premises-Related Expenditure,Water Services,14-Jul-23,6727745,359.15,LIMITED COMPANY,WAVE LTD,300000457049455
Portsmouth City Council,PCC,Costs below Net Cost of Services,Trading,Regeneration,Premises-Related Expenditure,Water Services,14-Jul-23,6727745,"-1,859.60",LIMITED COMPANY,WAVE LTD,300000457049455
Portsmouth City Council,PCC,Cultural and Related Services,Open Spaces,"Culture, Leisure & Regulatory Services",Premises-Related Expenditure,Water Services,14-Jul-23,6727745,2.86,LIMITED COMPANY,WAVE LTD,300000457049455
Portsmouth City Council,PCC,Cultural and Related Services,Open Spaces,"Culture, Leisure & Regulatory Services",Premises-Related Expenditure,Water Services,14-Jul-23,6727745,17,LIMITED COMPANY,WAVE LTD,300000457049455
Portsmouth City Council,PCC,Cultural and Related Services,Open Spaces,"Culture, Leisure & Regulatory Services",Premises-Related Expenditure,Water Services,14-Jul-23,6727745,207.8,LIMITED COMPANY,WAVE LTD,300000457049455
Portsmouth City Council,PCC,Cultural and Related Services,Open Spaces,"Culture, Leisure & Regulatory Services",Premises-Related Expenditure,Water Services,14-Jul-23,6727745,8.49,LIMITED COMPANY,WAVE LTD,300000457049455
Portsmouth City Council,PCC,Environmental and Regulatory Services,Regulatory Services,"Housing, Neighbourhood and Building Services",Premises-Related Expenditure,Water Services,14-Jul-23,6727745,497.27,LIMITED COMPANY,WAVE LTD,300000457049455
Portsmouth City Council,PCC,Cultural and Related Services,Recreation and Sport,"Culture, Leisure & Regulatory Services",Premises-Related Expenditure,Water Services,14-Jul-23,6727745,9.38,LIMITED COMPANY,WAVE LTD,300000457049455
Portsmouth City Council,PCC,Housing Revenue Account,Special Services,"Housing, Neighbourhood and Building Services",Premises-Related Expenditure,Water Services,14-Jul-23,6727745,30.6,LIMITED COMPANY,WAVE LTD,300000457049455
Portsmouth City Council,PCC,Cultural and Related Services,Open Spaces,"Culture, Leisure & Regulatory Services",Premises-Related Expenditure,Water Services,14-Jul-23,6727745,39.51,LIMITED COMPANY,WAVE LTD,300000457049455
Portsmouth City Council,PCC,Cultural and Related Services,Library Service,"Culture, Leisure & Regulatory Services",Premises-Related Expenditure,Water Services,14-Jul-23,6727745,-15.09,LIMITED COMPANY,WAVE LTD,300000457049455
Portsmouth City Council,PCC,Cultural and Related Services,Open Spaces,"Culture, Leisure & Regulatory Services",Premises-Related Expenditure,Water Services,14-Jul-23,6727745,161.06,LIMITED COMPANY,WAVE LTD,300000457049455
Portsmouth City Council,PCC,Costs below Net Cost of Services,Trading,Regeneration,Premises-Related Expenditure,Water Services,14-Jul-23,6727745,45.4,LIMITED COMPANY,WAVE LTD,300000457049455
Portsmouth City Council,PCC,Housing Revenue Account,Special Services,"Housing, Neighbourhood and Building Services",Premises-Related Expenditure,Water Services,14-Jul-23,6727745,173.07,LIMITED COMPANY,WAVE LTD,300000457049455
Portsmouth City Council,PCC,Cultural and Related Services,Open Spaces,"Culture, Leisure & Regulatory Services",Premises-Related Expenditure,Water Services,14-Jul-23,6727745,16.17,LIMITED COMPANY,WAVE LTD,300000457049455
Portsmouth City Council,PCC,Children's and Education Services,Primary Schools,Children's Services and Education,Premises-Related Expenditure,Water Services,14-Jul-23,6727745,707.36,LIMITED COMPANY,WAVE LTD,300000457049455
Portsmouth City Council,PCC,Housing Revenue Account,Special Services,"Housing, Neighbourhood and Building Services",Premises-Related Expenditure,Water Services,14-Jul-23,6727745,51.42,LIMITED COMPANY,WAVE LTD,300000457049455
Portsmouth City Council,PCC,Environmental and Regulatory Services,Regulatory Services,"Housing, Neighbourhood and Building Services",Premises-Related Expenditure,Water Services,14-Jul-23,6727745,171.07,LIMITED COMPANY,WAVE LTD,300000457049455
Portsmouth City Council,PCC,Housing Revenue Account,Special Services,"Housing, Neighbourhood and Building Services",Premises-Related Expenditure,Water Services,14-Jul-23,6727745,531.38,LIMITED COMPANY,WAVE LTD,300000457049455
Portsmouth City Council,PCC,Housing Revenue Account,Supervision and Management,"Housing, Neighbourhood and Building Services",Premises-Related Expenditure,Water Services,14-Jul-23,6727745,82.38,LIMITED COMPANY,WAVE LTD,300000457049455
Portsmouth City Council,PCC,Environmental and Regulatory Services,Regulatory Services,"Housing, Neighbourhood and Building Services",Premises-Related Expenditure,Water Services,14-Jul-23,6727745,491.26,LIMITED COMPANY,WAVE LTD,300000457049455
Portsmouth City Council,PCC,Children's and Education Services,Primary Schools,Children's Services and Education,Premises-Related Expenditure,Water Services,14-Jul-23,6727745,236.15,LIMITED COMPANY,WAVE LTD,300000457049455
Portsmouth City Council,PCC,Housing Revenue Account,"Rents, Rates, Taxes and Other Charges","Housing, Neighbourhood and Building Services",Premises-Related Expenditure,Water Services,14-Jul-23,6727745,120.29,LIMITED COMPANY,WAVE LTD,300000457049455
Portsmouth City Council,PCC,Cultural and Related Services,Library Service,"Culture, Leisure & Regulatory Services",Premises-Related Expenditure,Water Services,14-Jul-23,6727745,57.41,LIMITED COMPANY,WAVE LTD,300000457049455
Portsmouth City Council,PCC,Cultural and Related Services,Open Spaces,"Culture, Leisure & Regulatory Services",Premises-Related Expenditure,Water Services,14-Jul-23,6727745,16.82,LIMITED COMPANY,WAVE LTD,300000457049455
Portsmouth City Council,PCC,Cultural and Related Services,Open Spaces,"Culture, Leisure & Regulatory Services",Premises-Related Expenditure,Water Services,14-Jul-23,6727745,16.21,LIMITED COMPANY,WAVE LTD,300000457049455
Portsmouth City Council,PCC,Cultural and Related Services,Culture and Heritage,"Culture, Leisure & Regulatory Services",Premises-Related Expenditure,Water Services,14-Jul-23,6727745,31.88,LIMITED COMPANY,WAVE LTD,300000457049455
Portsmouth City Council,PCC,Adult Social Care,Learning Disability Support Adults (18 - 64),Adult Care,Third Party Payments,Other establishments,25-Jul-23,6729373,772.43,SUPPLIER,ACHIEVE TOGETHER LIMITED,300000020469986
Portsmouth City Council,PCC,Cultural and Related Services,Open Spaces,"Culture, Leisure & Regulatory Services",Premises-Related Expenditure,Water Services,14-Jul-23,6727745,14.96,LIMITED COMPANY,WAVE LTD,300000457049455
Portsmouth City Council,PCC,Cultural and Related Services,Open Spaces,"Culture, Leisure & Regulatory Services",Premises-Related Expenditure,Water Services,14-Jul-23,6727745,"-1,031.69",LIMITED COMPANY,WAVE LTD,300000457049455
Portsmouth City Council,PCC,Children's and Education Services,Primary Schools,Children's Services and Education,Premises-Related Expenditure,Water Services,14-Jul-23,6727745,893.66,LIMITED COMPANY,WAVE LTD,300000457049455
Portsmouth City Council,PCC,Cultural and Related Services,Open Spaces,"Culture, Leisure & Regulatory Services",Premises-Related Expenditure,Water Services,14-Jul-23,6727745,162.44,LIMITED COMPANY,WAVE LTD,300000457049455
Portsmouth City Council,PCC,Cultural and Related Services,Recreation and Sport,"Culture, Leisure & Regulatory Services",Premises-Related Expenditure,Water Services,14-Jul-23,6727745,17.94,LIMITED COMPANY,WAVE LTD,300000457049455
Portsmouth City Council,PCC,Cultural and Related Services,Open Spaces,"Culture, Leisure & Regulatory Services",Premises-Related Expenditure,Water Services,14-Jul-23,6727745,"-1,031.13",LIMITED COMPANY,WAVE LTD,300000457049455
Portsmouth City Council,PCC,Cultural and Related Services,Open Spaces,"Culture, Leisure & Regulatory Services",Premises-Related Expenditure,Water Services,11-Jul-23,6726784,"1,035.14",LIMITED COMPANY,WAVE LTD,300000457049455
Portsmouth City Council,PCC,Cultural and Related Services,Open Spaces,"Culture, Leisure & Regulatory Services",Premises-Related Expenditure,Water Services,14-Jul-23,6727745,2.86,LIMITED COMPANY,WAVE LTD,300000457049455
Portsmouth City Council,PCC,Cultural and Related Services,Open Spaces,"Culture, Leisure & Regulatory Services",Premises-Related Expenditure,Water Services,14-Jul-23,6727745,281.2,LIMITED COMPANY,WAVE LTD,300000457049455
Portsmouth City Council,PCC,Cultural and Related Services,Open Spaces,"Culture, Leisure & Regulatory Services",Premises-Related Expenditure,Water Services,14-Jul-23,6727745,182.41,LIMITED COMPANY,WAVE LTD,300000457049455
Portsmouth City Council,PCC,Cultural and Related Services,Open Spaces,"Culture, Leisure & Regulatory Services",Premises-Related Expenditure,Water Services,14-Jul-23,6727745,7.47,LIMITED COMPANY,WAVE LTD,300000457049455
Portsmouth City Council,PCC,Housing Revenue Account,"Rents, Rates, Taxes and Other Charges","Housing, Neighbourhood and Building Services",Premises-Related Expenditure,Water Services,14-Jul-23,6727745,93.46,LIMITED COMPANY,WAVE LTD,300000457049455
Portsmouth City Council,PCC,Housing Revenue Account,Special Services,"Housing, Neighbourhood and Building Services",Premises-Related Expenditure,Water Services,14-Jul-23,6727745,34.88,LIMITED COMPANY,WAVE LTD,300000457049455
Portsmouth City Council,PCC,Cultural and Related Services,Open Spaces,"Culture, Leisure & Regulatory Services",Premises-Related Expenditure,Water Services,14-Jul-23,6727745,101.69,LIMITED COMPANY,WAVE LTD,300000457049455
Portsmouth City Council,PCC,Environmental and Regulatory Services,Regulatory Services,"Housing, Neighbourhood and Building Services",Premises-Related Expenditure,Water Services,14-Jul-23,6727745,923.62,LIMITED COMPANY,WAVE LTD,300000457049455
Portsmouth City Council,PCC,Housing Revenue Account,"Rents, Rates, Taxes and Other Charges","Housing, Neighbourhood and Building Services",Premises-Related Expenditure,Water Services,14-Jul-23,6727745,95.9,LIMITED COMPANY,WAVE LTD,300000457049455
Portsmouth City Council,PCC,Housing Revenue Account,Special Services,"Housing, Neighbourhood and Building Services",Premises-Related Expenditure,Water Services,14-Jul-23,6727745,-122.16,LIMITED COMPANY,WAVE LTD,300000457049455
Portsmouth City Council,PCC,Housing Revenue Account,"Rents, Rates, Taxes and Other Charges","Housing, Neighbourhood and Building Services",Premises-Related Expenditure,Water Services,14-Jul-23,6727745,32.37,LIMITED COMPANY,WAVE LTD,300000457049455
Portsmouth City Council,PCC,Highways and Transport Services,"Transport Planning, Policy and Strategy",Regeneration,Premises-Related Expenditure,Water Services,14-Jul-23,6727745,5.36,LIMITED COMPANY,WAVE LTD,300000457049455
Portsmouth City Council,PCC,Adult Social Care,Learning Disability Support Adults (18 - 64),Adult Care,Third Party Payments,Other establishments,25-Jul-23,6729373,772.43,SUPPLIER,ACHIEVE TOGETHER LIMITED,300000020469986
Portsmouth City Council,PCC,Cultural and Related Services,Culture and Heritage,"Culture, Leisure & Regulatory Services",Premises-Related Expenditure,Water Services,14-Jul-23,6727745,61.9,LIMITED COMPANY,WAVE LTD,300000457049455
Portsmouth City Council,PCC,Costs below Net Cost of Services,Trading,"Housing, Neighbourhood and Building Services",Premises-Related Expenditure,Water Services,14-Jul-23,6727745,"1,749.49",LIMITED COMPANY,WAVE LTD,300000457049455
Portsmouth City Council,PCC,Housing Revenue Account,Special Services,"Housing, Neighbourhood and Building Services",Premises-Related Expenditure,Water Services,14-Jul-23,6727745,5.93,LIMITED COMPANY,WAVE LTD,300000457049455
Portsmouth City Council,PCC,Cultural and Related Services,Open Spaces,"Culture, Leisure & Regulatory Services",Premises-Related Expenditure,Water Services,14-Jul-23,6727745,268.99,LIMITED COMPANY,WAVE LTD,300000457049455
Portsmouth City Council,PCC,Cultural and Related Services,Open Spaces,"Culture, Leisure & Regulatory Services",Premises-Related Expenditure,Water Services,14-Jul-23,6727745,81.72,LIMITED COMPANY,WAVE LTD,300000457049455
Portsmouth City Council,PCC,Other,Suspense and Capital Schemes,"Housing, Neighbourhood and Building Services",Premises-Related Expenditure,Water Services,14-Jul-23,6727745,335.2,LIMITED COMPANY,WAVE LTD,300000457049455
Portsmouth City Council,PCC,Adult Social Care,Learning Disabilty Support Older People (65 - 74),Adult Care,Third Party Payments,Joint authorities,25-Jul-23,6729373,772.43,SUPPLIER,ACHIEVE TOGETHER LIMITED,300000020469986
Portsmouth City Council,PCC,Environmental and Regulatory Services,"Cemetery, Cremation and Mortuary Services","Culture, Leisure & Regulatory Services",Premises-Related Expenditure,Water Services,14-Jul-23,6727745,438.14,LIMITED COMPANY,WAVE LTD,300000457049455
Portsmouth City Council,PCC,Cultural and Related Services,Library Service,"Culture, Leisure & Regulatory Services",Premises-Related Expenditure,Water Services,14-Jul-23,6727745,12.39,LIMITED COMPANY,WAVE LTD,300000457049455
Portsmouth City Council,PCC,Cultural and Related Services,Open Spaces,"Culture, Leisure & Regulatory Services",Premises-Related Expenditure,Water Services,14-Jul-23,6727745,18.47,LIMITED COMPANY,WAVE LTD,300000457049455
Portsmouth City Council,PCC,Children's and Education Services,Primary Schools,Children's Services and Education,Premises-Related Expenditure,Water Services,14-Jul-23,6727745,261.14,LIMITED COMPANY,WAVE LTD,300000457049455
Portsmouth City Council,PCC,Children's and Education Services,Primary Schools,Children's Services and Education,Premises-Related Expenditure,Water Services,14-Jul-23,6727745,410.26,LIMITED COMPANY,WAVE LTD,300000457049455
Portsmouth City Council,PCC,Environmental and Regulatory Services,"Cemetery, Cremation and Mortuary Services","Culture, Leisure & Regulatory Services",Premises-Related Expenditure,Water Services,14-Jul-23,6727745,"1,055.73",LIMITED COMPANY,WAVE LTD,300000457049455
Portsmouth City Council,PCC,Cultural and Related Services,Open Spaces,"Culture, Leisure & Regulatory Services",Premises-Related Expenditure,Water Services,14-Jul-23,6727745,25.87,LIMITED COMPANY,WAVE LTD,300000457049455
Portsmouth City Council,PCC,Cultural and Related Services,Library Service,"Culture, Leisure & Regulatory Services",Premises-Related Expenditure,Water Services,14-Jul-23,6727745,20.95,LIMITED COMPANY,WAVE LTD,300000457049455
Portsmouth City Council,PCC,Cultural and Related Services,Open Spaces,"Culture, Leisure & Regulatory Services",Premises-Related Expenditure,Water Services,14-Jul-23,6727745,83.38,LIMITED COMPANY,WAVE LTD,300000457049455
Portsmouth City Council,PCC,Cultural and Related Services,Open Spaces,"Culture, Leisure & Regulatory Services",Premises-Related Expenditure,Water Services,14-Jul-23,6727745,"-2,542.59",LIMITED COMPANY,WAVE LTD,300000457049455
Portsmouth City Council,PCC,Cultural and Related Services,Open Spaces,"Culture, Leisure & Regulatory Services",Premises-Related Expenditure,Water Services,14-Jul-23,6727745,139.92,LIMITED COMPANY,WAVE LTD,300000457049455
Portsmouth City Council,PCC,Housing Revenue Account,Supervision and Management,"Housing, Neighbourhood and Building Services",Premises-Related Expenditure,Water Services,14-Jul-23,6727745,32.95,LIMITED COMPANY,WAVE LTD,300000457049455
Portsmouth City Council,PCC,Housing Revenue Account,Special Services,"Housing, Neighbourhood and Building Services",Premises-Related Expenditure,Water Services,14-Jul-23,6727745,275.08,LIMITED COMPANY,WAVE LTD,300000457049455
Portsmouth City Council,PCC,Housing Revenue Account,Special Services,"Housing, Neighbourhood and Building Services",Premises-Related Expenditure,Water Services,14-Jul-23,6727745,1.64,LIMITED COMPANY,WAVE LTD,300000457049455
Portsmouth City Council,PCC,Planning Services,Business support,Regeneration,Premises-Related Expenditure,Water Services,14-Jul-23,6727745,442.87,LIMITED COMPANY,WAVE LTD,300000457049455
Portsmouth City Council,PCC,Housing Revenue Account,Special Services,"Housing, Neighbourhood and Building Services",Premises-Related Expenditure,Water Services,14-Jul-23,6727745,8.93,LIMITED COMPANY,WAVE LTD,300000457049455
Portsmouth City Council,PCC,Housing Revenue Account,"Rents, Rates, Taxes and Other Charges","Housing, Neighbourhood and Building Services",Premises-Related Expenditure,Water Services,14-Jul-23,6727745,5.36,LIMITED COMPANY,WAVE LTD,300000457049455
Portsmouth City Council,PCC,Housing Revenue Account,Special Services,"Housing, Neighbourhood and Building Services",Premises-Related Expenditure,Water Services,14-Jul-23,6727745,167.05,LIMITED COMPANY,WAVE LTD,300000457049455
Portsmouth City Council,PCC,Costs below Net Cost of Services,Trading,Regeneration,Premises-Related Expenditure,Water Services,14-Jul-23,6727745,2.86,LIMITED COMPANY,WAVE LTD,300000457049455
Portsmouth City Council,PCC,Costs below Net Cost of Services,Trading,Regeneration,Premises-Related Expenditure,Water Services,14-Jul-23,6727745,-66.13,LIMITED COMPANY,WAVE LTD,300000457049455
Portsmouth City Council,PCC,Children's and Education Services,Primary Schools,Children's Services and Education,Premises-Related Expenditure,Water Services,14-Jul-23,6727745,153.05,LIMITED COMPANY,WAVE LTD,300000457049455
Portsmouth City Council,PCC,Housing Revenue Account,Special Services,"Housing, Neighbourhood and Building Services",Premises-Related Expenditure,Water Services,14-Jul-23,6727745,57.41,LIMITED COMPANY,WAVE LTD,300000457049455
Portsmouth City Council,PCC,Cultural and Related Services,Culture and Heritage,"Culture, Leisure & Regulatory Services",Premises-Related Expenditure,Water Services,14-Jul-23,6727745,38.36,LIMITED COMPANY,WAVE LTD,300000457049455
Portsmouth City Council,PCC,Cultural and Related Services,Open Spaces,"Culture, Leisure & Regulatory Services",Premises-Related Expenditure,Water Services,14-Jul-23,6727745,25.96,LIMITED COMPANY,WAVE LTD,300000457049455
Portsmouth City Council,PCC,Housing Revenue Account,"Rents, Rates, Taxes and Other Charges","Housing, Neighbourhood and Building Services",Premises-Related Expenditure,Water Services,14-Jul-23,6727745,8.04,LIMITED COMPANY,WAVE LTD,300000457049455
Portsmouth City Council,PCC,Housing Revenue Account,Special Services,"Housing, Neighbourhood and Building Services",Premises-Related Expenditure,Water Services,14-Jul-23,6727745,8.1,LIMITED COMPANY,WAVE LTD,300000457049455
Portsmouth City Council,PCC,Children's and Education Services,Family Support Services,Children's Services and Education,Premises-Related Expenditure,Water Services,14-Jul-23,6727745,522.81,LIMITED COMPANY,WAVE LTD,300000457049455
Portsmouth City Council,PCC,Housing Revenue Account,"Rents, Rates, Taxes and Other Charges","Housing, Neighbourhood and Building Services",Premises-Related Expenditure,Water Services,14-Jul-23,6727745,4.14,LIMITED COMPANY,WAVE LTD,300000457049455
Portsmouth City Council,PCC,Housing Revenue Account,"Rents, Rates, Taxes and Other Charges","Housing, Neighbourhood and Building Services",Premises-Related Expenditure,Water Services,14-Jul-23,6727745,34.49,LIMITED COMPANY,WAVE LTD,300000457049455
Portsmouth City Council,PCC,Highways and Transport Services,Public Transport,Regeneration,Premises-Related Expenditure,Water Services,14-Jul-23,6727745,-67.21,LIMITED COMPANY,WAVE LTD,300000457049455
Portsmouth City Council,PCC,Housing Revenue Account,"Rents, Rates, Taxes and Other Charges","Housing, Neighbourhood and Building Services",Premises-Related Expenditure,Water Services,14-Jul-23,6727745,2.03,LIMITED COMPANY,WAVE LTD,300000457049455
Portsmouth City Council,PCC,Children's and Education Services,Primary Schools,Children's Services and Education,Premises-Related Expenditure,Water Services,14-Jul-23,6727745,344.21,LIMITED COMPANY,WAVE LTD,300000457049455
Portsmouth City Council,PCC,Housing Revenue Account,Special Services,"Housing, Neighbourhood and Building Services",Premises-Related Expenditure,Water Services,14-Jul-23,6727745,212.1,LIMITED COMPANY,WAVE LTD,300000457049455
Portsmouth City Council,PCC,Central Services,"Registration of Births, Deaths and Marriages","Culture, Leisure & Regulatory Services",Premises-Related Expenditure,Water Services,14-Jul-23,6727745,25.87,LIMITED COMPANY,WAVE LTD,300000457049455
Portsmouth City Council,PCC,Cultural and Related Services,Culture and Heritage,"Culture, Leisure & Regulatory Services",Premises-Related Expenditure,Water Services,14-Jul-23,6727745,25.87,LIMITED COMPANY,WAVE LTD,300000457049455
Portsmouth City Council,PCC,Children's and Education Services,Management and Support Services,Children's Services and Education,Supplies and Services,Grants and subscriptions,04-Jul-23,6725620,"4,960.00",SUPPLIER,SOLENT ACADEMIES TRUST,300000020477417
Portsmouth City Council,PCC,Children's and Education Services,Management and Support Services,Children's Services and Education,Supplies and Services,Grants and subscriptions,04-Jul-23,6725699,"3,600.00",CHARITY OR VOLUNTARY,CM Foundation,300000502042088
Portsmouth City Council,PCC,Children's and Education Services,Management and Support Services,Children's Services and Education,Supplies and Services,Grants and subscriptions,04-Jul-23,6725699,"3,528.00",CHARITY OR VOLUNTARY,CM Foundation,300000502042088
Portsmouth City Council,PCC,Children's and Education Services,Management and Support Services,Children's Services and Education,Supplies and Services,Grants and subscriptions,04-Jul-23,6725699,"3,002.40",CHARITY OR VOLUNTARY,CM Foundation,300000502042088
Portsmouth City Council,PCC,Children's and Education Services,Management and Support Services,Children's Services and Education,Supplies and Services,Grants and subscriptions,04-Jul-23,6725631,"21,000.00",SUPPLIER,CM SPORTS (UK) LIMITED,300000020457692
Portsmouth City Council,PCC,Children's and Education Services,Management and Support Services,Children's Services and Education,Supplies and Services,Grants and subscriptions,04-Jul-23,6725631,"8,400.00",SUPPLIER,CM SPORTS (UK) LIMITED,300000020457692
Portsmouth City Council,PCC,Children's and Education Services,Management and Support Services,Children's Services and Education,Supplies and Services,Grants and subscriptions,04-Jul-23,6725631,"8,400.00",SUPPLIER,CM SPORTS (UK) LIMITED,300000020457692
Portsmouth City Council,PCC,Children's and Education Services,Management and Support Services,Children's Services and Education,Supplies and Services,Grants and subscriptions,04-Jul-23,6725631,"8,400.00",SUPPLIER,CM SPORTS (UK) LIMITED,300000020457692
Portsmouth City Council,PCC,Children's and Education Services,Management and Support Services,Children's Services and Education,Supplies and Services,Grants and subscriptions,04-Jul-23,6725631,"8,400.00",SUPPLIER,CM SPORTS (UK) LIMITED,300000020457692
Portsmouth City Council,PCC,Children's and Education Services,Management and Support Services,Children's Services and Education,Supplies and Services,Grants and subscriptions,04-Jul-23,6725631,"8,400.00",SUPPLIER,CM SPORTS (UK) LIMITED,300000020457692
Portsmouth City Council,PCC,Children's and Education Services,Management and Support Services,Children's Services and Education,Supplies and Services,Grants and subscriptions,04-Jul-23,6725675,"1,080.00",PRIVATE PROVIDER,DEBUTOTS (PORTSMOUTH AND SURROUNDING AREAS),300000163602199
Portsmouth City Council,PCC,Children's and Education Services,Management and Support Services,Children's Services and Education,Supplies and Services,Grants and subscriptions,04-Jul-23,6725602,"19,686.40",SUPPLIER,ENABLE ABILITY,300000020465080
Portsmouth City Council,PCC,Children's and Education Services,Management and Support Services,Children's Services and Education,Supplies and Services,Grants and subscriptions,04-Jul-23,6725602,"14,764.80",SUPPLIER,ENABLE ABILITY,300000020465080
Portsmouth City Council,PCC,Children's and Education Services,Management and Support Services,Children's Services and Education,Supplies and Services,Grants and subscriptions,04-Jul-23,6725602,"3,691.20",SUPPLIER,ENABLE ABILITY,300000020465080
Portsmouth City Council,PCC,Children's and Education Services,Management and Support Services,Children's Services and Education,Supplies and Services,Grants and subscriptions,04-Jul-23,6725746,"8,280.00",SUPPLIER,FARLINGTON WRAP AROUND SERVICE LTD,300000020463569
Portsmouth City Council,PCC,Children's and Education Services,Children Looked After,Children's Services and Education,Third Party Payments,Other establishments,10-Jul-23,6726625,-0.26,SUPPLIER,BLUE SKY FOSTERING,300000020464936
Portsmouth City Council,PCC,Children's and Education Services,Children Looked After,Children's Services and Education,Third Party Payments,Other establishments,10-Jul-23,6726625,331.29,SUPPLIER,BLUE SKY FOSTERING,300000020464936
Portsmouth City Council,PCC,Children's and Education Services,Children Looked After,Children's Services and Education,Third Party Payments,Other establishments,10-Jul-23,6726625,662.57,SUPPLIER,BLUE SKY FOSTERING,300000020464936
Portsmouth City Council,PCC,Children's and Education Services,Children Looked After,Children's Services and Education,Third Party Payments,Other establishments,10-Jul-23,6726625,773,SUPPLIER,BLUE SKY FOSTERING,300000020464936
Portsmouth City Council,PCC,Children's and Education Services,Children Looked After,Children's Services and Education,Third Party Payments,Other establishments,10-Jul-23,6726625,773,SUPPLIER,BLUE SKY FOSTERING,300000020464936
Portsmouth City Council,PCC,Children's and Education Services,Children Looked After,Children's Services and Education,Third Party Payments,Other establishments,10-Jul-23,6726625,773,SUPPLIER,BLUE SKY FOSTERING,300000020464936
Portsmouth City Council,PCC,Children's and Education Services,Children Looked After,Children's Services and Education,Third Party Payments,Other establishments,10-Jul-23,6726625,-0.26,SUPPLIER,BLUE SKY FOSTERING,300000020464936
Portsmouth City Council,PCC,Children's and Education Services,Children Looked After,Children's Services and Education,Third Party Payments,Other establishments,10-Jul-23,6726625,331.29,SUPPLIER,BLUE SKY FOSTERING,300000020464936
Portsmouth City Council,PCC,Children's and Education Services,Children Looked After,Children's Services and Education,Third Party Payments,Other establishments,10-Jul-23,6726625,662.57,SUPPLIER,BLUE SKY FOSTERING,300000020464936
Portsmouth City Council,PCC,Children's and Education Services,Children Looked After,Children's Services and Education,Third Party Payments,Other establishments,10-Jul-23,6726625,773,SUPPLIER,BLUE SKY FOSTERING,300000020464936
Portsmouth City Council,PCC,Children's and Education Services,Children Looked After,Children's Services and Education,Third Party Payments,Other establishments,10-Jul-23,6726625,773,SUPPLIER,BLUE SKY FOSTERING,300000020464936
Portsmouth City Council,PCC,Children's and Education Services,Children Looked After,Children's Services and Education,Third Party Payments,Other establishments,10-Jul-23,6726625,773,SUPPLIER,BLUE SKY FOSTERING,300000020464936
Portsmouth City Council,PCC,Children's and Education Services,Children Looked After,Children's Services and Education,Third Party Payments,Other establishments,10-Jul-23,6726625,372,SUPPLIER,BLUE SKY FOSTERING,300000020464936
Portsmouth City Council,PCC,Children's and Education Services,Children Looked After,Children's Services and Education,Third Party Payments,Other establishments,10-Jul-23,6726625,744,SUPPLIER,BLUE SKY FOSTERING,300000020464936
Portsmouth City Council,PCC,Children's and Education Services,Children Looked After,Children's Services and Education,Third Party Payments,Other establishments,10-Jul-23,6726625,868,SUPPLIER,BLUE SKY FOSTERING,300000020464936
Portsmouth City Council,PCC,Children's and Education Services,Children Looked After,Children's Services and Education,Third Party Payments,Other establishments,10-Jul-23,6726625,868,SUPPLIER,BLUE SKY FOSTERING,300000020464936
Portsmouth City Council,PCC,Children's and Education Services,Children Looked After,Children's Services and Education,Third Party Payments,Other establishments,10-Jul-23,6726625,868,SUPPLIER,BLUE SKY FOSTERING,300000020464936
Portsmouth City Council,PCC,Children's and Education Services,Children Looked After,Children's Services and Education,Third Party Payments,Other establishments,03-Jul-23,6725584,"1,485.71",LIMITED COMPANY,FOUNDATION FOR FAMILIES LTD,300000580689662
Portsmouth City Council,PCC,Children's and Education Services,Children Looked After,Children's Services and Education,Third Party Payments,Other establishments,03-Jul-23,6725584,"3,714.29",LIMITED COMPANY,FOUNDATION FOR FAMILIES LTD,300000580689662
Portsmouth City Council,PCC,Children's and Education Services,Children Looked After,Children's Services and Education,Third Party Payments,Other establishments,03-Jul-23,6725584,"5,200.00",LIMITED COMPANY,FOUNDATION FOR FAMILIES LTD,300000580689662
Portsmouth City Council,PCC,Children's and Education Services,Children Looked After,Children's Services and Education,Third Party Payments,Other establishments,03-Jul-23,6725584,"5,200.00",LIMITED COMPANY,FOUNDATION FOR FAMILIES LTD,300000580689662
Portsmouth City Council,PCC,Children's and Education Services,Children Looked After,Children's Services and Education,Third Party Payments,Other establishments,03-Jul-23,6725516,665.36,SUPPLIER,FIVE RIVERS CHILD CARE LIMITED,300000020461320
Portsmouth City Council,PCC,Children's and Education Services,Children Looked After,Children's Services and Education,Third Party Payments,Other establishments,03-Jul-23,6725516,"1,330.71",SUPPLIER,FIVE RIVERS CHILD CARE LIMITED,300000020461320
Portsmouth City Council,PCC,Children's and Education Services,Children Looked After,Children's Services and Education,Third Party Payments,Other establishments,03-Jul-23,6725516,"1,552.50",SUPPLIER,FIVE RIVERS CHILD CARE LIMITED,300000020461320
Portsmouth City Council,PCC,Children's and Education Services,Children Looked After,Children's Services and Education,Third Party Payments,Other establishments,03-Jul-23,6725516,"1,552.50",SUPPLIER,FIVE RIVERS CHILD CARE LIMITED,300000020461320
Portsmouth City Council,PCC,Children's and Education Services,Children Looked After,Children's Services and Education,Third Party Payments,Other establishments,03-Jul-23,6725516,"1,552.50",SUPPLIER,FIVE RIVERS CHILD CARE LIMITED,300000020461320
Portsmouth City Council,PCC,Children's and Education Services,Children Looked After,Children's Services and Education,Third Party Payments,Other establishments,03-Jul-23,6725575,"5,558.57",SUPPLIER,FUSION FOSTERING LIMITED,300000020479881
Portsmouth City Council,PCC,Children's and Education Services,Children Looked After,Children's Services and Education,Third Party Payments,Other establishments,03-Jul-23,6725575,"5,558.57",SUPPLIER,FUSION FOSTERING LIMITED,300000020479881
Portsmouth City Council,PCC,Children's and Education Services,Children Looked After,Children's Services and Education,Third Party Payments,Other establishments,03-Jul-23,6725575,"6,485.00",SUPPLIER,FUSION FOSTERING LIMITED,300000020479881
Portsmouth City Council,PCC,Children's and Education Services,Children Looked After,Children's Services and Education,Third Party Payments,Other establishments,03-Jul-23,6725575,"6,485.00",SUPPLIER,FUSION FOSTERING LIMITED,300000020479881
Portsmouth City Council,PCC,Children's and Education Services,Asylum seekers,Children's Services and Education,Third Party Payments,Other establishments,03-Jul-23,6725569,0.13,PRIVATE PROVIDER,Outset Fostering Agency,300000413803542
Portsmouth City Council,PCC,Children's and Education Services,Asylum seekers,Children's Services and Education,Third Party Payments,Other establishments,03-Jul-23,6725569,342.86,PRIVATE PROVIDER,Outset Fostering Agency,300000413803542
Portsmouth City Council,PCC,Children's and Education Services,Asylum seekers,Children's Services and Education,Third Party Payments,Other establishments,03-Jul-23,6725569,685.71,PRIVATE PROVIDER,Outset Fostering Agency,300000413803542
Portsmouth City Council,PCC,Children's and Education Services,Asylum seekers,Children's Services and Education,Third Party Payments,Other establishments,03-Jul-23,6725569,800,PRIVATE PROVIDER,Outset Fostering Agency,300000413803542
Portsmouth City Council,PCC,Children's and Education Services,Asylum seekers,Children's Services and Education,Third Party Payments,Other establishments,03-Jul-23,6725569,800,PRIVATE PROVIDER,Outset Fostering Agency,300000413803542
Portsmouth City Council,PCC,Children's and Education Services,Asylum seekers,Children's Services and Education,Third Party Payments,Other establishments,03-Jul-23,6725569,800,PRIVATE PROVIDER,Outset Fostering Agency,300000413803542
Portsmouth City Council,PCC,Children's and Education Services,Children Looked After,Children's Services and Education,Third Party Payments,Other establishments,10-Jul-23,6726627,0.01,SUPPLIER,FIVE RIVERS CHILD CARE LIMITED,300000020461320
Portsmouth City Council,PCC,Children's and Education Services,Children Looked After,Children's Services and Education,Third Party Payments,Other establishments,10-Jul-23,6726627,887.14,SUPPLIER,FIVE RIVERS CHILD CARE LIMITED,300000020461320
Portsmouth City Council,PCC,Children's and Education Services,Children Looked After,Children's Services and Education,Third Party Payments,Other establishments,10-Jul-23,6726627,"1,330.71",SUPPLIER,FIVE RIVERS CHILD CARE LIMITED,300000020461320
Portsmouth City Council,PCC,Children's and Education Services,Children Looked After,Children's Services and Education,Third Party Payments,Other establishments,10-Jul-23,6726627,"1,552.50",SUPPLIER,FIVE RIVERS CHILD CARE LIMITED,300000020461320
Portsmouth City Council,PCC,Children's and Education Services,Children Looked After,Children's Services and Education,Third Party Payments,Other establishments,10-Jul-23,6726627,"1,552.50",SUPPLIER,FIVE RIVERS CHILD CARE LIMITED,300000020461320
Portsmouth City Council,PCC,Children's and Education Services,Children Looked After,Children's Services and Education,Third Party Payments,Other establishments,10-Jul-23,6726627,"1,552.50",SUPPLIER,FIVE RIVERS CHILD CARE LIMITED,300000020461320
Portsmouth City Council,PCC,Children's and Education Services,Asylum seekers,Children's Services and Education,Third Party Payments,Other establishments,03-Jul-23,6725569,0.11,PRIVATE PROVIDER,Outset Fostering Agency,300000413803542
Portsmouth City Council,PCC,Children's and Education Services,Asylum seekers,Children's Services and Education,Third Party Payments,Other establishments,03-Jul-23,6725569,114.29,PRIVATE PROVIDER,Outset Fostering Agency,300000413803542
Portsmouth City Council,PCC,Children's and Education Services,Asylum seekers,Children's Services and Education,Third Party Payments,Other establishments,03-Jul-23,6725569,228.57,PRIVATE PROVIDER,Outset Fostering Agency,300000413803542
Portsmouth City Council,PCC,Children's and Education Services,Asylum seekers,Children's Services and Education,Third Party Payments,Other establishments,03-Jul-23,6725569,342.86,PRIVATE PROVIDER,Outset Fostering Agency,300000413803542
Portsmouth City Council,PCC,Children's and Education Services,Asylum seekers,Children's Services and Education,Third Party Payments,Other establishments,03-Jul-23,6725569,800,PRIVATE PROVIDER,Outset Fostering Agency,300000413803542
Portsmouth City Council,PCC,Children's and Education Services,Asylum seekers,Children's Services and Education,Third Party Payments,Other establishments,03-Jul-23,6725569,800,PRIVATE PROVIDER,Outset Fostering Agency,300000413803542
Portsmouth City Council,PCC,Children's and Education Services,Asylum seekers,Children's Services and Education,Third Party Payments,Other establishments,03-Jul-23,6725569,800,PRIVATE PROVIDER,Outset Fostering Agency,300000413803542
Portsmouth City Council,PCC,Children's and Education Services,Management and Support Services,Children's Services and Education,Supplies and Services,Grants and subscriptions,04-Jul-23,6725691,"15,360.00",LIMITED LIABILITY PARTNERSHIP,Premier Sports Bournemouth LLP,300000389601850
Portsmouth City Council,PCC,Children's and Education Services,Management and Support Services,Children's Services and Education,Supplies and Services,Grants and subscriptions,04-Jul-23,6725691,"15,360.00",LIMITED LIABILITY PARTNERSHIP,Premier Sports Bournemouth LLP,300000389601850
Portsmouth City Council,PCC,Children's and Education Services,Management and Support Services,Children's Services and Education,Supplies and Services,Grants and subscriptions,04-Jul-23,6725691,"15,360.00",LIMITED LIABILITY PARTNERSHIP,Premier Sports Bournemouth LLP,300000389601850
Portsmouth City Council,PCC,Children's and Education Services,Management and Support Services,Children's Services and Education,Supplies and Services,Grants and subscriptions,04-Jul-23,6725691,"3,840.00",LIMITED LIABILITY PARTNERSHIP,Premier Sports Bournemouth LLP,300000389601850
Portsmouth City Council,PCC,Adult Social Care,Learning Disability Support Adults (18 - 64),Adult Care,Third Party Payments,Other establishments,25-Jul-23,6729373,774.82,SUPPLIER,ACHIEVE TOGETHER LIMITED,300000020469986
Portsmouth City Council,PCC,Adult Social Care,Learning Disability Support Adults (18 - 64),Adult Care,Third Party Payments,Other establishments,25-Jul-23,6729373,"1,287.70",SUPPLIER,ACHIEVE TOGETHER LIMITED,300000020469986
Portsmouth City Council,PCC,Adult Social Care,Learning Disability Support Adults (18 - 64),Adult Care,Third Party Payments,Other establishments,25-Jul-23,6729373,"1,287.70",SUPPLIER,ACHIEVE TOGETHER LIMITED,300000020469986
Portsmouth City Council,PCC,Adult Social Care,Learning Disability Support Adults (18 - 64),Adult Care,Third Party Payments,Other establishments,25-Jul-23,6729373,"1,287.70",SUPPLIER,ACHIEVE TOGETHER LIMITED,300000020469986
Portsmouth City Council,PCC,Adult Social Care,Learning Disability Support Adults (18 - 64),Adult Care,Third Party Payments,Other establishments,25-Jul-23,6729373,"1,287.70",SUPPLIER,ACHIEVE TOGETHER LIMITED,300000020469986
Portsmouth City Council,PCC,Adult Social Care,Learning Disability Support Adults (18 - 64),Adult Care,Third Party Payments,Other establishments,25-Jul-23,6729373,"1,287.70",SUPPLIER,ACHIEVE TOGETHER LIMITED,300000020469986
Portsmouth City Council,PCC,Adult Social Care,Learning Disability Support Adults (18 - 64),Adult Care,Third Party Payments,Other establishments,25-Jul-23,6729373,"1,287.70",SUPPLIER,ACHIEVE TOGETHER LIMITED,300000020469986
Portsmouth City Council,PCC,Adult Social Care,Learning Disability Support Adults (18 - 64),Adult Care,Third Party Payments,Other establishments,25-Jul-23,6729373,"1,287.70",SUPPLIER,ACHIEVE TOGETHER LIMITED,300000020469986
Portsmouth City Council,PCC,Adult Social Care,Learning Disability Support Adults (18 - 64),Adult Care,Third Party Payments,Other establishments,25-Jul-23,6729373,"1,287.70",SUPPLIER,ACHIEVE TOGETHER LIMITED,300000020469986
Portsmouth City Council,PCC,Adult Social Care,Learning Disability Support Adults (18 - 64),Adult Care,Third Party Payments,Other establishments,25-Jul-23,6729373,"1,287.70",SUPPLIER,ACHIEVE TOGETHER LIMITED,300000020469986
Portsmouth City Council,PCC,Adult Social Care,Learning Disability Support Adults (18 - 64),Adult Care,Third Party Payments,Other establishments,25-Jul-23,6729373,"1,287.70",SUPPLIER,ACHIEVE TOGETHER LIMITED,300000020469986
Portsmouth City Council,PCC,Adult Social Care,Learning Disability Support Adults (18 - 64),Adult Care,Third Party Payments,Other establishments,25-Jul-23,6729373,"1,287.70",SUPPLIER,ACHIEVE TOGETHER LIMITED,300000020469986
Portsmouth City Council,PCC,Adult Social Care,Learning Disabilty Support Older People (65 - 74),Adult Care,Third Party Payments,Joint authorities,25-Jul-23,6729373,"1,287.70",SUPPLIER,ACHIEVE TOGETHER LIMITED,300000020469986
Portsmouth City Council,PCC,Adult Social Care,Learning Disability Support Adults (18 - 64),Adult Care,Third Party Payments,Other establishments,25-Jul-23,6729373,"2,232.00",SUPPLIER,ACHIEVE TOGETHER LIMITED,300000020469986
Portsmouth City Council,PCC,Adult Social Care,Learning Disability Support Adults (18 - 64),Adult Care,Third Party Payments,Other establishments,25-Jul-23,6729373,"2,630.57",SUPPLIER,ACHIEVE TOGETHER LIMITED,300000020469986
Portsmouth City Council,PCC,Adult Social Care,Learning Disability Support Adults (18 - 64),Adult Care,Third Party Payments,Other establishments,25-Jul-23,6729373,"2,790.00",SUPPLIER,ACHIEVE TOGETHER LIMITED,300000020469986
Portsmouth City Council,PCC,Adult Social Care,Learning Disability Support Adults (18 - 64),Adult Care,Third Party Payments,Other establishments,25-Jul-23,6729373,"2,869.71",SUPPLIER,ACHIEVE TOGETHER LIMITED,300000020469986
Portsmouth City Council,PCC,Adult Social Care,Learning Disability Support Adults (18 - 64),Adult Care,Third Party Payments,Other establishments,25-Jul-23,6729373,"3,108.86",SUPPLIER,ACHIEVE TOGETHER LIMITED,300000020469986
Portsmouth City Council,PCC,Children's and Education Services,Management and Support Services,Children's Services and Education,Supplies and Services,Grants and subscriptions,04-Jul-23,6725682,"9,792.00",SUPPLIER,GLOBE FIT CLASSES,300000265507759
Portsmouth City Council,PCC,Children's and Education Services,Management and Support Services,Children's Services and Education,Supplies and Services,Grants and subscriptions,04-Jul-23,6725738,"5,400.00",SUPPLIER,JOHN POUNDS COMMUNITY TRUST,300000020461113
Portsmouth City Council,PCC,Children's and Education Services,Management and Support Services,Children's Services and Education,Supplies and Services,Grants and subscriptions,04-Jul-23,6725688,"2,592.00",UK SUPPLIER,JG TENNIS COACHING LTD,300000427258507
Portsmouth City Council,PCC,Children's and Education Services,Management and Support Services,Children's Services and Education,Supplies and Services,Grants and subscriptions,04-Jul-23,6725688,"2,048.00",UK SUPPLIER,JG TENNIS COACHING LTD,300000427258507
Portsmouth City Council,PCC,Children's and Education Services,Management and Support Services,Children's Services and Education,Supplies and Services,Grants and subscriptions,04-Jul-23,6725688,777.6,UK SUPPLIER,JG TENNIS COACHING LTD,300000427258507
Portsmouth City Council,PCC,Children's and Education Services,Management and Support Services,Children's Services and Education,Supplies and Services,Grants and subscriptions,04-Jul-23,6725688,614.4,UK SUPPLIER,JG TENNIS COACHING LTD,300000427258507
Portsmouth City Council,PCC,Children's and Education Services,Management and Support Services,Children's Services and Education,Supplies and Services,Grants and subscriptions,04-Jul-23,6725744,900,SUPPLIER,THE KINGS THEATRE TRUST LIMITED,300000020459736
Portsmouth City Council,PCC,Children's and Education Services,Management and Support Services,Children's Services and Education,Supplies and Services,Grants and subscriptions,04-Jul-23,6725609,"4,032.00",SUPPLIER,MOTIV8 SOUTH,300000020463140
Portsmouth City Council,PCC,Children's and Education Services,Management and Support Services,Children's Services and Education,Supplies and Services,Grants and subscriptions,04-Jul-23,6725609,"4,284.00",SUPPLIER,MOTIV8 SOUTH,300000020463140
Portsmouth City Council,PCC,Children's and Education Services,Management and Support Services,Children's Services and Education,Supplies and Services,Grants and subscriptions,04-Jul-23,6725667,"5,529.60",CHARITY OR VOLUNTARY,THE PETER ASHLEY ACTIVITY CENTRE,300000110532315
Portsmouth City Council,PCC,Children's and Education Services,Management and Support Services,Children's Services and Education,Supplies and Services,Grants and subscriptions,04-Jul-23,6725617,"15,000.00",SUPPLIER,POMPEY IN THE COMMUNITY,300000020484401
Portsmouth City Council,PCC,Children's and Education Services,Management and Support Services,Children's Services and Education,Supplies and Services,Grants and subscriptions,04-Jul-23,6725617,"1,440.00",SUPPLIER,POMPEY IN THE COMMUNITY,300000020484401
Portsmouth City Council,PCC,Children's and Education Services,Management and Support Services,Children's Services and Education,Supplies and Services,Grants and subscriptions,04-Jul-23,6725617,"1,920.00",SUPPLIER,POMPEY IN THE COMMUNITY,300000020484401
Portsmouth City Council,PCC,Children's and Education Services,Management and Support Services,Children's Services and Education,Supplies and Services,Grants and subscriptions,04-Jul-23,6725690,"2,412.00",CHARITY OR VOLUNTARY,PORTSMOUTH FOREST SCHOOL CIC,300000431555236
Portsmouth City Council,PCC,Children's and Education Services,Management and Support Services,Children's Services and Education,Supplies and Services,Grants and subscriptions,04-Jul-23,6725690,670,CHARITY OR VOLUNTARY,PORTSMOUTH FOREST SCHOOL CIC,300000431555236
Portsmouth City Council,PCC,Children's and Education Services,Management and Support Services,Children's Services and Education,Supplies and Services,Grants and subscriptions,04-Jul-23,6725619,"4,480.00",SUPPLIER,SOLENT ACADEMIES TRUST,300000020477417
Portsmouth City Council,PCC,Housing Revenue Account,Special Services,"Housing, Neighbourhood and Building Services",Premises-Related Expenditure,Water Services,14-Jul-23,6727745,37.76,LIMITED COMPANY,WAVE LTD,300000457049455
Portsmouth City Council,PCC,Children's and Education Services,Family Support Services,Children's Services and Education,Premises-Related Expenditure,Water Services,14-Jul-23,6727745,146.44,LIMITED COMPANY,WAVE LTD,300000457049455
Portsmouth City Council,PCC,Other,Suspense and Capital Schemes,Capital - Housing General Fund,Capital Charges,Capital Expenditure (WIP),14-Jul-23,6727745,98.33,LIMITED COMPANY,WAVE LTD,300000457049455
Portsmouth City Council,PCC,Housing Services,Housing Strategy,"Housing, Neighbourhood and Building Services",Income,Customer and client receipts,10-Jul-23,6726738,"-2,313.45",LIMITED COMPANY,LIFTECH SYSTEMS (SE) LIMITED,300000020461913
Portsmouth City Council,PCC,Other,Suspense and Capital Schemes,"Housing, Neighbourhood and Building Services",Supplies and Services,Services,10-Jul-23,6726738,"1,575.00",LIMITED COMPANY,LIFTECH SYSTEMS (SE) LIMITED,300000020461913
Portsmouth City Council,PCC,Other,Suspense and Capital Schemes,"Housing, Neighbourhood and Building Services",Supplies and Services,Services,10-Jul-23,6726738,"2,776.14",LIMITED COMPANY,LIFTECH SYSTEMS (SE) LIMITED,300000020461913
Portsmouth City Council,PCC,Adult Social Care,Learning Disability Support Adults (18 - 64),Adult Care,Third Party Payments,Other establishments,25-Jul-23,6729373,"3,507.43",SUPPLIER,ACHIEVE TOGETHER LIMITED,300000020469986
Portsmouth City Council,PCC,Adult Social Care,Learning Disability Support Adults (18 - 64),Adult Care,Third Party Payments,Other establishments,25-Jul-23,6729373,"3,547.29",SUPPLIER,ACHIEVE TOGETHER LIMITED,300000020469986
Portsmouth City Council,PCC,Adult Social Care,Learning Disability Support Adults (18 - 64),Adult Care,Third Party Payments,Other establishments,25-Jul-23,6729373,"4,344.43",SUPPLIER,ACHIEVE TOGETHER LIMITED,300000020469986
Portsmouth City Council,PCC,Adult Social Care,Learning Disability Support Adults (18 - 64),Adult Care,Third Party Payments,Other establishments,25-Jul-23,6729373,"5,141.57",SUPPLIER,ACHIEVE TOGETHER LIMITED,300000020469986
Portsmouth City Council,PCC,Adult Social Care,Learning Disability Support Adults (18 - 64),Adult Care,Third Party Payments,Other establishments,25-Jul-23,6729373,"5,340.86",SUPPLIER,ACHIEVE TOGETHER LIMITED,300000020469986
Portsmouth City Council,PCC,Adult Social Care,Social Support - Support for Carer,Adult Care,Third Party Payments,Other establishments,18-Jul-23,6728003,36.72,SUPPLIER,ADMIRAL CARE LTD,300000020477405
Portsmouth City Council,PCC,Adult Social Care,Mental Health Support Older People (65 - 74),Adult Care,Third Party Payments,Other establishments,18-Jul-23,6728003,78.12,SUPPLIER,ADMIRAL CARE LTD,300000020477405
Portsmouth City Council,PCC,Adult Social Care,Physical Support Older People (85+),Adult Care,Third Party Payments,Other establishments,18-Jul-23,6728003,100.04,SUPPLIER,ADMIRAL CARE LTD,300000020477405
Portsmouth City Council,PCC,Adult Social Care,Physical Support Older People (85+),Adult Care,Third Party Payments,Other establishments,18-Jul-23,6728003,146.88,SUPPLIER,ADMIRAL CARE LTD,300000020477405
Portsmouth City Council,PCC,Adult Social Care,Physical Support Older People (85+),Adult Care,Third Party Payments,Other establishments,18-Jul-23,6728003,178.56,SUPPLIER,ADMIRAL CARE LTD,300000020477405
Portsmouth City Council,PCC,Adult Social Care,Mental Health Support Older People (65 - 74),Adult Care,Third Party Payments,Other establishments,18-Jul-23,6728003,200.08,SUPPLIER,ADMIRAL CARE LTD,300000020477405
Portsmouth City Council,PCC,Adult Social Care,Mental Health Support Older People (65 - 74),Adult Care,Third Party Payments,Other establishments,18-Jul-23,6728003,200.88,SUPPLIER,ADMIRAL CARE LTD,300000020477405
Portsmouth City Council,PCC,Adult Social Care,Mental Health Support Older People (65 - 74),Adult Care,Third Party Payments,Other establishments,18-Jul-23,6728003,223.2,SUPPLIER,ADMIRAL CARE LTD,300000020477405
Portsmouth City Council,PCC,Adult Social Care,Mental Health Support Older People (65 - 74),Adult Care,Third Party Payments,Other establishments,18-Jul-23,6728003,267.84,SUPPLIER,ADMIRAL CARE LTD,300000020477405
Portsmouth City Council,PCC,Adult Social Care,Social Support - Support for Carer,Adult Care,Third Party Payments,Other establishments,18-Jul-23,6728003,293.76,SUPPLIER,ADMIRAL CARE LTD,300000020477405
Portsmouth City Council,PCC,Adult Social Care,Physical Support Older People (85+),Adult Care,Third Party Payments,Other establishments,18-Jul-23,6728003,312.48,SUPPLIER,ADMIRAL CARE LTD,300000020477405
Portsmouth City Council,PCC,Adult Social Care,Social Support - Support for Carer,Adult Care,Third Party Payments,Other establishments,18-Jul-23,6728003,440.64,SUPPLIER,ADMIRAL CARE LTD,300000020477405
Portsmouth City Council,PCC,Adult Social Care,Physical Support Older People (85+),Adult Care,Third Party Payments,Other establishments,18-Jul-23,6728003,446.4,SUPPLIER,ADMIRAL CARE LTD,300000020477405
Portsmouth City Council,PCC,Adult Social Care,Physical Support Older People (85+),Adult Care,Third Party Payments,Other establishments,18-Jul-23,6728003,457.56,SUPPLIER,ADMIRAL CARE LTD,300000020477405
Portsmouth City Council,PCC,Adult Social Care,Physical Support Older People (85+),Adult Care,Third Party Payments,Other establishments,18-Jul-23,6728003,457.56,SUPPLIER,ADMIRAL CARE LTD,300000020477405
Portsmouth City Council,PCC,Adult Social Care,Physical Support Older People (85+),Adult Care,Third Party Payments,Other establishments,18-Jul-23,6728003,468.72,SUPPLIER,ADMIRAL CARE LTD,300000020477405
Portsmouth City Council,PCC,Adult Social Care,Physical Support Older People (85+),Adult Care,Third Party Payments,Other establishments,18-Jul-23,6728003,"1,071.36",SUPPLIER,ADMIRAL CARE LTD,300000020477405
Portsmouth City Council,PCC,Adult Social Care,Physical Support Older People (85+),Adult Care,Third Party Payments,Other establishments,18-Jul-23,6728003,"1,071.36",SUPPLIER,ADMIRAL CARE LTD,300000020477405
Portsmouth City Council,PCC,Adult Social Care,Mental Health Support Older People (65 - 74),Adult Care,Third Party Payments,Other establishments,18-Jul-23,6728003,624.96,SUPPLIER,ADMIRAL CARE LTD,300000020477405
Portsmouth City Council,PCC,Adult Social Care,Physical Support Older People (85+),Adult Care,Third Party Payments,Other establishments,18-Jul-23,6728003,781.2,SUPPLIER,ADMIRAL CARE LTD,300000020477405
Portsmouth City Council,PCC,Adult Social Care,Physical Support Older People (85+),Adult Care,Third Party Payments,Other establishments,18-Jul-23,6728003,800.32,SUPPLIER,ADMIRAL CARE LTD,300000020477405
Portsmouth City Council,PCC,Adult Social Care,Physical Support Older People (85+),Adult Care,Third Party Payments,Other establishments,18-Jul-23,6728003,937.44,SUPPLIER,ADMIRAL CARE LTD,300000020477405
Portsmouth City Council,PCC,Adult Social Care,Physical Support Older People (85+),Adult Care,Third Party Payments,Other establishments,18-Jul-23,6728003,937.44,SUPPLIER,ADMIRAL CARE LTD,300000020477405
Portsmouth City Council,PCC,Adult Social Care,Physical Support Older People (85+),Adult Care,Third Party Payments,Other establishments,18-Jul-23,6728003,"1,093.68",SUPPLIER,ADMIRAL CARE LTD,300000020477405
Portsmouth City Council,PCC,Adult Social Care,Physical Support Older People (85+),Adult Care,Third Party Payments,Other establishments,18-Jul-23,6728003,"1,249.92",SUPPLIER,ADMIRAL CARE LTD,300000020477405
Portsmouth City Council,PCC,Adult Social Care,Physical Support Adults (18 - 64),Adult Care,Third Party Payments,Other establishments,18-Jul-23,6728003,"1,350.54",SUPPLIER,ADMIRAL CARE LTD,300000020477405
Portsmouth City Council,PCC,Adult Social Care,Physical Support Older People (85+),Adult Care,Third Party Payments,Other establishments,18-Jul-23,6728003,"1,874.88",SUPPLIER,ADMIRAL CARE LTD,300000020477405
Portsmouth City Council,PCC,Adult Social Care,Physical Support Older People (85+),Adult Care,Third Party Payments,Other establishments,18-Jul-23,6728003,"1,874.88",SUPPLIER,ADMIRAL CARE LTD,300000020477405
Portsmouth City Council,PCC,Adult Social Care,Physical Support Older People (85+),Adult Care,Third Party Payments,Other establishments,18-Jul-23,6728003,"2,276.64",SUPPLIER,ADMIRAL CARE LTD,300000020477405
Portsmouth City Council,PCC,Adult Social Care,Social Support - Support for Carer,Adult Care,Third Party Payments,Other establishments,13-Jul-23,6727552,59.67,SUPPLIER,AGINCARE UK,300000020481869
Portsmouth City Council,PCC,Adult Social Care,Social Support - Support for Carer,Adult Care,Third Party Payments,Other establishments,13-Jul-23,6727552,110.16,SUPPLIER,AGINCARE UK,300000020481869
Portsmouth City Council,PCC,Adult Social Care,Physical Support Older People (85+),Adult Care,Third Party Payments,Other establishments,13-Jul-23,6727552,133.92,SUPPLIER,AGINCARE UK,300000020481869
Portsmouth City Council,PCC,Adult Social Care,Social Support - Support for Carer,Adult Care,Third Party Payments,Other establishments,13-Jul-23,6727552,146.88,SUPPLIER,AGINCARE UK,300000020481869
Portsmouth City Council,PCC,Adult Social Care,Physical Support Older People (85+),Adult Care,Third Party Payments,Other establishments,13-Jul-23,6727552,468.72,SUPPLIER,AGINCARE UK,300000020481869
Portsmouth City Council,PCC,Adult Social Care,Physical Support Older People (85+),Adult Care,Third Party Payments,Other establishments,13-Jul-23,6727552,200.88,SUPPLIER,AGINCARE UK,300000020481869
Portsmouth City Council,PCC,Adult Social Care,Physical Support Older People (85+),Adult Care,Third Party Payments,Other establishments,13-Jul-23,6727552,"1,484.28",SUPPLIER,AGINCARE UK,300000020481869
Portsmouth City Council,PCC,Adult Social Care,Learning Disability Support Adults (18 - 64),Adult Care,Third Party Payments,Other establishments,13-Jul-23,6727552,156.24,SUPPLIER,AGINCARE UK,300000020481869
Portsmouth City Council,PCC,Adult Social Care,Physical Support Older People (85+),Adult Care,Third Party Payments,Other establishments,12-Jul-23,6727075,"6,665.00",SUPPLIER,AGINCARE UK,300000020481869
Portsmouth City Council,PCC,Adult Social Care,Support with Memory and Cognition Older People (85+),Adult Care,Third Party Payments,Other establishments,12-Jul-23,6726963,"4,084.25",SUPPLIER,AGINCARE UK,300000020481869
Portsmouth City Council,PCC,Adult Social Care,Physical Support Older People (85+),Adult Care,Third Party Payments,Other establishments,13-Jul-23,6727552,312.48,SUPPLIER,AGINCARE UK,300000020481869
Portsmouth City Council,PCC,Adult Social Care,Physical Support Older People (85+),Adult Care,Third Party Payments,Other establishments,13-Jul-23,6727552,937.44,SUPPLIER,AGINCARE UK,300000020481869
Portsmouth City Council,PCC,Adult Social Care,Physical Support Older People (85+),Adult Care,Third Party Payments,Other establishments,13-Jul-23,6727552,770.04,SUPPLIER,AGINCARE UK,300000020481869
Portsmouth City Council,PCC,Adult Social Care,Physical Support Older People (85+),Adult Care,Third Party Payments,Other establishments,13-Jul-23,6727552,580.32,SUPPLIER,AGINCARE UK,300000020481869
Portsmouth City Council,PCC,Adult Social Care,Physical Support Older People (85+),Adult Care,Third Party Payments,Other establishments,13-Jul-23,6727552,"1,389.42",SUPPLIER,AGINCARE UK,300000020481869
Portsmouth City Council,PCC,Adult Social Care,Physical Support Older People (85+),Adult Care,Third Party Payments,Other establishments,13-Jul-23,6727552,16.74,SUPPLIER,AGINCARE UK,300000020481869
Portsmouth City Council,PCC,Adult Social Care,Social Support - Support for Carer,Adult Care,Third Party Payments,Other establishments,20-Jul-23,6728562,293.76,SUPPLIER,AGINCARE UK,300000020481869
Portsmouth City Council,PCC,Adult Social Care,Social Care Activities,Adult Care,Third Party Payments,Other establishments,20-Jul-23,6728562,156.24,SUPPLIER,AGINCARE UK,300000020481869
Portsmouth City Council,PCC,Adult Social Care,Physical Support Older People (85+),Adult Care,Third Party Payments,Other establishments,20-Jul-23,6728562,156.24,SUPPLIER,AGINCARE UK,300000020481869
Portsmouth City Council,PCC,Adult Social Care,Social Care Activities,Adult Care,Third Party Payments,Other establishments,20-Jul-23,6728562,200.88,SUPPLIER,AGINCARE UK,300000020481869
Portsmouth City Council,PCC,Adult Social Care,Social Care Activities,Adult Care,Third Party Payments,Other establishments,20-Jul-23,6728562,145.08,SUPPLIER,AGINCARE UK,300000020481869
Portsmouth City Council,PCC,Adult Social Care,Social Support - Support for Carer,Adult Care,Third Party Payments,Other establishments,27-Jul-23,6730085,73.44,SUPPLIER,AGINCARE UK,300000020481869
Portsmouth City Council,PCC,Adult Social Care,Social Support - Support for Carer,Adult Care,Third Party Payments,Other establishments,27-Jul-23,6730085,220.32,SUPPLIER,AGINCARE UK,300000020481869
Portsmouth City Council,PCC,Adult Social Care,Social Support - Support for Carer,Adult Care,Third Party Payments,Other establishments,27-Jul-23,6730085,146.88,SUPPLIER,AGINCARE UK,300000020481869
Portsmouth City Council,PCC,Adult Social Care,Physical Support Older People (85+),Adult Care,Third Party Payments,Other establishments,27-Jul-23,6730085,133.92,SUPPLIER,AGINCARE UK,300000020481869
Portsmouth City Council,PCC,Adult Social Care,Social Support - Support for Carer,Adult Care,Third Party Payments,Other establishments,27-Jul-23,6730085,146.88,SUPPLIER,AGINCARE UK,300000020481869
Portsmouth City Council,PCC,Adult Social Care,Physical Support Older People (85+),Adult Care,Third Party Payments,Other establishments,27-Jul-23,6730085,468.72,SUPPLIER,AGINCARE UK,300000020481869
Portsmouth City Council,PCC,Adult Social Care,Physical Support Older People (85+),Adult Care,Third Party Payments,Other establishments,27-Jul-23,6730085,133.92,SUPPLIER,AGINCARE UK,300000020481869
Portsmouth City Council,PCC,Adult Social Care,Physical Support Older People (85+),Adult Care,Third Party Payments,Other establishments,27-Jul-23,6730085,803.52,SUPPLIER,AGINCARE UK,300000020481869
Portsmouth City Council,PCC,Adult Social Care,Learning Disability Support Adults (18 - 64),Adult Care,Third Party Payments,Other establishments,27-Jul-23,6730085,156.24,SUPPLIER,AGINCARE UK,300000020481869
Portsmouth City Council,PCC,Adult Social Care,Physical Support Older People (85+),Adult Care,Third Party Payments,Other establishments,27-Jul-23,6730085,301.32,SUPPLIER,AGINCARE UK,300000020481869
Portsmouth City Council,PCC,Children's and Education Services,Management and Support Services,Children's Services and Education,Supplies and Services,Grants and subscriptions,04-Jul-23,6725631,"8,400.00",SUPPLIER,CM SPORTS (UK) LIMITED,300000020457692
Portsmouth City Council,PCC,Children's and Education Services,Management and Support Services,Children's Services and Education,Supplies and Services,Grants and subscriptions,04-Jul-23,6725638,"1,608.00",SUPPLIER,THE YOUNG CREATIVES PORTSMOUTH,300000020457929
Portsmouth City Council,PCC,Children's and Education Services,Management and Support Services,Children's Services and Education,Supplies and Services,Grants and subscriptions,04-Jul-23,6725638,"2,144.00",SUPPLIER,THE YOUNG CREATIVES PORTSMOUTH,300000020457929
Portsmouth City Council,PCC,Children's and Education Services,Management and Support Services,Children's Services and Education,Supplies and Services,Grants and subscriptions,04-Jul-23,6725638,"1,608.00",SUPPLIER,THE YOUNG CREATIVES PORTSMOUTH,300000020457929
Portsmouth City Council,PCC,Children's and Education Services,Management and Support Services,Children's Services and Education,Supplies and Services,Grants and subscriptions,05-Jul-23,6726123,560,SUPPLIER,THE YOUNG CREATIVES PORTSMOUTH,300000020457929
Portsmouth City Council,PCC,Children's and Education Services,Management and Support Services,Children's Services and Education,Supplies and Services,Grants and subscriptions,05-Jul-23,6726123,350,SUPPLIER,THE YOUNG CREATIVES PORTSMOUTH,300000020457929
Portsmouth City Council,PCC,Adult Social Care,Physical Support Older People (85+),Adult Care,Third Party Payments,Other establishments,27-Jul-23,6730085,937.44,SUPPLIER,AGINCARE UK,300000020481869
Portsmouth City Council,PCC,Adult Social Care,Physical Support Older People (85+),Adult Care,Third Party Payments,Other establishments,27-Jul-23,6730085,770.04,SUPPLIER,AGINCARE UK,300000020481869
Portsmouth City Council,PCC,Adult Social Care,Physical Support Older People (85+),Adult Care,Third Party Payments,Other establishments,27-Jul-23,6730085,580.32,SUPPLIER,AGINCARE UK,300000020481869
Portsmouth City Council,PCC,Adult Social Care,Physical Support Older People (85+),Adult Care,Third Party Payments,Other establishments,27-Jul-23,6730085,"1,406.16",SUPPLIER,AGINCARE UK,300000020481869
Portsmouth City Council,PCC,Adult Social Care,Physical Support Older People (85+),Adult Care,Third Party Payments,Other establishments,27-Jul-23,6730085,312.48,SUPPLIER,AGINCARE UK,300000020481869
Portsmouth City Council,PCC,Adult Social Care,Social Care Activities,Adult Care,Third Party Payments,Other establishments,27-Jul-23,6730085,150.66,SUPPLIER,AGINCARE UK,300000020481869
Portsmouth City Council,PCC,Adult Social Care,Social Care Activities,Adult Care,Third Party Payments,Other establishments,27-Jul-23,6730085,234.36,SUPPLIER,AGINCARE UK,300000020481869
Portsmouth City Council,PCC,Adult Social Care,Social Care Activities,Adult Care,Third Party Payments,Other establishments,27-Jul-23,6730085,401.76,SUPPLIER,AGINCARE UK,300000020481869
Portsmouth City Council,PCC,Adult Social Care,Physical Support Older People (85+),Adult Care,Third Party Payments,Other establishments,27-Jul-23,6730085,279,SUPPLIER,AGINCARE UK,300000020481869
Portsmouth City Council,PCC,Adult Social Care,Social Care Activities,Adult Care,Third Party Payments,Other establishments,27-Jul-23,6730085,345.96,SUPPLIER,AGINCARE UK,300000020481869
Portsmouth City Council,PCC,Adult Social Care,Physical Support Older People (85+),Adult Care,Third Party Payments,Other establishments,27-Jul-23,6730085,892.8,SUPPLIER,AGINCARE UK,300000020481869
Portsmouth City Council,PCC,Adult Social Care,Social Care Activities,Adult Care,Third Party Payments,Other establishments,27-Jul-23,6730085,122.76,SUPPLIER,AGINCARE UK,300000020481869
Portsmouth City Council,PCC,Adult Social Care,Social Care Activities,Adult Care,Third Party Payments,Other establishments,12-Jul-23,6727066,"17,075.73",SUPPLIER,ALBANY CARE (PORTCHESTER) LIMITED,300000020467728
Portsmouth City Council,PCC,Adult Social Care,Social Care Activities,Adult Care,Third Party Payments,Other establishments,26-Jul-23,6729496,233.92,SUPPLIER,ALBANY CARE (PORTCHESTER) LIMITED,300000020467728
Portsmouth City Council,PCC,Adult Social Care,Social Care Activities,Adult Care,Third Party Payments,Other establishments,26-Jul-23,6729496,818.72,SUPPLIER,ALBANY CARE (PORTCHESTER) LIMITED,300000020467728
Portsmouth City Council,PCC,Adult Social Care,Social Care Activities,Adult Care,Third Party Payments,Joint authorities,12-Jul-23,6727310,"9,942.63",SUPPLIER,ALBANY FARM CARE (HAMPSHIRE) LTD,300000020477794
Portsmouth City Council,PCC,Adult Social Care,Mental Health Support Adults (18 - 64),Adult Care,Third Party Payments,Joint authorities,12-Jul-23,6727310,"10,740.57",SUPPLIER,ALBANY FARM CARE (HAMPSHIRE) LTD,300000020477794
Portsmouth City Council,PCC,Adult Social Care,Learning Disabilty Support Older People (65 - 74),Adult Care,Third Party Payments,Joint authorities,12-Jul-23,6727310,"13,639.07",SUPPLIER,ALBANY FARM CARE (HAMPSHIRE) LTD,300000020477794
Portsmouth City Council,PCC,Adult Social Care,Social Care Activities,Adult Care,Third Party Payments,Joint authorities,25-Jul-23,6729371,"5,715.36",SUPPLIER,ALBANY FARM CARE (HAMPSHIRE) LTD,300000020477794
Portsmouth City Council,PCC,Adult Social Care,Assistive Equipment & Technology,Adult Care,Premises-Related Expenditure,"Repairs, alterations and maintenance of buildings",11-Jul-23,6726877,118,SOLETRADER,ALC BUILDING SERVICES,300000020461119
Portsmouth City Council,PCC,Adult Social Care,Assistive Equipment & Technology,Adult Care,Premises-Related Expenditure,"Repairs, alterations and maintenance of buildings",11-Jul-23,6726877,192,SOLETRADER,ALC BUILDING SERVICES,300000020461119
Portsmouth City Council,PCC,Adult Social Care,Assistive Equipment & Technology,Adult Care,Premises-Related Expenditure,"Repairs, alterations and maintenance of buildings",11-Jul-23,6726877,118,SOLETRADER,ALC BUILDING SERVICES,300000020461119
Portsmouth City Council,PCC,Adult Social Care,Assistive Equipment & Technology,Adult Care,Premises-Related Expenditure,"Repairs, alterations and maintenance of buildings",11-Jul-23,6726877,192,SOLETRADER,ALC BUILDING SERVICES,300000020461119
Portsmouth City Council,PCC,Adult Social Care,Assistive Equipment & Technology,Adult Care,Premises-Related Expenditure,"Repairs, alterations and maintenance of buildings",14-Jul-23,6727681,260,SOLETRADER,ALC BUILDING SERVICES,300000020461119
Portsmouth City Council,PCC,Adult Social Care,Assistive Equipment & Technology,Adult Care,Premises-Related Expenditure,"Repairs, alterations and maintenance of buildings",14-Jul-23,6727681,622,SOLETRADER,ALC BUILDING SERVICES,300000020461119
Portsmouth City Council,PCC,Adult Social Care,Learning Disability Support Adults (18 - 64),Adult Care,Third Party Payments,Other establishments,12-Jul-23,6727450,"8,395.73",PRIVATE PROVIDER,ALEX DAVIS (GOSPORT) LTD,300000457142831
Portsmouth City Council,PCC,Adult Social Care,Learning Disability Support Adults (18 - 64),Adult Care,Third Party Payments,Other establishments,12-Jul-23,6727274,"5,292.01",SUPPLIER,ALLIED CARE ASHSTEAD HOUSE,300000020473831
Portsmouth City Council,PCC,Adult Social Care,Learning Disability Support Adults (18 - 64),Adult Care,Third Party Payments,Other establishments,25-Jul-23,6729347,211.42,SUPPLIER,ALLIED CARE LTD,300000020478714
Portsmouth City Council,PCC,Adult Social Care,Learning Disability Support Adults (18 - 64),Adult Care,Third Party Payments,Other establishments,25-Jul-23,6729347,"1,826.52",SUPPLIER,ALLIED CARE LTD,300000020478714
Portsmouth City Council,PCC,Adult Social Care,Learning Disability Support Adults (18 - 64),Adult Care,Transport-Related Expenditure,Direct transport costs,27-Jul-23,6730050,494.49,SUPPLIER,ALLSTAR BUSINESS SOLUTIONS LTD,300000020477226
Portsmouth City Council,PCC,Adult Social Care,Physical Support Older People (65-74),Adult Care,Third Party Payments,Other establishments,03-Jul-23,6725559,25.62,SUPPLIER,ALTOGETHER CARE LLP,300000120931464
Portsmouth City Council,PCC,Adult Social Care,Social Care Activities,Adult Care,Third Party Payments,Other establishments,03-Jul-23,6725559,38.43,SUPPLIER,ALTOGETHER CARE LLP,300000120931464
Portsmouth City Council,PCC,Adult Social Care,Physical Support Older People (85+),Adult Care,Third Party Payments,Other establishments,03-Jul-23,6725559,46.53,SUPPLIER,ALTOGETHER CARE LLP,300000120931464
Portsmouth City Council,PCC,Adult Social Care,Physical Support Adults (18 - 64),Adult Care,Third Party Payments,Other establishments,03-Jul-23,6725559,49.59,SUPPLIER,ALTOGETHER CARE LLP,300000120931464
Portsmouth City Council,PCC,Adult Social Care,Social Support - Support for Carer,Adult Care,Third Party Payments,Other establishments,03-Jul-23,6725559,62.73,SUPPLIER,ALTOGETHER CARE LLP,300000120931464
Portsmouth City Council,PCC,Adult Social Care,Physical Support Older People (65-74),Adult Care,Third Party Payments,Other establishments,03-Jul-23,6725559,76.86,SUPPLIER,ALTOGETHER CARE LLP,300000120931464
Portsmouth City Council,PCC,Adult Social Care,Physical Support Older People (85+),Adult Care,Third Party Payments,Other establishments,03-Jul-23,6725559,89.67,SUPPLIER,ALTOGETHER CARE LLP,300000120931464
Portsmouth City Council,PCC,Adult Social Care,Physical Support Older People (65-74),Adult Care,Third Party Payments,Other establishments,03-Jul-23,6725559,153.72,SUPPLIER,ALTOGETHER CARE LLP,300000120931464
Portsmouth City Council,PCC,Adult Social Care,Physical Support Adults (18 - 64),Adult Care,Third Party Payments,Other establishments,03-Jul-23,6725559,166.53,SUPPLIER,ALTOGETHER CARE LLP,300000120931464
Portsmouth City Council,PCC,Adult Social Care,Physical Support Older People (85+),Adult Care,Third Party Payments,Other establishments,03-Jul-23,6725559,332.49,SUPPLIER,ALTOGETHER CARE LLP,300000120931464
Portsmouth City Council,PCC,Adult Social Care,Social Support - Support for Carer,Adult Care,Third Party Payments,Other establishments,03-Jul-23,6725559,376.38,SUPPLIER,ALTOGETHER CARE LLP,300000120931464
Portsmouth City Council,PCC,Adult Social Care,Social Care Activities,Adult Care,Third Party Payments,Joint authorities,03-Jul-23,6725559,691.74,SUPPLIER,ALTOGETHER CARE LLP,300000120931464
Portsmouth City Council,PCC,Adult Social Care,Physical Support Older People (85+),Adult Care,Third Party Payments,Other establishments,03-Jul-23,6725559,841.68,SUPPLIER,ALTOGETHER CARE LLP,300000120931464
Portsmouth City Council,PCC,Adult Social Care,Physical Support Older People (85+),Adult Care,Third Party Payments,Other establishments,03-Jul-23,6725559,851.1,SUPPLIER,ALTOGETHER CARE LLP,300000120931464
Portsmouth City Council,PCC,Adult Social Care,Mental Health Support Older People (65 - 74),Adult Care,Third Party Payments,Other establishments,03-Jul-23,6725559,-166.53,SUPPLIER,ALTOGETHER CARE LLP,300000120931464
Portsmouth City Council,PCC,Adult Social Care,Physical Support Older People (85+),Adult Care,Third Party Payments,Other establishments,03-Jul-23,6725559,-20.91,SUPPLIER,ALTOGETHER CARE LLP,300000120931464
Portsmouth City Council,PCC,Adult Social Care,Social Care Activities,Adult Care,Third Party Payments,Joint authorities,03-Jul-23,6725559,146.37,SUPPLIER,ALTOGETHER CARE LLP,300000120931464
Portsmouth City Council,PCC,Adult Social Care,Support with Memory and Cognition Older People (85+),Adult Care,Third Party Payments,Other establishments,12-Jul-23,6726976,"3,422.71",SUPPLIER,ALTON HOUSE PARTNERSHIP,300000020463909
Portsmouth City Council,PCC,Adult Social Care,Support with Memory and Cognition Older People (85+),Adult Care,Third Party Payments,Other establishments,12-Jul-23,6726976,"4,428.66",SUPPLIER,ALTON HOUSE PARTNERSHIP,300000020463909
Portsmouth City Council,PCC,Adult Social Care,Support with Memory and Cognition Older People (85+),Adult Care,Third Party Payments,Other establishments,12-Jul-23,6727067,"-2,240.94",SUPPLIER,ALTON MANOR LTD,300000020457904
Portsmouth City Council,PCC,Adult Social Care,Social Care Activities,Adult Care,Third Party Payments,Other establishments,12-Jul-23,6727067,"-1,257.19",SUPPLIER,ALTON MANOR LTD,300000020457904
Portsmouth City Council,PCC,Adult Social Care,Support with Memory and Cognition Older People (85+),Adult Care,Third Party Payments,Other establishments,12-Jul-23,6727067,"-1,103.60",SUPPLIER,ALTON MANOR LTD,300000020457904
Portsmouth City Council,PCC,Adult Social Care,Support with Memory and Cognition Older People (85+),Adult Care,Third Party Payments,Other establishments,12-Jul-23,6727067,-124,SUPPLIER,ALTON MANOR LTD,300000020457904
Portsmouth City Council,PCC,Adult Social Care,Social Care Activities,Adult Care,Third Party Payments,Other establishments,12-Jul-23,6727067,"1,257.19",SUPPLIER,ALTON MANOR LTD,300000020457904
Portsmouth City Council,PCC,Adult Social Care,Mental Health Support Adults (18 - 64),Adult Care,Third Party Payments,Other establishments,12-Jul-23,6727067,"2,589.43",SUPPLIER,ALTON MANOR LTD,300000020457904
Portsmouth City Council,PCC,Adult Social Care,Support with Memory and Cognition Older People (85+),Adult Care,Third Party Payments,Other establishments,12-Jul-23,6727067,"2,751.25",SUPPLIER,ALTON MANOR LTD,300000020457904
Portsmouth City Council,PCC,Adult Social Care,Support with Memory and Cognition Older People (85+),Adult Care,Third Party Payments,Other establishments,12-Jul-23,6727067,"2,751.25",SUPPLIER,ALTON MANOR LTD,300000020457904
Portsmouth City Council,PCC,Adult Social Care,Support with Memory and Cognition Older People (85+),Adult Care,Third Party Payments,Other establishments,12-Jul-23,6727067,"2,751.25",SUPPLIER,ALTON MANOR LTD,300000020457904
Portsmouth City Council,PCC,Adult Social Care,Support with Memory and Cognition Older People (85+),Adult Care,Third Party Payments,Other establishments,12-Jul-23,6727067,"2,857.25",SUPPLIER,ALTON MANOR LTD,300000020457904
Portsmouth City Council,PCC,Adult Social Care,Support with Memory and Cognition Older People (85+),Adult Care,Third Party Payments,Other establishments,12-Jul-23,6727067,"2,957.11",SUPPLIER,ALTON MANOR LTD,300000020457904
